Workbook

Sheet DADOS
B1: TRABALHO SOCIAL: PO - Planilha Orçamentária / CFF - Cronograma Físico Financeiro
A4: INSTRUÇÕES DE USO E PREENCHIMENTO
A5: (NÃO IMPRIMIR ESTA ABA)
A7: 1. Este documento somente pode ser utilizado nas versões do Excel 2003 ou superior. Não deve ser utilizado versões do BROffice. O Documento deve ser salvo SOMENTE em extensão habilitada para macros (.xls ou .xlsm). Se o documento for salvo na extensão .xlsx, o arquivo será INUTILIZADO.
A9: 2. Para funcionamento pleno desse arquivo, a Segurança de Macros do Excel deve ser habilitada.
A11: 2.1 Na Versão Excel 2003, selecione na Faixa de Opções: Ferramentas --> Macro --> Segurança --> Na aba Nível de Segurança selecione a Opção "Baixo" --> Clique em OK --> Feche e abra o Excel novamente para utilizar a Planilha.
A13: 2.2 Na Versão Excel 2007 ou superior, selecione na Faixa de Opções: Arquivo --> Opções --> Central de Confiabilidade --> Configurações da Central de Confiabilidade --> Configurações de Macro --> Habilitar todas as Macros --> Clique em OK --> Feche e abra o excel novamente para utilizar a Planilha.
A15: 3. O Preenchimento deve ser feito somente nas células em amarelo. As outras células são de preenchimento Automático.
A17: 4. Ordem de Preenchimento
A19: 4.1. na Aba DADOS
A21: 4.1.1. Preencha os dados abaixo:
A23: Nº OPERAÇÃO | C23: PROGRAMA | J23: PROPONENTE / TOMADOR | U23: MUNICÍPIO / UF
A24: 029.263-90/2010 | C24: Saneamento para Todos | J24: COMUSA Serviço de Água e Esgoto de Novo Hamburgo | U24: Novo Hamburgo
A26: OBJETO DO CONTRATO | J26: OBJETO DO TRABALHO SOCIAL | U26: REGIME DE EXECUÇÃO DO TS
A27: Saneamento para Todos - Sistema de Esgotamento Sanitário da bacia do Arroio Luiz Rau | J27: Reprogramação da fase de conclusão da ETE e obras | U27: Administração Indireta
A29: DATA BASE | C29: DATA INÍCIO | E29: EXECUTOR DO TRABALHO SOCIAL | T29: DI 1 | U29: DI 2 | V29: DI 3 | W29: DI 4 | X29: DI 5
A30: 2022-03-01 | C30: 2022-09-01 | E30: Comusa Serviço de Água e Esgoto de Novo Hamburgo | T30: 0.25
A32: RESPONSÁVEL TÉCNICO | F32: REPRESENTANTE DO PROPONENTE
A33: NOME: | B33: Gabriele Mussatto Paim | F33: NOME: | G33: Andrea Claudia Braun
A34: CARGO: | B34: Assistente Social | F34: CARGO: | G34: Diretora Geral
A36: 4.2. na Aba Insumos:
A38: 4.2.1. Os insumos serão divididos em Recursos Humanos / Recursos Materiais / Serviços Terceiros.
A39: 4.2.2. A aba insumos vem com uma linha de cada insumo, sendo possível adicionar mais através dos botões no cabeçalho
A40: 4.2.2.1. Escolha o tipo de insumo a ser adicionado e clique em adicionar, uma nova linha aparecerá na tabela.
A41: 4.2.2.2. A ordem dos itens nesta etapa não é importante.
A42: 4.2.3. Cadastre todos os insumos pertinentes ao orçamento.
A44: 4.3. na Aba PO (Planilha Orçamentária):
A46: 4.3.1. O orçamento segue uma estrutura de níveis, que agrupa os insumos e totaliza seus valores:
A47: Ação
A48: └ Ativ. Nível 1
A49: └ Ativ. Nível 2
A50: └ Ativ. Nível 3
A51: 4.3.2. Os insumos podem estar dentro de qualquer nível.
A52: 4.3.3. A primeira linha do orçamento já vem inserida, pois é obrigatório iniciar com o maior nível: Ação.
A53: 4.3.3.1. Deve ser preenchido o nome da primeira ação diretamente na linha do orçamento.
A54: 4.3.4. A inclusão das demais linhas no orçamento pode ser feita clicando-se no botão "Editar Planilha" ou através do atalho de teclado CTRL + i
A55: 4.3.4.1. A janela que se abre ao editar planilha possui 3 abas que permitem adicionar Insumo, adicionar Nível (ver 4.3.1) ou Reorganizar a planilha orçamentária.
A56: 4.3.4.2. Na aba adicionar insumo, é possível digitar no campo "Pesquisa" para encontrar o insumo na lista de insumos cadastrados. Pode-se apertar "Enter" duas vezes quando o insumo for o primeiro da lista de resultados, ou selecionar o insumo na lista e clicar em "Adicionar". Por padrão o insumo é inserido na linha abaixo da célula selecionada antes de abrir a janela Editar, mas pode ser mudado alterando o campo "Depois da Linha".
A57: 4.3.4.2. Na aba adicionar nível, deve-se especificar o nível a ser adicionado (ver 4.3.1), sua descrição e a posição de inserção. Por padrão o nível é inserido na linha abaixo da célula selecionada ao abrir a janela Editar.
A58: 4.3.4.3. Na aba reorganizar, é possível excluir, mover ou copiar linhas do orçamento.
A59: 4.3.5. Depois de incluído o insumo, é possível entrar a quantidade diretamente na planilha orçamentária.
A60: 4.3.6. Por padrão os insumos adotam a composição de Despesa Indireta 1. Na coluna "DI" é possível escolher outra composição ou entrar diretamente com o valor da DI para aquele insumo.
A61: 4.3.7. As colunas NÍVEL, FONTE, TIPO, CÓDIGO, DESCRIÇÃO, UNIDADE e CUSTO UNITÁRIO são trazidas da aba INSUMOS ou da informação cadastrada ao adicionar a linha.
A62: 4.3.8. As colunas QUANTIDADE e DI são entradas pelo usuário diretamente na PO.
A63: 4.3.9. As colunas ITEM, PREÇO UNITÁRIO, PREÇO TOTAL são calculadas automaticamente.
A65: 4.4. na Aba CFF (Cronograma Físico-Financeiro):
A67: 4.4.1. Preencha a data de início do TS na aba Dados.
A68: 4.4.2. Preencha as porcentagens previstas por parcela para cada ação/meta ou atividade.
A69: 4.4.3. Para atualizar o Cronograma conforme o Orçamento e incluir ou excluir parcelas, utilize o botão EDITAR / ATUALIZAR CRONOGRAMA.
A145: Responsável Técnico | G145: Representante do Proponente
A146: Nome: | B146: =B33 -> Gabriele Mussatto Paim | G146: Nome: | H146: =G33 -> Andrea Claudia Braun
A147: Cargo: | B147: =B34 -> Assistente Social | G147: Cargo: | H147: =G34 -> Diretora Geral

Sheet INSUMOS
A1: 2
A2: =CHOOSE(A1,"Rec. Humanos","Rec. Materiais","Serv. Terc.") -> Rec. Materiais
A3: =MATCH(A2,OFFSET(Banco,0,1,,1),0)+ROW(Banco)+COUNTIF(OFFSET(Banco,0,1,,1),Banco.Opção)-1 -> 18 | B3: Banco de Insumos (Esta aba não precisa ser impressa)
B4: TIPO | C4: CÓDIGO | D4: FONTE | E4: DESCRIÇÃO | F4: UNIDADE | G4: CUSTO
A5: =B5&"-"&C5 -> -000 | C5: =TEXT(COUNTIF(OFFSET(Banco,1,1,ROW(C5)-ROW(Banco),1),B5),"000") -> 000
A6: Rec. Humanos-001 | B6: Rec. Humanos | C6: 001 | D6: CFESS | E6: Mobilizador social (assitente social graduação) | F6: H/t | G6: 157.29
A7: Rec. Humanos-002 | B7: Rec. Humanos | C7: 002 | D7: CFESS | E7: Assistente social (assistente social graduação) | F7: H/t | G7: 157.29
A8: Rec. Humanos-003 | B8: Rec. Humanos | C8: 003 | D8: CFESS | E8: Analista pesquisa, consultor social (assistente social mestrado) | F8: H/t | G8: 222.41
A9: Rec. Humanos-004 | B9: Rec. Humanos | C9: 004 | D9: FIPE Salariômetro | E9: Designer júnior (CBO 239435 - Designer educacional, RS) | F9: H/t | G9: 49.48
A10: =B10&"-"&C10 -> Rec. Humanos-005 | B10: Rec. Humanos | C10: =TEXT(COUNTIF(OFFSET(Banco,1,1,ROW(C10)-ROW(Banco),1),B10),"000") -> 005 | D10: FIPE Salariômetro | E10: Profissional da área de comunicação, relações públicas (CBO 142325 - Relações públicas) | F10: H/t | G10: 35.42
A11: =B11&"-"&C11 -> Rec. Humanos-006 | B11: Rec. Humanos | C11: =TEXT(COUNTIF(OFFSET(Banco,1,1,ROW(C11)-ROW(Banco),1),B11),"000") -> 006 | D11: FIPE Salariômetro | E11: Assistente (CBO 411010 - Assistente administrativo) | F11: H/t | G11: 24.76
A12: Rec. Materiais-001 | B12: Rec. Materiais | C12: 001 | D12: Sites empresas | E12: Deslocamento (veículo, combustível, alimentação) | F12: Diária | G12: 271.22
A13: Rec. Materiais-002 | B13: Rec. Materiais | C13: 002 | D13: Sites empresas | E13: Kit de registrro de atividades e eventos | F13: Diária | G13: 9.17
A14: Rec. Materiais-003 | B14: Rec. Materiais | C14: 003 | D14: Sites empresas | E14: Folder para material de apoio (150 unidades) | F14: Pacote | G14: 573.3
A15: Rec. Materiais-004 | B15: Rec. Materiais | C15: 004 | D15: Sites empresas | E15: Impressão laser colorida | F15: Página | G15: 3
A16: Rec. Materiais-005 | B16: Rec. Materiais | C16: 005 | D16: Sites empresas | E16: Locação de tenda articulada 3x3 metros | F16: Diária | G16: 200
A17: =B17&"-"&C17 -> Rec. Materiais-006 | B17: Rec. Materiais | C17: =TEXT(COUNTIF(OFFSET(Banco,1,1,ROW(C17)-ROW(Banco),1),B17),"000") -> 006 | D17: Sites empresas | E17: Mesa plástica desmontável com 4 cadeiras branco | F17: Conjunto | G17: 443.99
A18: =B18&"-"&C18 -> Serv. Terc.-001 | B18: Serv. Terc. | C18: 001 | D18: Verba arbitrada | E18: Contratação de oficineiros e artistas conforme demanda | F18: Evento | G18: 3000
A19: =B19&"-"&C19 -> Serv. Terc.-002 | B19: Serv. Terc. | C19: 002
A20: =B20&"-"&C20 -> Serv. Terc.-003 | B20: Serv. Terc. | C20: 003
A21: =B21&"-"&C21 -> Serv. Terc.-004 | B21: Serv. Terc. | C21: 004
A22: =B22&"-"&C22 -> Serv. Terc.-005 | B22: Serv. Terc. | C22: 005

Sheet PO
O1: PO - PLANILHA ORÇAMENTÁRIA | U1: Grau de Sigilo
B2: LOTE | C2: Ação | D2: AtivNível 1 | E2: AtivNível 2 | F2: AtivNível 3 | G2: Insumo | O2: TS - TRABALHO SOCIAL | U2: #PUBLICO
A4: Nmax
A5: =MAX($A$11:$A$91) -> 3
A9: Nível | B9: Altura | C9: n1 | D9: n2 | E9: n3 | F9: n4 | G9: n5 | H9: Czero | I9: Cnível | J9: Nível | K9: Item | L9: Fonte | M9: Tipo | N9: Código | O9: Descrição | P9: Unidade | Q9: Quantidade | R9: Custo Unitário (R$) | S9: DI (%) | T9: Preço Unitário (R$) | U9: Preço Total (R$) | W9: Lista Crono | X9: Concatenação Fonte-Código | Y9: BancoRef | AA9: Valor DI
A10: =CHOOSE(1+LOG(1+2*(J10=$C$2)+4*(J10=$D$2)+8*(J10=$E$2)+16*(J10=$F$2)+32*(J10=$G$2),2),0,1,2,3,4,"S") -> S | B10: =IF(OR(A10="S",A10=0),0,IF(ISERROR(I10),H10,SMALL(H10:I10,1))) -> 0 | C10: =IF($A10=1,OFFSET(C10,-1,0)+1,OFFSET(C10,-1,0)) -> n1 | D10: =IF($A10=1,0,IF($A10=2,OFFSET(D10,-1,0)+1,OFFSET(D10,-1,0))) -> n2 | E10: =IF(AND($A10<=2,$A10<>0),0,IF($A10=3,OFFSET(E10,-1,0)+1,OFFSET(E10,-1,0))) -> n3 | F10: =IF(AND($A10<=3,$A10<>0),0,IF($A10=4,OFFSET(F10,-1,0)+1,OFFSET(F10,-1,0))) -> n4 | G10: =IF(AND($A10<=4,$A10<>0),0,IF($A10="S",OFFSET(G10,-1,0)+1,OFFSET(G10,-1,0))) ->  | H10: =IF(OR($A10="S",$A10=0),0,MATCH(0,OFFSET($B10,1,$A10,ROW($A$91)-ROW($A10)),0)) -> 0 | I10: =IF(OR($A10="S",$A10=0),0,MATCH(OFFSET($B10,0,$A10)+1,OFFSET($B10,1,$A10,ROW($A$91)-ROW($A10)),0)) -> 0 | J10: Insumo | K10: =IF($A10=0,"-",CONCATENATE(C10&".",IF(AND($A$5>=2,$A10>=2),D10&".",""),IF(AND($A$5>=3,$A10>=3),E10&".",""),IF(AND($A$5>=4,$A10>=4),F10&".",""),IF($A10="S",G10&".",""))) ->  | L10: =IF(NOT(ISERROR($Y10)),IF($Y10<>FALSE,INDEX(Banco,$Y10,4),""),"") ->  | O10: =IF(NOT(ISERROR($Y10)),IF($Y10<>FALSE,INDEX(Banco,$Y10,5),""),"") ->  | P10: =IF(NOT(ISERROR($Y10)),IF($Y10<>FALSE,INDEX(Banco,$Y10,6),""),"") ->  | R10: =IF(NOT(ISERROR($Y10)),IF($Y10<>FALSE,INDEX(Banco,$Y10,7),0),0) -> 0 | S10: DI 1 | T10: =IF($J10=$G$2,ROUND(ROUND($R10,2)*IF($R$9="Preço Unitário (R$)",1,1+$AA10),2),0) -> 0 | U10: =IF($A10="S",VTOTAL1,IF($A10=0,0,ROUND(SomaAgrup,2))) -> 0 | W10: =IF(OR($A10=0,$A10="S",$A10>CFF!$A$9),"",MAX(W$11:OFFSET(W10,-1,0))+1) ->  | X10: =IF(AND($J10=$G$2,$N10<>"",$M10<>""),CONCATENATE($M10,"-",$N10)) -> FALSE | Y10: =IF(X10<>FALSE,MATCH(X10,OFFSET(Banco,0,0,,1),0)) -> FALSE | AA10: =IF($J10=$G$2,ROUND(IF(ISNUMBER(S10),S10,IF(LEFT(S10,2)="DI",HLOOKUP(S10,DADOS!$T$29:$X$30,2,FALSE),0)),4),"") -> 0.25
A11: 0 | B11: =COUNTA(OFFSET(B11,1,0):B$91) -> 79 | J11: TOTAL | K11: 0 | O11: TOTAL | U11: =SUMIF(OFFSET($J11,1,0,ROW(U91)-ROW(U11)-1),$G$2,OFFSET(U11,1,0,ROW(U91)-ROW(U11)-1)) -> 535116.87 | W11: 0
A12: =CHOOSE(1+LOG(1+2*(J12=$C$2)+4*(J12=$D$2)+8*(J12=$E$2)+16*(J12=$F$2)+32*(J12=$G$2),2),0,1,2,3,4,"S") -> 1 | B12: =IF(OR(A12="S",A12=0),0,IF(ISERROR(I12),H12,SMALL(H12:I12,1))) -> 8 | C12: =IF($A12=1,OFFSET(C12,-1,0)+1,OFFSET(C12,-1,0)) -> 1 | D12: =IF($A12=1,0,IF($A12=2,OFFSET(D12,-1,0)+1,OFFSET(D12,-1,0))) -> 0 | E12: =IF(AND($A12<=2,$A12<>0),0,IF($A12=3,OFFSET(E12,-1,0)+1,OFFSET(E12,-1,0))) -> 0 | F12: =IF(AND($A12<=3,$A12<>0),0,IF($A12=4,OFFSET(F12,-1,0)+1,OFFSET(F12,-1,0))) -> 0 | G12: =IF(AND($A12<=4,$A12<>0),0,IF($A12="S",OFFSET(G12,-1,0)+1,OFFSET(G12,-1,0))) -> 0 | H12: =IF(OR($A12="S",$A12=0),0,MATCH(0,OFFSET($B12,1,$A12,ROW($A$91)-ROW($A12)),0)) -> 79 | I12: =IF(OR($A12="S",$A12=0),0,MATCH(OFFSET($B12,0,$A12)+1,OFFSET($B12,1,$A12,ROW($A$91)-ROW($A12)),0)) -> 8 | J12: Ação | K12: =IF($A12=0,"-",CONCATENATE(C12&".",IF(AND($A$5>=2,$A12>=2),D12&".",""),IF(AND($A$5>=3,$A12>=3),E12&".",""),IF(AND($A$5>=4,$A12>=4),F12&".",""),IF($A12="S",G12&".",""))) -> 1. | L12: =IF(NOT(ISERROR($Y12)),IF($Y12<>FALSE,INDEX(Banco,$Y12,4),""),"") ->  | O12: Mapeamento dos públicos alvo do TTS | P12: =IF(NOT(ISERROR($Y12)),IF($Y12<>FALSE,INDEX(Banco,$Y12,6),""),"") ->  | R12: =IF(NOT(ISERROR($Y12)),IF($Y12<>FALSE,INDEX(Banco,$Y12,7),0),0) -> 0 | S12: DI 1 | T12: =IF($J12=$G$2,ROUND(ROUND($R12,2)*IF($R$9="Preço Unitário (R$)",1,1+$AA12),2),0) -> 0 | U12: =IF($A12="S",VTOTAL1,IF($A12=0,0,ROUND(SomaAgrup,2))) -> 96324.04 | W12: =IF(OR($A12=0,$A12="S",$A12>CFF!$A$9),"",MAX(W$11:OFFSET(W12,-1,0))+1) -> 1 | X12: =IF(AND($J12=$G$2,$N12<>"",$M12<>""),CONCATENATE($M12,"-",$N12)) -> FALSE | Y12: =IF(X12<>FALSE,MATCH(X12,OFFSET(Banco,0,0,,1),0)) -> FALSE | AA12: =IF($J12=$G$2,ROUND(IF(ISNUMBER(S12),S12,IF(LEFT(S12,2)="DI",HLOOKUP(S12,DADOS!$T$29:$X$30,2,FALSE),0)),4),"") -> 
A13: 2 | B13: 5 | C13: 1 | D13: 1 | E13: 0 | F13: 0 | G13: 0 | H13: 7 | I13: 5 | J13: AtivNível 1 | K13: 1.1. | O13: Caracterização da população de entorno das obras, mapeamento dos equipamentos públicos, das organizações, dos programas em atividade e da população em situação de vulnerabilidade social na microbacia beneficiária da ETE Luiz Rau | R13: 0 | S13: DI 1 | T13: 0 | U13: 68523.04 | W13: =IF(OR($A13=0,$A13="S",$A13>CFF!$A$9),"",MAX(W$11:OFFSET(W13,-1,0))+1) -> 2 | X13: FALSE | Y13: FALSE | AA13: =IF($J13=$G$2,ROUND(IF(ISNUMBER(S13),S13,IF(LEFT(S13,2)="DI",HLOOKUP(S13,DADOS!$T$29:$X$30,2,FALSE),0)),4),"") -> 
A14: S | B14: 0 | C14: 1 | D14: 1 | E14: 0 | F14: 0 | G14: 1 | H14: 0 | I14: 0 | J14: Insumo | K14: 1.1.0.1. | L14: CFESS | M14: Rec. Humanos | N14: 001 | O14: =IF(NOT(ISERROR($Y14)),IF($Y14<>FALSE,INDEX(Banco,$Y14,5),""),"") -> Mobilizador social (assitente social graduação) | P14: H/t | Q14: 160 | R14: 157.29 | S14: DI 1 | T14: 196.61 | U14: 31457.6 | W14: =IF(OR($A14=0,$A14="S",$A14>CFF!$A$9),"",MAX(W$11:OFFSET(W14,-1,0))+1) ->  | X14: Rec. Humanos-001 | Y14: 3 | AA14: =IF($J14=$G$2,ROUND(IF(ISNUMBER(S14),S14,IF(LEFT(S14,2)="DI",HLOOKUP(S14,DADOS!$T$29:$X$30,2,FALSE),0)),4),"") -> 0.25
A15: S | B15: 0 | C15: 1 | D15: 1 | E15: 0 | F15: 0 | G15: 2 | H15: 0 | I15: 0 | J15: Insumo | K15: 1.1.0.2. | L15: CFESS | M15: Rec. Humanos | N15: 002 | O15: =IF(NOT(ISERROR($Y15)),IF($Y15<>FALSE,INDEX(Banco,$Y15,5),""),"") -> Assistente social (assistente social graduação) | P15: H/t | Q15: 160 | R15: 157.29 | S15: DI 1 | T15: 196.61 | U15: 31457.6 | W15: =IF(OR($A15=0,$A15="S",$A15>CFF!$A$9),"",MAX(W$11:OFFSET(W15,-1,0))+1) ->  | X15: Rec. Humanos-002 | Y15: 4 | AA15: =IF($J15=$G$2,ROUND(IF(ISNUMBER(S15),S15,IF(LEFT(S15,2)="DI",HLOOKUP(S15,DADOS!$T$29:$X$30,2,FALSE),0)),4),"") -> 0.25
A16: S | B16: 0 | C16: 1 | D16: 1 | E16: 0 | F16: 0 | G16: 3 | H16: 0 | I16: 0 | J16: Insumo | K16: 1.1.0.3. | L16: Sites empresas | M16: Rec. Materiais | N16: 001 | O16: =IF(NOT(ISERROR($Y16)),IF($Y16<>FALSE,INDEX(Banco,$Y16,5),""),"") -> Deslocamento (veículo, combustível, alimentação) | P16: Diária | Q16: 16 | R16: 271.22 | S16: DI 1 | T16: 339.03 | U16: 5424.48 | W16: =IF(OR($A16=0,$A16="S",$A16>CFF!$A$9),"",MAX(W$11:OFFSET(W16,-1,0))+1) ->  | X16: Rec. Materiais-001 | Y16: 9 | AA16: =IF($J16=$G$2,ROUND(IF(ISNUMBER(S16),S16,IF(LEFT(S16,2)="DI",HLOOKUP(S16,DADOS!$T$29:$X$30,2,FALSE),0)),4),"") -> 0.25
A17: S | B17: 0 | C17: 1 | D17: 1 | E17: 0 | F17: 0 | G17: 4 | H17: 0 | I17: 0 | J17: Insumo | K17: 1.1.0.4. | L17: Sites empresas | M17: Rec. Materiais | N17: 002 | O17: =IF(NOT(ISERROR($Y17)),IF($Y17<>FALSE,INDEX(Banco,$Y17,5),""),"") -> Kit de registrro de atividades e eventos | P17: Diária | Q17: 16 | R17: 9.17 | S17: DI 1 | T17: 11.46 | U17: 183.36 | W17: =IF(OR($A17=0,$A17="S",$A17>CFF!$A$9),"",MAX(W$11:OFFSET(W17,-1,0))+1) ->  | X17: Rec. Materiais-002 | Y17: 10 | AA17: =IF($J17=$G$2,ROUND(IF(ISNUMBER(S17),S17,IF(LEFT(S17,2)="DI",HLOOKUP(S17,DADOS!$T$29:$X$30,2,FALSE),0)),4),"") -> 0.25
A18: 2 | B18: 2 | C18: 1 | D18: 2 | E18: 0 | F18: 0 | G18: 0 | H18: 2 | I18: 9 | J18: AtivNível 1 | K18: 1.2. | O18: Relatório de Mapeamento Social | R18: 0 | S18: DI 1 | T18: 0 | U18: 27801 | W18: =IF(OR($A18=0,$A18="S",$A18>CFF!$A$9),"",MAX(W$11:OFFSET(W18,-1,0))+1) -> 3 | X18: FALSE | Y18: FALSE | AA18: =IF($J18=$G$2,ROUND(IF(ISNUMBER(S18),S18,IF(LEFT(S18,2)="DI",HLOOKUP(S18,DADOS!$T$29:$X$30,2,FALSE),0)),4),"") -> 
A19: S | B19: 0 | C19: 1 | D19: 2 | E19: 0 | F19: 0 | G19: 1 | H19: 0 | I19: 0 | J19: Insumo | K19: 1.2.0.1. | L19: CFESS | M19: Rec. Humanos | N19: 003 | O19: =IF(NOT(ISERROR($Y19)),IF($Y19<>FALSE,INDEX(Banco,$Y19,5),""),"") -> Analista pesquisa, consultor social (assistente social mestrado) | P19: H/t | Q19: 100 | R19: 222.41 | S19: DI 1 | T19: 278.01 | U19: 27801 | W19: =IF(OR($A19=0,$A19="S",$A19>CFF!$A$9),"",MAX(W$11:OFFSET(W19,-1,0))+1) ->  | X19: Rec. Humanos-003 | Y19: 5 | AA19: =IF($J19=$G$2,ROUND(IF(ISNUMBER(S19),S19,IF(LEFT(S19,2)="DI",HLOOKUP(S19,DADOS!$T$29:$X$30,2,FALSE),0)),4),"") -> 0.25
A20: 1 | B20: 14 | C20: 2 | D20: 0 | E20: 0 | F20: 0 | G20: 0 | H20: 71 | I20: 14 | J20: Ação | K20: 2. | O20: Implementação de estratégia de comunicação do Projeto | R20: 0 | S20: DI 1 | T20: 0 | U20: 89907.8 | W20: =IF(OR($A20=0,$A20="S",$A20>CFF!$A$9),"",MAX(W$11:OFFSET(W20,-1,0))+1) -> 4 | X20: FALSE | Y20: FALSE | AA20: =IF($J20=$G$2,ROUND(IF(ISNUMBER(S20),S20,IF(LEFT(S20,2)="DI",HLOOKUP(S20,DADOS!$T$29:$X$30,2,FALSE),0)),4),"") -> 
A21: 2 | B21: 2 | C21: 2 | D21: 1 | E21: 0 | F21: 0 | G21: 0 | H21: 13 | I21: 2 | J21: AtivNível 1 | K21: 2.1. | O21: Elaboração de base para peças de comunicação de multimídia | R21: 0 | S21: DI 1 | T21: 0 | U21: 6185 | W21: =IF(OR($A21=0,$A21="S",$A21>CFF!$A$9),"",MAX(W$11:OFFSET(W21,-1,0))+1) -> 5 | X21: FALSE | Y21: FALSE | AA21: =IF($J21=$G$2,ROUND(IF(ISNUMBER(S21),S21,IF(LEFT(S21,2)="DI",HLOOKUP(S21,DADOS!$T$29:$X$30,2,FALSE),0)),4),"") -> 
A22: S | B22: 0 | C22: 2 | D22: 1 | E22: 0 | F22: 0 | G22: 1 | H22: 0 | I22: 0 | J22: Insumo | K22: 2.1.0.1. | L22: FIPE Salariômetro | M22: Rec. Humanos | N22: 004 | O22: =IF(NOT(ISERROR($Y22)),IF($Y22<>FALSE,INDEX(Banco,$Y22,5),""),"") -> Designer júnior (CBO 239435 - Designer educacional, RS) | P22: H/t | Q22: 100 | R22: 49.48 | S22: DI 1 | T22: 61.85 | U22: 6185 | W22: =IF(OR($A22=0,$A22="S",$A22>CFF!$A$9),"",MAX(W$11:OFFSET(W22,-1,0))+1) ->  | X22: Rec. Humanos-004 | Y22: 6 | AA22: =IF($J22=$G$2,ROUND(IF(ISNUMBER(S22),S22,IF(LEFT(S22,2)="DI",HLOOKUP(S22,DADOS!$T$29:$X$30,2,FALSE),0)),4),"") -> 0.25
A23: 2 | B23: 4 | C23: 2 | D23: 2 | E23: 0 | F23: 0 | G23: 0 | H23: 11 | I23: 4 | J23: AtivNível 1 | K23: 2.2. | O23: Elaboração de 10 peças de comunicação ao longo do projeto | R23: 0 | S23: DI 1 | T23: 0 | U23: 37531.3 | W23: =IF(OR($A23=0,$A23="S",$A23>CFF!$A$9),"",MAX(W$11:OFFSET(W23,-1,0))+1) -> 6 | X23: FALSE | Y23: FALSE | AA23: =IF($J23=$G$2,ROUND(IF(ISNUMBER(S23),S23,IF(LEFT(S23,2)="DI",HLOOKUP(S23,DADOS!$T$29:$X$30,2,FALSE),0)),4),"") -> 
A24: S | B24: 0 | C24: 2 | D24: 2 | E24: 0 | F24: 0 | G24: 1 | H24: 0 | I24: 0 | J24: Insumo | K24: 2.2.0.1. | L24: FIPE Salariômetro | M24: Rec. Humanos | N24: 004 | O24: =IF(NOT(ISERROR($Y24)),IF($Y24<>FALSE,INDEX(Banco,$Y24,5),""),"") -> Designer júnior (CBO 239435 - Designer educacional, RS) | P24: H/t | Q24: 400 | R24: 49.48 | S24: DI 1 | T24: 61.85 | U24: 24740 | W24: =IF(OR($A24=0,$A24="S",$A24>CFF!$A$9),"",MAX(W$11:OFFSET(W24,-1,0))+1) ->  | X24: Rec. Humanos-004 | Y24: 6 | AA24: =IF($J24=$G$2,ROUND(IF(ISNUMBER(S24),S24,IF(LEFT(S24,2)="DI",HLOOKUP(S24,DADOS!$T$29:$X$30,2,FALSE),0)),4),"") -> 0.25
A25: S | B25: 0 | C25: 2 | D25: 2 | E25: 0 | F25: 0 | G25: 2 | H25: 0 | I25: 0 | J25: Insumo | K25: 2.2.0.2. | L25: Sites empresas | M25: Rec. Materiais | N25: 003 | O25: =IF(NOT(ISERROR($Y25)),IF($Y25<>FALSE,INDEX(Banco,$Y25,5),""),"") -> Folder para material de apoio (150 unidades) | P25: Pacote | Q25: 10 | R25: 573.3 | S25: DI 1 | T25: 716.63 | U25: 7166.3 | W25: =IF(OR($A25=0,$A25="S",$A25>CFF!$A$9),"",MAX(W$11:OFFSET(W25,-1,0))+1) ->  | X25: Rec. Materiais-003 | Y25: 11 | AA25: =IF($J25=$G$2,ROUND(IF(ISNUMBER(S25),S25,IF(LEFT(S25,2)="DI",HLOOKUP(S25,DADOS!$T$29:$X$30,2,FALSE),0)),4),"") -> 0.25
A26: S | B26: 0 | C26: 2 | D26: 2 | E26: 0 | F26: 0 | G26: 3 | H26: 0 | I26: 0 | J26: Insumo | K26: 2.2.0.3. | L26: Sites empresas | M26: Rec. Materiais | N26: 004 | O26: =IF(NOT(ISERROR($Y26)),IF($Y26<>FALSE,INDEX(Banco,$Y26,5),""),"") -> Impressão laser colorida | P26: Página | Q26: 1500 | R26: 3 | S26: DI 1 | T26: 3.75 | U26: 5625 | W26: =IF(OR($A26=0,$A26="S",$A26>CFF!$A$9),"",MAX(W$11:OFFSET(W26,-1,0))+1) ->  | X26: Rec. Materiais-004 | Y26: 12 | AA26: =IF($J26=$G$2,ROUND(IF(ISNUMBER(S26),S26,IF(LEFT(S26,2)="DI",HLOOKUP(S26,DADOS!$T$29:$X$30,2,FALSE),0)),4),"") -> 0.25
A27: 2 | B27: 5 | C27: 2 | D27: 3 | E27: 0 | F27: 0 | G27: 0 | H27: 7 | I27: 5 | J27: AtivNível 1 | K27: 2.3. | O27: Definição e implementação de estratégia de comunicação | R27: 0 | S27: DI 1 | T27: 0 | U27: 40877.9 | W27: =IF(OR($A27=0,$A27="S",$A27>CFF!$A$9),"",MAX(W$11:OFFSET(W27,-1,0))+1) -> 7 | X27: FALSE | Y27: FALSE | AA27: =IF($J27=$G$2,ROUND(IF(ISNUMBER(S27),S27,IF(LEFT(S27,2)="DI",HLOOKUP(S27,DADOS!$T$29:$X$30,2,FALSE),0)),4),"") -> 
A28: S | B28: 0 | C28: 2 | D28: 3 | E28: 0 | F28: 0 | G28: 1 | H28: 0 | I28: 0 | J28: Insumo | K28: 2.3.0.1. | L28: FIPE Salariômetro | M28: Rec. Humanos | N28: 005 | O28: =IF(NOT(ISERROR($Y28)),IF($Y28<>FALSE,INDEX(Banco,$Y28,5),""),"") -> Profissional da área de comunicação, relações públicas (CBO 142325 - Relações públicas) | P28: H/t | Q28: 400 | R28: 35.42 | S28: DI 1 | T28: 44.28 | U28: 17712 | W28: =IF(OR($A28=0,$A28="S",$A28>CFF!$A$9),"",MAX(W$11:OFFSET(W28,-1,0))+1) ->  | X28: Rec. Humanos-005 | Y28: 7 | AA28: =IF($J28=$G$2,ROUND(IF(ISNUMBER(S28),S28,IF(LEFT(S28,2)="DI",HLOOKUP(S28,DADOS!$T$29:$X$30,2,FALSE),0)),4),"") -> 0.25
A29: S | B29: 0 | C29: 2 | D29: 3 | E29: 0 | F29: 0 | G29: 2 | H29: 0 | I29: 0 | J29: Insumo | K29: 2.3.0.2. | L29: CFESS | M29: Rec. Humanos | N29: 001 | O29: =IF(NOT(ISERROR($Y29)),IF($Y29<>FALSE,INDEX(Banco,$Y29,5),""),"") -> Mobilizador social (assitente social graduação) | P29: H/t | Q29: 100 | R29: 157.29 | S29: DI 1 | T29: 196.61 | U29: 19661 | W29: =IF(OR($A29=0,$A29="S",$A29>CFF!$A$9),"",MAX(W$11:OFFSET(W29,-1,0))+1) ->  | X29: Rec. Humanos-001 | Y29: 3 | AA29: =IF($J29=$G$2,ROUND(IF(ISNUMBER(S29),S29,IF(LEFT(S29,2)="DI",HLOOKUP(S29,DADOS!$T$29:$X$30,2,FALSE),0)),4),"") -> 0.25
A30: S | B30: 0 | C30: 2 | D30: 3 | E30: 0 | F30: 0 | G30: 3 | H30: 0 | I30: 0 | J30: Insumo | K30: 2.3.0.3. | L30: Sites empresas | M30: Rec. Materiais | N30: 001 | O30: =IF(NOT(ISERROR($Y30)),IF($Y30<>FALSE,INDEX(Banco,$Y30,5),""),"") -> Deslocamento (veículo, combustível, alimentação) | P30: Diária | Q30: 10 | R30: 271.22 | S30: DI 1 | T30: 339.03 | U30: 3390.3 | W30: =IF(OR($A30=0,$A30="S",$A30>CFF!$A$9),"",MAX(W$11:OFFSET(W30,-1,0))+1) ->  | X30: Rec. Materiais-001 | Y30: 9 | AA30: =IF($J30=$G$2,ROUND(IF(ISNUMBER(S30),S30,IF(LEFT(S30,2)="DI",HLOOKUP(S30,DADOS!$T$29:$X$30,2,FALSE),0)),4),"") -> 0.25
A31: S | B31: 0 | C31: 2 | D31: 3 | E31: 0 | F31: 0 | G31: 4 | H31: 0 | I31: 0 | J31: Insumo | K31: 2.3.0.4. | L31: Sites empresas | M31: Rec. Materiais | N31: 002 | O31: =IF(NOT(ISERROR($Y31)),IF($Y31<>FALSE,INDEX(Banco,$Y31,5),""),"") -> Kit de registrro de atividades e eventos | P31: Diária | Q31: 10 | R31: 9.17 | S31: DI 1 | T31: 11.46 | U31: 114.6 | W31: =IF(OR($A31=0,$A31="S",$A31>CFF!$A$9),"",MAX(W$11:OFFSET(W31,-1,0))+1) ->  | X31: Rec. Materiais-002 | Y31: 10 | AA31: =IF($J31=$G$2,ROUND(IF(ISNUMBER(S31),S31,IF(LEFT(S31,2)="DI",HLOOKUP(S31,DADOS!$T$29:$X$30,2,FALSE),0)),4),"") -> 0.25
A32: 2 | B32: 2 | C32: 2 | D32: 4 | E32: 0 | F32: 0 | G32: 0 | H32: 2 | I32: 38 | J32: AtivNível 1 | K32: 2.4. | O32: Monitoramento de resultados de comunicação | R32: 0 | S32: DI 1 | T32: 0 | U32: 5313.6 | W32: =IF(OR($A32=0,$A32="S",$A32>CFF!$A$9),"",MAX(W$11:OFFSET(W32,-1,0))+1) -> 8 | X32: FALSE | Y32: FALSE | AA32: =IF($J32=$G$2,ROUND(IF(ISNUMBER(S32),S32,IF(LEFT(S32,2)="DI",HLOOKUP(S32,DADOS!$T$29:$X$30,2,FALSE),0)),4),"") -> 
A33: S | B33: 0 | C33: 2 | D33: 4 | E33: 0 | F33: 0 | G33: 1 | H33: 0 | I33: 0 | J33: Insumo | K33: 2.4.0.1. | L33: FIPE Salariômetro | M33: Rec. Humanos | N33: 005 | O33: =IF(NOT(ISERROR($Y33)),IF($Y33<>FALSE,INDEX(Banco,$Y33,5),""),"") -> Profissional da área de comunicação, relações públicas (CBO 142325 - Relações públicas) | P33: H/t | Q33: 120 | R33: 35.42 | S33: DI 1 | T33: 44.28 | U33: 5313.6 | W33: =IF(OR($A33=0,$A33="S",$A33>CFF!$A$9),"",MAX(W$11:OFFSET(W33,-1,0))+1) ->  | X33: Rec. Humanos-005 | Y33: 7 | AA33: =IF($J33=$G$2,ROUND(IF(ISNUMBER(S33),S33,IF(LEFT(S33,2)="DI",HLOOKUP(S33,DADOS!$T$29:$X$30,2,FALSE),0)),4),"") -> 0.25
A34: 1 | B34: 40 | C34: 3 | D34: 0 | E34: 0 | F34: 0 | G34: 0 | H34: 57 | I34: 40 | J34: Ação | K34: 3. | O34: Educação Sanitária e Ambiental | R34: 0 | S34: DI 1 | T34: 0 | U34: 277286.37 | W34: =IF(OR($A34=0,$A34="S",$A34>CFF!$A$9),"",MAX(W$11:OFFSET(W34,-1,0))+1) -> 9 | X34: FALSE | Y34: FALSE | AA34: =IF($J34=$G$2,ROUND(IF(ISNUMBER(S34),S34,IF(LEFT(S34,2)="DI",HLOOKUP(S34,DADOS!$T$29:$X$30,2,FALSE),0)),4),"") -> 
A35: 2 | B35: 6 | C35: 3 | D35: 1 | E35: 0 | F35: 0 | G35: 0 | H35: 39 | I35: 6 | J35: AtivNível 1 | K35: 3.1. | O35: Visitas técnicas presenciais à ETE | R35: 0 | S35: DI 1 | T35: 0 | U35: 58647 | W35: =IF(OR($A35=0,$A35="S",$A35>CFF!$A$9),"",MAX(W$11:OFFSET(W35,-1,0))+1) -> 10 | X35: FALSE | Y35: FALSE | AA35: =IF($J35=$G$2,ROUND(IF(ISNUMBER(S35),S35,IF(LEFT(S35,2)="DI",HLOOKUP(S35,DADOS!$T$29:$X$30,2,FALSE),0)),4),"") -> 
A36: S | B36: 0 | C36: 3 | D36: 1 | E36: 0 | F36: 0 | G36: 1 | H36: 0 | I36: 0 | J36: Insumo | K36: 3.1.0.1. | L36: CFESS | M36: Rec. Humanos | N36: 001 | O36: =IF(NOT(ISERROR($Y36)),IF($Y36<>FALSE,INDEX(Banco,$Y36,5),""),"") -> Mobilizador social (assitente social graduação) | P36: H/t | Q36: 130 | R36: 157.29 | S36: DI 1 | T36: 196.61 | U36: 25559.3 | W36: =IF(OR($A36=0,$A36="S",$A36>CFF!$A$9),"",MAX(W$11:OFFSET(W36,-1,0))+1) ->  | X36: Rec. Humanos-001 | Y36: 3 | AA36: =IF($J36=$G$2,ROUND(IF(ISNUMBER(S36),S36,IF(LEFT(S36,2)="DI",HLOOKUP(S36,DADOS!$T$29:$X$30,2,FALSE),0)),4),"") -> 0.25
A37: S | B37: 0 | C37: 3 | D37: 1 | E37: 0 | F37: 0 | G37: 2 | H37: 0 | I37: 0 | J37: Insumo | K37: 3.1.0.2. | L37: CFESS | M37: Rec. Humanos | N37: 002 | O37: =IF(NOT(ISERROR($Y37)),IF($Y37<>FALSE,INDEX(Banco,$Y37,5),""),"") -> Assistente social (assistente social graduação) | P37: H/t | Q37: 130 | R37: 157.29 | S37: DI 1 | T37: 196.61 | U37: 25559.3 | W37: =IF(OR($A37=0,$A37="S",$A37>CFF!$A$9),"",MAX(W$11:OFFSET(W37,-1,0))+1) ->  | X37: Rec. Humanos-002 | Y37: 4 | AA37: =IF($J37=$G$2,ROUND(IF(ISNUMBER(S37),S37,IF(LEFT(S37,2)="DI",HLOOKUP(S37,DADOS!$T$29:$X$30,2,FALSE),0)),4),"") -> 0.25
A38: S | B38: 0 | C38: 3 | D38: 1 | E38: 0 | F38: 0 | G38: 3 | H38: 0 | I38: 0 | J38: Insumo | K38: 3.1.0.3. | L38: FIPE Salariômetro | M38: Rec. Humanos | N38: 006 | O38: =IF(NOT(ISERROR($Y38)),IF($Y38<>FALSE,INDEX(Banco,$Y38,5),""),"") -> Assistente (CBO 411010 - Assistente administrativo) | P38: H/t | Q38: 130 | R38: 24.76 | S38: DI 1 | T38: 30.95 | U38: 4023.5 | W38: =IF(OR($A38=0,$A38="S",$A38>CFF!$A$9),"",MAX(W$11:OFFSET(W38,-1,0))+1) ->  | X38: Rec. Humanos-006 | Y38: 8 | AA38: =IF($J38=$G$2,ROUND(IF(ISNUMBER(S38),S38,IF(LEFT(S38,2)="DI",HLOOKUP(S38,DADOS!$T$29:$X$30,2,FALSE),0)),4),"") -> 0.25
A39: S | B39: 0 | C39: 3 | D39: 1 | E39: 0 | F39: 0 | G39: 4 | H39: 0 | I39: 0 | J39: Insumo | K39: 3.1.0.4. | L39: Sites empresas | M39: Rec. Materiais | N39: 001 | O39: =IF(NOT(ISERROR($Y39)),IF($Y39<>FALSE,INDEX(Banco,$Y39,5),""),"") -> Deslocamento (veículo, combustível, alimentação) | P39: Diária | Q39: 10 | R39: 271.22 | S39: DI 1 | T39: 339.03 | U39: 3390.3 | W39: =IF(OR($A39=0,$A39="S",$A39>CFF!$A$9),"",MAX(W$11:OFFSET(W39,-1,0))+1) ->  | X39: Rec. Materiais-001 | Y39: 9 | AA39: =IF($J39=$G$2,ROUND(IF(ISNUMBER(S39),S39,IF(LEFT(S39,2)="DI",HLOOKUP(S39,DADOS!$T$29:$X$30,2,FALSE),0)),4),"") -> 0.25
A40: S | B40: 0 | C40: 3 | D40: 1 | E40: 0 | F40: 0 | G40: 5 | H40: 0 | I40: 0 | J40: Insumo | K40: 3.1.0.5. | L40: Sites empresas | M40: Rec. Materiais | N40: 002 | O40: =IF(NOT(ISERROR($Y40)),IF($Y40<>FALSE,INDEX(Banco,$Y40,5),""),"") -> Kit de registrro de atividades e eventos | P40: Diária | Q40: 10 | R40: 9.17 | S40: DI 1 | T40: 11.46 | U40: 114.6 | W40: =IF(OR($A40=0,$A40="S",$A40>CFF!$A$9),"",MAX(W$11:OFFSET(W40,-1,0))+1) ->  | X40: Rec. Materiais-002 | Y40: 10 | AA40: =IF($J40=$G$2,ROUND(IF(ISNUMBER(S40),S40,IF(LEFT(S40,2)="DI",HLOOKUP(S40,DADOS!$T$29:$X$30,2,FALSE),0)),4),"") -> 0.25
A41: 2 | B41: 8 | C41: 3 | D41: 2 | E41: 0 | F41: 0 | G41: 0 | H41: 33 | I41: 8 | J41: AtivNível 1 | K41: 3.2. | O41: Qualificação do diálogo do público alvo com o projeto | R41: 0 | S41: DI 1 | T41: 0 | U41: 36866.76 | W41: =IF(OR($A41=0,$A41="S",$A41>CFF!$A$9),"",MAX(W$11:OFFSET(W41,-1,0))+1) -> 11 | X41: FALSE | Y41: FALSE | AA41: =IF($J41=$G$2,ROUND(IF(ISNUMBER(S41),S41,IF(LEFT(S41,2)="DI",HLOOKUP(S41,DADOS!$T$29:$X$30,2,FALSE),0)),4),"") -> 
A42: =CHOOSE(1+LOG(1+2*(J42=$C$2)+4*(J42=$D$2)+8*(J42=$E$2)+16*(J42=$F$2)+32*(J42=$G$2),2),0,1,2,3,4,"S") -> 3 | B42: =IF(OR(A42="S",A42=0),0,IF(ISERROR(I42),H42,SMALL(H42:I42,1))) -> 5 | C42: =IF($A42=1,OFFSET(C42,-1,0)+1,OFFSET(C42,-1,0)) -> 3 | D42: =IF($A42=1,0,IF($A42=2,OFFSET(D42,-1,0)+1,OFFSET(D42,-1,0))) -> 2 | E42: =IF(AND($A42<=2,$A42<>0),0,IF($A42=3,OFFSET(E42,-1,0)+1,OFFSET(E42,-1,0))) -> 1 | F42: =IF(AND($A42<=3,$A42<>0),0,IF($A42=4,OFFSET(F42,-1,0)+1,OFFSET(F42,-1,0))) -> 0 | G42: =IF(AND($A42<=4,$A42<>0),0,IF($A42="S",OFFSET(G42,-1,0)+1,OFFSET(G42,-1,0))) -> 0 | H42: 7 | I42: 5 | J42: AtivNível 2 | K42: =IF($A42=0,"-",CONCATENATE(C42&".",IF(AND($A$5>=2,$A42>=2),D42&".",""),IF(AND($A$5>=3,$A42>=3),E42&".",""),IF(AND($A$5>=4,$A42>=4),F42&".",""),IF($A42="S",G42&".",""))) -> 3.2.1. | L42: =IF(NOT(ISERROR($Y42)),IF($Y42<>FALSE,INDEX(Banco,$Y42,4),""),"") ->  | O42: Utilização de canais receptivos existentes, treinamento de atendimento e protocolo de registro | P42: =IF(NOT(ISERROR($Y42)),IF($Y42<>FALSE,INDEX(Banco,$Y42,6),""),"") ->  | R42: =IF(NOT(ISERROR($Y42)),IF($Y42<>FALSE,INDEX(Banco,$Y42,7),0),0) -> 0 | S42: DI 1 | T42: =IF($J42=$G$2,ROUND(ROUND($R42,2)*IF($R$9="Preço Unitário (R$)",1,1+$AA42),2),0) -> 0 | U42: =IF($A42="S",VTOTAL1,IF($A42=0,0,ROUND(SomaAgrup,2))) -> 13273.56 | W42: =IF(OR($A42=0,$A42="S",$A42>CFF!$A$9),"",MAX(W$11:OFFSET(W42,-1,0))+1) -> 12 | X42: =IF(AND($J42=$G$2,$N42<>"",$M42<>""),CONCATENATE($M42,"-",$N42)) -> FALSE | Y42: =IF(X42<>FALSE,MATCH(X42,OFFSET(Banco,0,0,,1),0)) -> FALSE | AA42: =IF($J42=$G$2,ROUND(IF(ISNUMBER(S42),S42,IF(LEFT(S42,2)="DI",HLOOKUP(S42,DADOS!$T$29:$X$30,2,FALSE),0)),4),"") -> 
A43: S | B43: 0 | C43: 3 | D43: 2 | E43: 1 | F43: 0 | G43: 1 | H43: 0 | I43: 0 | J43: Insumo | K43: 3.2.1.1. | L43: CFESS | M43: Rec. Humanos | N43: 002 | O43: =IF(NOT(ISERROR($Y43)),IF($Y43<>FALSE,INDEX(Banco,$Y43,5),""),"") -> Assistente social (assistente social graduação) | P43: H/t | Q43: 60 | R43: 157.29 | S43: DI 1 | T43: 196.61 | U43: 11796.6 | W43: =IF(OR($A43=0,$A43="S",$A43>CFF!$A$9),"",MAX(W$11:OFFSET(W43,-1,0))+1) ->  | X43: Rec. Humanos-002 | Y43: 4 | AA43: =IF($J43=$G$2,ROUND(IF(ISNUMBER(S43),S43,IF(LEFT(S43,2)="DI",HLOOKUP(S43,DADOS!$T$29:$X$30,2,FALSE),0)),4),"") -> 0.25
A44: =CHOOSE(1+LOG(1+2*(J44=$C$2)+4*(J44=$D$2)+8*(J44=$E$2)+16*(J44=$F$2)+32*(J44=$G$2),2),0,1,2,3,4,"S") -> S | B44: =IF(OR(A44="S",A44=0),0,IF(ISERROR(I44),H44,SMALL(H44:I44,1))) -> 0 | C44: =IF($A44=1,OFFSET(C44,-1,0)+1,OFFSET(C44,-1,0)) -> 3 | D44: =IF($A44=1,0,IF($A44=2,OFFSET(D44,-1,0)+1,OFFSET(D44,-1,0))) -> 2 | E44: =IF(AND($A44<=2,$A44<>0),0,IF($A44=3,OFFSET(E44,-1,0)+1,OFFSET(E44,-1,0))) -> 1 | F44: =IF(AND($A44<=3,$A44<>0),0,IF($A44=4,OFFSET(F44,-1,0)+1,OFFSET(F44,-1,0))) -> 0 | G44: =IF(AND($A44<=4,$A44<>0),0,IF($A44="S",OFFSET(G44,-1,0)+1,OFFSET(G44,-1,0))) -> 2 | H44: =IF(OR($A44="S",$A44=0),0,MATCH(0,OFFSET($B44,1,$A44,ROW($A$91)-ROW($A44)),0)) -> 0 | I44: =IF(OR($A44="S",$A44=0),0,MATCH(OFFSET($B44,0,$A44)+1,OFFSET($B44,1,$A44,ROW($A$91)-ROW($A44)),0)) -> 0 | J44: Insumo | K44: =IF($A44=0,"-",CONCATENATE(C44&".",IF(AND($A$5>=2,$A44>=2),D44&".",""),IF(AND($A$5>=3,$A44>=3),E44&".",""),IF(AND($A$5>=4,$A44>=4),F44&".",""),IF($A44="S",G44&".",""))) -> 3.2.1.2. | L44: =IF(NOT(ISERROR($Y44)),IF($Y44<>FALSE,INDEX(Banco,$Y44,4),""),"") -> Sites empresas | M44: Rec. Materiais | N44: 002 | O44: =IF(NOT(ISERROR($Y44)),IF($Y44<>FALSE,INDEX(Banco,$Y44,5),""),"") -> Kit de registrro de atividades e eventos | P44: =IF(NOT(ISERROR($Y44)),IF($Y44<>FALSE,INDEX(Banco,$Y44,6),""),"") -> Diária | Q44: 4 | R44: =IF(NOT(ISERROR($Y44)),IF($Y44<>FALSE,INDEX(Banco,$Y44,7),0),0) -> 9.17 | S44: DI 1 | T44: =IF($J44=$G$2,ROUND(ROUND($R44,2)*IF($R$9="Preço Unitário (R$)",1,1+$AA44),2),0) -> 11.46 | U44: =IF($A44="S",VTOTAL1,IF($A44=0,0,ROUND(SomaAgrup,2))) -> 45.84 | W44: =IF(OR($A44=0,$A44="S",$A44>CFF!$A$9),"",MAX(W$11:OFFSET(W44,-1,0))+1) ->  | X44: =IF(AND($J44=$G$2,$N44<>"",$M44<>""),CONCATENATE($M44,"-",$N44)) -> Rec. Materiais-002 | Y44: =IF(X44<>FALSE,MATCH(X44,OFFSET(Banco,0,0,,1),0)) -> 10 | AA44: =IF($J44=$G$2,ROUND(IF(ISNUMBER(S44),S44,IF(LEFT(S44,2)="DI",HLOOKUP(S44,DADOS!$T$29:$X$30,2,FALSE),0)),4),"") -> 0.25
A45: S | B45: 0 | C45: 3 | D45: 2 | E45: 1 | F45: 0 | G45: 3 | H45: 0 | I45: 0 | J45: Insumo | K45: 3.2.1.3. | L45: Sites empresas | M45: Rec. Materiais | N45: 004 | O45: =IF(NOT(ISERROR($Y45)),IF($Y45<>FALSE,INDEX(Banco,$Y45,5),""),"") -> Impressão laser colorida | P45: Página | Q45: 20 | R45: 3 | S45: DI 1 | T45: 3.75 | U45: 75 | W45: =IF(OR($A45=0,$A45="S",$A45>CFF!$A$9),"",MAX(W$11:OFFSET(W45,-1,0))+1) ->  | X45: Rec. Materiais-004 | Y45: 12 | AA45: =IF($J45=$G$2,ROUND(IF(ISNUMBER(S45),S45,IF(LEFT(S45,2)="DI",HLOOKUP(S45,DADOS!$T$29:$X$30,2,FALSE),0)),4),"") -> 0.25
A46: =CHOOSE(1+LOG(1+2*(J46=$C$2)+4*(J46=$D$2)+8*(J46=$E$2)+16*(J46=$F$2)+32*(J46=$G$2),2),0,1,2,3,4,"S") -> S | B46: =IF(OR(A46="S",A46=0),0,IF(ISERROR(I46),H46,SMALL(H46:I46,1))) -> 0 | C46: =IF($A46=1,OFFSET(C46,-1,0)+1,OFFSET(C46,-1,0)) -> 3 | D46: =IF($A46=1,0,IF($A46=2,OFFSET(D46,-1,0)+1,OFFSET(D46,-1,0))) -> 2 | E46: =IF(AND($A46<=2,$A46<>0),0,IF($A46=3,OFFSET(E46,-1,0)+1,OFFSET(E46,-1,0))) -> 1 | F46: =IF(AND($A46<=3,$A46<>0),0,IF($A46=4,OFFSET(F46,-1,0)+1,OFFSET(F46,-1,0))) -> 0 | G46: =IF(AND($A46<=4,$A46<>0),0,IF($A46="S",OFFSET(G46,-1,0)+1,OFFSET(G46,-1,0))) -> 4 | H46: 0 | I46: 0 | J46: Insumo | K46: =IF($A46=0,"-",CONCATENATE(C46&".",IF(AND($A$5>=2,$A46>=2),D46&".",""),IF(AND($A$5>=3,$A46>=3),E46&".",""),IF(AND($A$5>=4,$A46>=4),F46&".",""),IF($A46="S",G46&".",""))) -> 3.2.1.4. | L46: =IF(NOT(ISERROR($Y46)),IF($Y46<>FALSE,INDEX(Banco,$Y46,4),""),"") -> Sites empresas | M46: Rec. Materiais | N46: 001 | O46: =IF(NOT(ISERROR($Y46)),IF($Y46<>FALSE,INDEX(Banco,$Y46,5),""),"") -> Deslocamento (veículo, combustível, alimentação) | P46: =IF(NOT(ISERROR($Y46)),IF($Y46<>FALSE,INDEX(Banco,$Y46,6),""),"") -> Diária | Q46: 4 | R46: =IF(NOT(ISERROR($Y46)),IF($Y46<>FALSE,INDEX(Banco,$Y46,7),0),0) -> 271.22 | S46: DI 1 | T46: =IF($J46=$G$2,ROUND(ROUND($R46,2)*IF($R$9="Preço Unitário (R$)",1,1+$AA46),2),0) -> 339.03 | U46: =IF($A46="S",VTOTAL1,IF($A46=0,0,ROUND(SomaAgrup,2))) -> 1356.12 | W46: =IF(OR($A46=0,$A46="S",$A46>CFF!$A$9),"",MAX(W$11:OFFSET(W46,-1,0))+1) ->  | X46: =IF(AND($J46=$G$2,$N46<>"",$M46<>""),CONCATENATE($M46,"-",$N46)) -> Rec. Materiais-001 | Y46: =IF(X46<>FALSE,MATCH(X46,OFFSET(Banco,0,0,,1),0)) -> 9 | AA46: =IF($J46=$G$2,ROUND(IF(ISNUMBER(S46),S46,IF(LEFT(S46,2)="DI",HLOOKUP(S46,DADOS!$T$29:$X$30,2,FALSE),0)),4),"") -> 0.25
A47: 3 | B47: 2 | C47: 3 | D47: 2 | E47: 2 | F47: 0 | G47: 0 | H47: 2 | J47: AtivNível 2 | K47: 3.2.2. | O47: Relatório de ouvidoria | R47: 0 | S47: DI 1 | T47: 0 | U47: 23593.2 | W47: =IF(OR($A47=0,$A47="S",$A47>CFF!$A$9),"",MAX(W$11:OFFSET(W47,-1,0))+1) -> 13 | X47: FALSE | Y47: FALSE | AA47: =IF($J47=$G$2,ROUND(IF(ISNUMBER(S47),S47,IF(LEFT(S47,2)="DI",HLOOKUP(S47,DADOS!$T$29:$X$30,2,FALSE),0)),4),"") -> 
A48: S | B48: 0 | C48: 3 | D48: 2 | E48: 2 | F48: 0 | G48: 1 | H48: 0 | I48: 0 | J48: Insumo | K48: 3.2.2.1. | L48: CFESS | M48: Rec. Humanos | N48: 002 | O48: =IF(NOT(ISERROR($Y48)),IF($Y48<>FALSE,INDEX(Banco,$Y48,5),""),"") -> Assistente social (assistente social graduação) | P48: H/t | Q48: 120 | R48: 157.29 | S48: DI 1 | T48: 196.61 | U48: 23593.2 | W48: =IF(OR($A48=0,$A48="S",$A48>CFF!$A$9),"",MAX(W$11:OFFSET(W48,-1,0))+1) ->  | X48: Rec. Humanos-002 | Y48: 4 | AA48: =IF($J48=$G$2,ROUND(IF(ISNUMBER(S48),S48,IF(LEFT(S48,2)="DI",HLOOKUP(S48,DADOS!$T$29:$X$30,2,FALSE),0)),4),"") -> 0.25
A49: 2 | B49: 15 | C49: 3 | D49: 3 | E49: 0 | F49: 0 | G49: 0 | H49: 25 | I49: 15 | J49: AtivNível 1 | K49: 3.3. | O49: Visitas, plantões sociais e oficinas | R49: 0 | S49: DI 1 | T49: 0 | U49: 145893.47 | W49: =IF(OR($A49=0,$A49="S",$A49>CFF!$A$9),"",MAX(W$11:OFFSET(W49,-1,0))+1) -> 14 | X49: FALSE | Y49: FALSE | AA49: =IF($J49=$G$2,ROUND(IF(ISNUMBER(S49),S49,IF(LEFT(S49,2)="DI",HLOOKUP(S49,DADOS!$T$29:$X$30,2,FALSE),0)),4),"") -> 
A50: 3 | B50: 5 | C50: 3 | D50: 3 | E50: 1 | F50: 0 | G50: 0 | H50: 14 | I50: 5 | J50: AtivNível 2 | K50: 3.3.1. | O50: Visitas domicílios e estabelecimentos entorno das obras | R50: 0 | S50: DI 1 | T50: 0 | U50: 54196.2 | W50: =IF(OR($A50=0,$A50="S",$A50>CFF!$A$9),"",MAX(W$11:OFFSET(W50,-1,0))+1) -> 15 | X50: FALSE | Y50: FALSE | AA50: =IF($J50=$G$2,ROUND(IF(ISNUMBER(S50),S50,IF(LEFT(S50,2)="DI",HLOOKUP(S50,DADOS!$T$29:$X$30,2,FALSE),0)),4),"") -> 
A51: S | B51: 0 | C51: 3 | D51: 3 | E51: 1 | F51: 0 | G51: 1 | H51: 0 | I51: 0 | J51: Insumo | K51: 3.3.1.1. | L51: CFESS | M51: Rec. Humanos | N51: 001 | O51: =IF(NOT(ISERROR($Y51)),IF($Y51<>FALSE,INDEX(Banco,$Y51,5),""),"") -> Mobilizador social (assitente social graduação) | P51: H/t | Q51: 120 | R51: 157.29 | S51: DI 1 | T51: 196.61 | U51: 23593.2 | W51: =IF(OR($A51=0,$A51="S",$A51>CFF!$A$9),"",MAX(W$11:OFFSET(W51,-1,0))+1) ->  | X51: Rec. Humanos-001 | Y51: 3 | AA51: =IF($J51=$G$2,ROUND(IF(ISNUMBER(S51),S51,IF(LEFT(S51,2)="DI",HLOOKUP(S51,DADOS!$T$29:$X$30,2,FALSE),0)),4),"") -> 0.25
A52: S | B52: 0 | C52: 3 | D52: 3 | E52: 1 | F52: 0 | G52: 2 | H52: 0 | I52: 0 | J52: Insumo | K52: 3.3.1.2. | L52: CFESS | M52: Rec. Humanos | N52: 002 | O52: =IF(NOT(ISERROR($Y52)),IF($Y52<>FALSE,INDEX(Banco,$Y52,5),""),"") -> Assistente social (assistente social graduação) | P52: H/t | Q52: 120 | R52: 157.29 | S52: DI 1 | T52: 196.61 | U52: 23593.2 | W52: =IF(OR($A52=0,$A52="S",$A52>CFF!$A$9),"",MAX(W$11:OFFSET(W52,-1,0))+1) ->  | X52: Rec. Humanos-002 | Y52: 4 | AA52: =IF($J52=$G$2,ROUND(IF(ISNUMBER(S52),S52,IF(LEFT(S52,2)="DI",HLOOKUP(S52,DADOS!$T$29:$X$30,2,FALSE),0)),4),"") -> 0.25
A53: S | B53: 0 | C53: 3 | D53: 3 | E53: 1 | F53: 0 | G53: 3 | H53: 0 | I53: 0 | J53: Insumo | K53: 3.3.1.3. | L53: Sites empresas | M53: Rec. Materiais | N53: 001 | O53: =IF(NOT(ISERROR($Y53)),IF($Y53<>FALSE,INDEX(Banco,$Y53,5),""),"") -> Deslocamento (veículo, combustível, alimentação) | P53: Diária | Q53: 20 | R53: 271.22 | S53: DI 1 | T53: 339.03 | U53: 6780.6 | W53: =IF(OR($A53=0,$A53="S",$A53>CFF!$A$9),"",MAX(W$11:OFFSET(W53,-1,0))+1) ->  | X53: Rec. Materiais-001 | Y53: 9 | AA53: =IF($J53=$G$2,ROUND(IF(ISNUMBER(S53),S53,IF(LEFT(S53,2)="DI",HLOOKUP(S53,DADOS!$T$29:$X$30,2,FALSE),0)),4),"") -> 0.25
A54: S | B54: 0 | C54: 3 | D54: 3 | E54: 1 | F54: 0 | G54: 4 | H54: 0 | I54: 0 | J54: Insumo | K54: 3.3.1.4. | L54: Sites empresas | M54: Rec. Materiais | N54: 002 | O54: =IF(NOT(ISERROR($Y54)),IF($Y54<>FALSE,INDEX(Banco,$Y54,5),""),"") -> Kit de registrro de atividades e eventos | P54: Diária | Q54: 20 | R54: 9.17 | S54: DI 1 | T54: 11.46 | U54: 229.2 | W54: =IF(OR($A54=0,$A54="S",$A54>CFF!$A$9),"",MAX(W$11:OFFSET(W54,-1,0))+1) ->  | X54: Rec. Materiais-002 | Y54: 10 | AA54: =IF($J54=$G$2,ROUND(IF(ISNUMBER(S54),S54,IF(LEFT(S54,2)="DI",HLOOKUP(S54,DADOS!$T$29:$X$30,2,FALSE),0)),4),"") -> 0.25
A55: 3 | B55: 9 | C55: 3 | D55: 3 | E55: 2 | F55: 0 | G55: 0 | H55: 9 | J55: AtivNível 2 | K55: 3.3.2. | O55: Realização de plantões sociais | R55: 0 | S55: DI 1 | T55: 0 | U55: 91697.27 | W55: =IF(OR($A55=0,$A55="S",$A55>CFF!$A$9),"",MAX(W$11:OFFSET(W55,-1,0))+1) -> 16 | X55: FALSE | Y55: FALSE | AA55: =IF($J55=$G$2,ROUND(IF(ISNUMBER(S55),S55,IF(LEFT(S55,2)="DI",HLOOKUP(S55,DADOS!$T$29:$X$30,2,FALSE),0)),4),"") -> 
A56: S | B56: 0 | C56: 3 | D56: 3 | E56: 2 | F56: 0 | G56: 1 | H56: 0 | I56: 0 | J56: Insumo | K56: 3.3.2.1. | L56: CFESS | M56: Rec. Humanos | N56: 001 | O56: =IF(NOT(ISERROR($Y56)),IF($Y56<>FALSE,INDEX(Banco,$Y56,5),""),"") -> Mobilizador social (assitente social graduação) | P56: H/t | Q56: 120 | R56: 157.29 | S56: DI 1 | T56: 196.61 | U56: 23593.2 | W56: =IF(OR($A56=0,$A56="S",$A56>CFF!$A$9),"",MAX(W$11:OFFSET(W56,-1,0))+1) ->  | X56: Rec. Humanos-001 | Y56: 3 | AA56: =IF($J56=$G$2,ROUND(IF(ISNUMBER(S56),S56,IF(LEFT(S56,2)="DI",HLOOKUP(S56,DADOS!$T$29:$X$30,2,FALSE),0)),4),"") -> 0.25
A57: S | B57: 0 | C57: 3 | D57: 3 | E57: 2 | F57: 0 | G57: 2 | H57: 0 | I57: 0 | J57: Insumo | K57: 3.3.2.2. | L57: CFESS | M57: Rec. Humanos | N57: 002 | O57: Assistente social (assistente social graduação) | P57: H/t | Q57: 120 | R57: 157.29 | S57: DI 1 | T57: 196.61 | U57: 23593.2 | W57: =IF(OR($A57=0,$A57="S",$A57>CFF!$A$9),"",MAX(W$11:OFFSET(W57,-1,0))+1) ->  | X57: Rec. Humanos-002 | Y57: 4 | AA57: =IF($J57=$G$2,ROUND(IF(ISNUMBER(S57),S57,IF(LEFT(S57,2)="DI",HLOOKUP(S57,DADOS!$T$29:$X$30,2,FALSE),0)),4),"") -> 0.25
A58: S | B58: 0 | C58: 3 | D58: 3 | E58: 2 | F58: 0 | G58: 3 | H58: 0 | I58: 0 | J58: Insumo | K58: 3.3.2.3. | L58: Verba arbitrada | M58: Serv. Terc. | N58: 001 | O58: Contratação de oficineiros e artistas conforme demanda | P58: Evento | Q58: 10 | R58: 3000 | S58: DI 1 | T58: 3750 | U58: 37500 | W58: =IF(OR($A58=0,$A58="S",$A58>CFF!$A$9),"",MAX(W$11:OFFSET(W58,-1,0))+1) ->  | X58: Serv. Terc.-001 | Y58: 15 | AA58: =IF($J58=$G$2,ROUND(IF(ISNUMBER(S58),S58,IF(LEFT(S58,2)="DI",HLOOKUP(S58,DADOS!$T$29:$X$30,2,FALSE),0)),4),"") -> 0.25
A59: S | B59: 0 | C59: 3 | D59: 3 | E59: 2 | F59: 0 | G59: 4 | H59: 0 | I59: 0 | J59: Insumo | K59: 3.3.2.4. | L59: Sites empresas | M59: Rec. Materiais | N59: 001 | O59: Deslocamento (veículo, combustível, alimentação) | P59: Diária | Q59: 12 | R59: 271.22 | S59: DI 1 | T59: 339.03 | U59: 4068.36 | W59: =IF(OR($A59=0,$A59="S",$A59>CFF!$A$9),"",MAX(W$11:OFFSET(W59,-1,0))+1) ->  | X59: Rec. Materiais-001 | Y59: 9 | AA59: =IF($J59=$G$2,ROUND(IF(ISNUMBER(S59),S59,IF(LEFT(S59,2)="DI",HLOOKUP(S59,DADOS!$T$29:$X$30,2,FALSE),0)),4),"") -> 0.25
A60: S | B60: 0 | C60: 3 | D60: 3 | E60: 2 | F60: 0 | G60: 5 | H60: 0 | I60: 0 | J60: Insumo | K60: 3.3.2.5. | L60: Sites empresas | M60: Rec. Materiais | N60: 002 | O60: Kit de registrro de atividades e eventos | P60: Diária | Q60: 12 | R60: 9.17 | S60: DI 1 | T60: 11.46 | U60: 137.52 | W60: =IF(OR($A60=0,$A60="S",$A60>CFF!$A$9),"",MAX(W$11:OFFSET(W60,-1,0))+1) ->  | X60: Rec. Materiais-002 | Y60: 10 | AA60: =IF($J60=$G$2,ROUND(IF(ISNUMBER(S60),S60,IF(LEFT(S60,2)="DI",HLOOKUP(S60,DADOS!$T$29:$X$30,2,FALSE),0)),4),"") -> 0.25
A61: S | B61: 0 | C61: 3 | D61: 3 | E61: 2 | F61: 0 | G61: 6 | H61: 0 | I61: 0 | J61: Insumo | K61: 3.3.2.6. | L61: Sites empresas | M61: Rec. Materiais | N61: 004 | O61: Impressão laser colorida | P61: Página | Q61: 200 | R61: 3 | S61: DI 1 | T61: 3.75 | U61: 750 | W61: =IF(OR($A61=0,$A61="S",$A61>CFF!$A$9),"",MAX(W$11:OFFSET(W61,-1,0))+1) ->  | X61: Rec. Materiais-004 | Y61: 12 | AA61: =IF($J61=$G$2,ROUND(IF(ISNUMBER(S61),S61,IF(LEFT(S61,2)="DI",HLOOKUP(S61,DADOS!$T$29:$X$30,2,FALSE),0)),4),"") -> 0.25
A62: S | B62: 0 | C62: 3 | D62: 3 | E62: 2 | F62: 0 | G62: 7 | H62: 0 | I62: 0 | J62: Insumo | K62: 3.3.2.7. | L62: Sites empresas | M62: Rec. Materiais | N62: 005 | O62: Locação de tenda articulada 3x3 metros | P62: Diária | Q62: 6 | R62: 200 | S62: DI 1 | T62: 250 | U62: 1500 | W62: =IF(OR($A62=0,$A62="S",$A62>CFF!$A$9),"",MAX(W$11:OFFSET(W62,-1,0))+1) ->  | X62: Rec. Materiais-005 | Y62: 13 | AA62: =IF($J62=$G$2,ROUND(IF(ISNUMBER(S62),S62,IF(LEFT(S62,2)="DI",HLOOKUP(S62,DADOS!$T$29:$X$30,2,FALSE),0)),4),"") -> 0.25
A63: S | B63: 0 | C63: 3 | D63: 3 | E63: 2 | F63: 0 | G63: 8 | H63: 0 | I63: 0 | J63: Insumo | K63: 3.3.2.8. | L63: Sites empresas | M63: Rec. Materiais | N63: 006 | O63: Mesa plástica desmontável com 4 cadeiras branco | P63: Conjunto | Q63: 1 | R63: 443.99 | S63: DI 1 | T63: 554.99 | U63: 554.99 | W63: =IF(OR($A63=0,$A63="S",$A63>CFF!$A$9),"",MAX(W$11:OFFSET(W63,-1,0))+1) ->  | X63: Rec. Materiais-006 | Y63: 14 | AA63: =IF($J63=$G$2,ROUND(IF(ISNUMBER(S63),S63,IF(LEFT(S63,2)="DI",HLOOKUP(S63,DADOS!$T$29:$X$30,2,FALSE),0)),4),"") -> 0.25
A64: 2 | B64: 6 | C64: 3 | D64: 4 | E64: 0 | F64: 0 | G64: 0 | H64: 10 | I64: 6 | J64: AtivNível 1 | K64: 3.4. | O64: Capacitação de multiplicadores em educação sanitária e ambiental | R64: 0 | S64: DI 1 | T64: 0 | U64: 23540.9 | W64: =IF(OR($A64=0,$A64="S",$A64>CFF!$A$9),"",MAX(W$11:OFFSET(W64,-1,0))+1) -> 17 | X64: FALSE | Y64: FALSE | AA64: =IF($J64=$G$2,ROUND(IF(ISNUMBER(S64),S64,IF(LEFT(S64,2)="DI",HLOOKUP(S64,DADOS!$T$29:$X$30,2,FALSE),0)),4),"") -> 
A65: S | B65: 0 | C65: 3 | D65: 4 | E65: 0 | F65: 0 | G65: 1 | H65: 0 | I65: 0 | J65: Insumo | K65: 3.4.0.1. | L65: CFESS | M65: Rec. Humanos | N65: 001 | O65: =IF(NOT(ISERROR($Y65)),IF($Y65<>FALSE,INDEX(Banco,$Y65,5),""),"") -> Mobilizador social (assitente social graduação) | P65: H/t | Q65: 60 | R65: 157.29 | S65: DI 1 | T65: 196.61 | U65: 11796.6 | W65: =IF(OR($A65=0,$A65="S",$A65>CFF!$A$9),"",MAX(W$11:OFFSET(W65,-1,0))+1) ->  | X65: Rec. Humanos-001 | Y65: 3 | AA65: =IF($J65=$G$2,ROUND(IF(ISNUMBER(S65),S65,IF(LEFT(S65,2)="DI",HLOOKUP(S65,DADOS!$T$29:$X$30,2,FALSE),0)),4),"") -> 0.25
A66: S | B66: 0 | C66: 3 | D66: 4 | E66: 0 | F66: 0 | G66: 2 | H66: 0 | I66: 0 | J66: Insumo | K66: 3.4.0.2. | L66: CFESS | M66: Rec. Humanos | N66: 002 | O66: =IF(NOT(ISERROR($Y66)),IF($Y66<>FALSE,INDEX(Banco,$Y66,5),""),"") -> Assistente social (assistente social graduação) | P66: H/t | Q66: 40 | R66: 157.29 | S66: DI 1 | T66: 196.61 | U66: 7864.4 | W66: =IF(OR($A66=0,$A66="S",$A66>CFF!$A$9),"",MAX(W$11:OFFSET(W66,-1,0))+1) ->  | X66: Rec. Humanos-002 | Y66: 4 | AA66: =IF($J66=$G$2,ROUND(IF(ISNUMBER(S66),S66,IF(LEFT(S66,2)="DI",HLOOKUP(S66,DADOS!$T$29:$X$30,2,FALSE),0)),4),"") -> 0.25
A67: S | B67: 0 | C67: 3 | D67: 4 | E67: 0 | F67: 0 | G67: 3 | H67: 0 | I67: 0 | J67: Insumo | K67: 3.4.0.3. | L67: Sites empresas | M67: Rec. Materiais | N67: 001 | O67: =IF(NOT(ISERROR($Y67)),IF($Y67<>FALSE,INDEX(Banco,$Y67,5),""),"") -> Deslocamento (veículo, combustível, alimentação) | P67: Diária | Q67: 10 | R67: 271.22 | S67: DI 1 | T67: 339.03 | U67: 3390.3 | W67: =IF(OR($A67=0,$A67="S",$A67>CFF!$A$9),"",MAX(W$11:OFFSET(W67,-1,0))+1) ->  | X67: Rec. Materiais-001 | Y67: 9 | AA67: =IF($J67=$G$2,ROUND(IF(ISNUMBER(S67),S67,IF(LEFT(S67,2)="DI",HLOOKUP(S67,DADOS!$T$29:$X$30,2,FALSE),0)),4),"") -> 0.25
A68: S | B68: 0 | C68: 3 | D68: 4 | E68: 0 | F68: 0 | G68: 4 | H68: 0 | I68: 0 | J68: Insumo | K68: 3.4.0.4. | L68: Sites empresas | M68: Rec. Materiais | N68: 002 | O68: =IF(NOT(ISERROR($Y68)),IF($Y68<>FALSE,INDEX(Banco,$Y68,5),""),"") -> Kit de registrro de atividades e eventos | P68: Diária | Q68: 10 | R68: 9.17 | S68: DI 1 | T68: 11.46 | U68: 114.6 | W68: =IF(OR($A68=0,$A68="S",$A68>CFF!$A$9),"",MAX(W$11:OFFSET(W68,-1,0))+1) ->  | X68: Rec. Materiais-002 | Y68: 10 | AA68: =IF($J68=$G$2,ROUND(IF(ISNUMBER(S68),S68,IF(LEFT(S68,2)="DI",HLOOKUP(S68,DADOS!$T$29:$X$30,2,FALSE),0)),4),"") -> 0.25
A69: S | B69: 0 | C69: 3 | D69: 4 | E69: 0 | F69: 0 | G69: 5 | H69: 0 | I69: 0 | J69: Insumo | K69: 3.4.0.5. | L69: Sites empresas | M69: Rec. Materiais | N69: 004 | O69: =IF(NOT(ISERROR($Y69)),IF($Y69<>FALSE,INDEX(Banco,$Y69,5),""),"") -> Impressão laser colorida | P69: Página | Q69: 100 | R69: 3 | S69: DI 1 | T69: 3.75 | U69: 375 | W69: =IF(OR($A69=0,$A69="S",$A69>CFF!$A$9),"",MAX(W$11:OFFSET(W69,-1,0))+1) ->  | X69: Rec. Materiais-004 | Y69: 12 | AA69: =IF($J69=$G$2,ROUND(IF(ISNUMBER(S69),S69,IF(LEFT(S69,2)="DI",HLOOKUP(S69,DADOS!$T$29:$X$30,2,FALSE),0)),4),"") -> 0.25
A70: 2 | B70: 4 | C70: 3 | D70: 5 | E70: 0 | F70: 0 | G70: 0 | H70: 4 | J70: AtivNível 1 | K70: 3.5. | O70: Programa de webnários sobre o Projeto | R70: 0 | S70: DI 1 | T70: 0 | U70: 12338.24 | W70: =IF(OR($A70=0,$A70="S",$A70>CFF!$A$9),"",MAX(W$11:OFFSET(W70,-1,0))+1) -> 18 | X70: FALSE | Y70: FALSE | AA70: =IF($J70=$G$2,ROUND(IF(ISNUMBER(S70),S70,IF(LEFT(S70,2)="DI",HLOOKUP(S70,DADOS!$T$29:$X$30,2,FALSE),0)),4),"") -> 
A71: =CHOOSE(1+LOG(1+2*(J71=$C$2)+4*(J71=$D$2)+8*(J71=$E$2)+16*(J71=$F$2)+32*(J71=$G$2),2),0,1,2,3,4,"S") -> S | B71: =IF(OR(A71="S",A71=0),0,IF(ISERROR(I71),H71,SMALL(H71:I71,1))) -> 0 | C71: =IF($A71=1,OFFSET(C71,-1,0)+1,OFFSET(C71,-1,0)) -> 3 | D71: =IF($A71=1,0,IF($A71=2,OFFSET(D71,-1,0)+1,OFFSET(D71,-1,0))) -> 5 | E71: =IF(AND($A71<=2,$A71<>0),0,IF($A71=3,OFFSET(E71,-1,0)+1,OFFSET(E71,-1,0))) -> 0 | F71: =IF(AND($A71<=3,$A71<>0),0,IF($A71=4,OFFSET(F71,-1,0)+1,OFFSET(F71,-1,0))) -> 0 | G71: =IF(AND($A71<=4,$A71<>0),0,IF($A71="S",OFFSET(G71,-1,0)+1,OFFSET(G71,-1,0))) -> 1 | H71: 0 | I71: 0 | J71: Insumo | K71: =IF($A71=0,"-",CONCATENATE(C71&".",IF(AND($A$5>=2,$A71>=2),D71&".",""),IF(AND($A$5>=3,$A71>=3),E71&".",""),IF(AND($A$5>=4,$A71>=4),F71&".",""),IF($A71="S",G71&".",""))) -> 3.5.0.1. | L71: =IF(NOT(ISERROR($Y71)),IF($Y71<>FALSE,INDEX(Banco,$Y71,4),""),"") -> FIPE Salariômetro | M71: Rec. Humanos | N71: 005 | O71: =IF(NOT(ISERROR($Y71)),IF($Y71<>FALSE,INDEX(Banco,$Y71,5),""),"") -> Profissional da área de comunicação, relações públicas (CBO 142325 - Relações públicas) | P71: =IF(NOT(ISERROR($Y71)),IF($Y71<>FALSE,INDEX(Banco,$Y71,6),""),"") -> H/t | Q71: 100 | R71: =IF(NOT(ISERROR($Y71)),IF($Y71<>FALSE,INDEX(Banco,$Y71,7),0),0) -> 35.42 | S71: DI 1 | T71: =IF($J71=$G$2,ROUND(ROUND($R71,2)*IF($R$9="Preço Unitário (R$)",1,1+$AA71),2),0) -> 44.28 | U71: =IF($A71="S",VTOTAL1,IF($A71=0,0,ROUND(SomaAgrup,2))) -> 4428 | W71: =IF(OR($A71=0,$A71="S",$A71>CFF!$A$9),"",MAX(W$11:OFFSET(W71,-1,0))+1) ->  | X71: =IF(AND($J71=$G$2,$N71<>"",$M71<>""),CONCATENATE($M71,"-",$N71)) -> Rec. Humanos-005 | Y71: =IF(X71<>FALSE,MATCH(X71,OFFSET(Banco,0,0,,1),0)) -> 7 | AA71: =IF($J71=$G$2,ROUND(IF(ISNUMBER(S71),S71,IF(LEFT(S71,2)="DI",HLOOKUP(S71,DADOS!$T$29:$X$30,2,FALSE),0)),4),"") -> 0.25
A72: S | B72: 0 | C72: 3 | D72: 5 | E72: 0 | F72: 0 | G72: 2 | H72: 0 | I72: 0 | J72: Insumo | K72: 3.5.0.2. | L72: CFESS | M72: Rec. Humanos | N72: 002 | O72: =IF(NOT(ISERROR($Y72)),IF($Y72<>FALSE,INDEX(Banco,$Y72,5),""),"") -> Assistente social (assistente social graduação) | P72: H/t | Q72: 40 | R72: 157.29 | S72: DI 1 | T72: 196.61 | U72: 7864.4 | W72: =IF(OR($A72=0,$A72="S",$A72>CFF!$A$9),"",MAX(W$11:OFFSET(W72,-1,0))+1) ->  | X72: Rec. Humanos-002 | Y72: 4 | AA72: =IF($J72=$G$2,ROUND(IF(ISNUMBER(S72),S72,IF(LEFT(S72,2)="DI",HLOOKUP(S72,DADOS!$T$29:$X$30,2,FALSE),0)),4),"") -> 0.25
A73: S | B73: 0 | C73: 3 | D73: 5 | E73: 0 | F73: 0 | G73: 3 | H73: 0 | I73: 0 | J73: Insumo | K73: 3.5.0.3. | L73: Sites empresas | M73: Rec. Materiais | N73: 002 | O73: =IF(NOT(ISERROR($Y73)),IF($Y73<>FALSE,INDEX(Banco,$Y73,5),""),"") -> Kit de registrro de atividades e eventos | P73: Diária | Q73: 4 | R73: 9.17 | S73: DI 1 | T73: 11.46 | U73: 45.84 | W73: =IF(OR($A73=0,$A73="S",$A73>CFF!$A$9),"",MAX(W$11:OFFSET(W73,-1,0))+1) ->  | X73: Rec. Materiais-002 | Y73: 10 | AA73: =IF($J73=$G$2,ROUND(IF(ISNUMBER(S73),S73,IF(LEFT(S73,2)="DI",HLOOKUP(S73,DADOS!$T$29:$X$30,2,FALSE),0)),4),"") -> 0.25
A74: =CHOOSE(1+LOG(1+2*(J74=$C$2)+4*(J74=$D$2)+8*(J74=$E$2)+16*(J74=$F$2)+32*(J74=$G$2),2),0,1,2,3,4,"S") -> 1 | B74: =IF(OR(A74="S",A74=0),0,IF(ISERROR(I74),H74,SMALL(H74:I74,1))) -> 7 | C74: =IF($A74=1,OFFSET(C74,-1,0)+1,OFFSET(C74,-1,0)) -> 4 | D74: =IF($A74=1,0,IF($A74=2,OFFSET(D74,-1,0)+1,OFFSET(D74,-1,0))) -> 0 | E74: =IF(AND($A74<=2,$A74<>0),0,IF($A74=3,OFFSET(E74,-1,0)+1,OFFSET(E74,-1,0))) -> 0 | F74: =IF(AND($A74<=3,$A74<>0),0,IF($A74=4,OFFSET(F74,-1,0)+1,OFFSET(F74,-1,0))) -> 0 | G74: =IF(AND($A74<=4,$A74<>0),0,IF($A74="S",OFFSET(G74,-1,0)+1,OFFSET(G74,-1,0))) -> 0 | H74: 17 | I74: 7 | J74: Ação | K74: =IF($A74=0,"-",CONCATENATE(C74&".",IF(AND($A$5>=2,$A74>=2),D74&".",""),IF(AND($A$5>=3,$A74>=3),E74&".",""),IF(AND($A$5>=4,$A74>=4),F74&".",""),IF($A74="S",G74&".",""))) -> 4. | L74: =IF(NOT(ISERROR($Y74)),IF($Y74<>FALSE,INDEX(Banco,$Y74,4),""),"") ->  | O74: Geração de trabalho e renda | P74: =IF(NOT(ISERROR($Y74)),IF($Y74<>FALSE,INDEX(Banco,$Y74,6),""),"") ->  | R74: =IF(NOT(ISERROR($Y74)),IF($Y74<>FALSE,INDEX(Banco,$Y74,7),0),0) -> 0 | S74: DI 1 | T74: =IF($J74=$G$2,ROUND(ROUND($R74,2)*IF($R$9="Preço Unitário (R$)",1,1+$AA74),2),0) -> 0 | U74: =IF($A74="S",VTOTAL1,IF($A74=0,0,ROUND(SomaAgrup,2))) -> 25370.16 | W74: =IF(OR($A74=0,$A74="S",$A74>CFF!$A$9),"",MAX(W$11:OFFSET(W74,-1,0))+1) -> 19 | X74: =IF(AND($J74=$G$2,$N74<>"",$M74<>""),CONCATENATE($M74,"-",$N74)) -> FALSE | Y74: =IF(X74<>FALSE,MATCH(X74,OFFSET(Banco,0,0,,1),0)) -> FALSE | AA74: =IF($J74=$G$2,ROUND(IF(ISNUMBER(S74),S74,IF(LEFT(S74,2)="DI",HLOOKUP(S74,DADOS!$T$29:$X$30,2,FALSE),0)),4),"") -> 
A75: 2 | B75: 6 | C75: 4 | D75: 1 | E75: 0 | F75: 0 | G75: 0 | H75: 6 | I75: 10 | J75: AtivNível 1 | K75: 4.1. | O75: Oficinas de capacitação produtiva e geração de renda | R75: 0 | S75: DI 1 | T75: 0 | U75: 25370.16 | W75: =IF(OR($A75=0,$A75="S",$A75>CFF!$A$9),"",MAX(W$11:OFFSET(W75,-1,0))+1) -> 20 | X75: FALSE | Y75: FALSE | AA75: =IF($J75=$G$2,ROUND(IF(ISNUMBER(S75),S75,IF(LEFT(S75,2)="DI",HLOOKUP(S75,DADOS!$T$29:$X$30,2,FALSE),0)),4),"") -> 
A76: S | B76: 0 | C76: 4 | D76: 1 | E76: 0 | F76: 0 | G76: 1 | H76: 0 | I76: 0 | J76: Insumo | K76: 4.1.0.1. | L76: CFESS | M76: Rec. Humanos | N76: 001 | O76: =IF(NOT(ISERROR($Y76)),IF($Y76<>FALSE,INDEX(Banco,$Y76,5),""),"") -> Mobilizador social (assitente social graduação) | P76: H/t | Q76: 60 | R76: 157.29 | S76: DI 1 | T76: 196.61 | U76: 11796.6 | W76: =IF(OR($A76=0,$A76="S",$A76>CFF!$A$9),"",MAX(W$11:OFFSET(W76,-1,0))+1) ->  | X76: Rec. Humanos-001 | Y76: 3 | AA76: =IF($J76=$G$2,ROUND(IF(ISNUMBER(S76),S76,IF(LEFT(S76,2)="DI",HLOOKUP(S76,DADOS!$T$29:$X$30,2,FALSE),0)),4),"") -> 0.25
A77: S | B77: 0 | C77: 4 | D77: 1 | E77: 0 | F77: 0 | G77: 2 | H77: =IF(OR($A77="S",$A77=0),0,MATCH(0,OFFSET($B77,1,$A77,ROW($A$91)-ROW($A77)),0)) -> 0 | I77: =IF(OR($A77="S",$A77=0),0,MATCH(OFFSET($B77,0,$A77)+1,OFFSET($B77,1,$A77,ROW($A$91)-ROW($A77)),0)) -> 0 | J77: Insumo | K77: 4.1.0.2. | L77: CFESS | M77: Rec. Humanos | N77: 002 | O77: =IF(NOT(ISERROR($Y77)),IF($Y77<>FALSE,INDEX(Banco,$Y77,5),""),"") -> Assistente social (assistente social graduação) | P77: H/t | Q77: 60 | R77: 157.29 | S77: DI 1 | T77: 196.61 | U77: 11796.6 | W77: =IF(OR($A77=0,$A77="S",$A77>CFF!$A$9),"",MAX(W$11:OFFSET(W77,-1,0))+1) ->  | X77: Rec. Humanos-002 | Y77: 4 | AA77: =IF($J77=$G$2,ROUND(IF(ISNUMBER(S77),S77,IF(LEFT(S77,2)="DI",HLOOKUP(S77,DADOS!$T$29:$X$30,2,FALSE),0)),4),"") -> 0.25
A78: S | B78: 0 | C78: 4 | D78: 1 | E78: 0 | F78: 0 | G78: 3 | H78: 0 | I78: 0 | J78: Insumo | K78: 4.1.0.3. | L78: Sites empresas | M78: Rec. Materiais | N78: 001 | O78: =IF(NOT(ISERROR($Y78)),IF($Y78<>FALSE,INDEX(Banco,$Y78,5),""),"") -> Deslocamento (veículo, combustível, alimentação) | P78: Diária | Q78: 4 | R78: 271.22 | S78: DI 1 | T78: 339.03 | U78: 1356.12 | W78: =IF(OR($A78=0,$A78="S",$A78>CFF!$A$9),"",MAX(W$11:OFFSET(W78,-1,0))+1) ->  | X78: Rec. Materiais-001 | Y78: 9 | AA78: =IF($J78=$G$2,ROUND(IF(ISNUMBER(S78),S78,IF(LEFT(S78,2)="DI",HLOOKUP(S78,DADOS!$T$29:$X$30,2,FALSE),0)),4),"") -> 0.25
A79: S | B79: 0 | C79: 4 | D79: 1 | E79: 0 | F79: 0 | G79: 4 | H79: 0 | I79: 0 | J79: Insumo | K79: 4.1.0.4. | L79: Sites empresas | M79: Rec. Materiais | N79: 002 | O79: =IF(NOT(ISERROR($Y79)),IF($Y79<>FALSE,INDEX(Banco,$Y79,5),""),"") -> Kit de registrro de atividades e eventos | P79: Diária | Q79: 4 | R79: 9.17 | S79: DI 1 | T79: 11.46 | U79: 45.84 | W79: =IF(OR($A79=0,$A79="S",$A79>CFF!$A$9),"",MAX(W$11:OFFSET(W79,-1,0))+1) ->  | X79: Rec. Materiais-002 | Y79: 10 | AA79: =IF($J79=$G$2,ROUND(IF(ISNUMBER(S79),S79,IF(LEFT(S79,2)="DI",HLOOKUP(S79,DADOS!$T$29:$X$30,2,FALSE),0)),4),"") -> 0.25
A80: S | B80: 0 | C80: 4 | D80: 1 | E80: 0 | F80: 0 | G80: 5 | H80: 0 | I80: 0 | J80: Insumo | K80: 4.1.0.5. | L80: Sites empresas | M80: Rec. Materiais | N80: 004 | O80: =IF(NOT(ISERROR($Y80)),IF($Y80<>FALSE,INDEX(Banco,$Y80,5),""),"") -> Impressão laser colorida | P80: Página | Q80: 100 | R80: 3 | S80: DI 1 | T80: 3.75 | U80: 375 | W80: =IF(OR($A80=0,$A80="S",$A80>CFF!$A$9),"",MAX(W$11:OFFSET(W80,-1,0))+1) ->  | X80: Rec. Materiais-004 | Y80: 12 | AA80: =IF($J80=$G$2,ROUND(IF(ISNUMBER(S80),S80,IF(LEFT(S80,2)="DI",HLOOKUP(S80,DADOS!$T$29:$X$30,2,FALSE),0)),4),"") -> 0.25
A81: 1 | B81: 10 | C81: 5 | D81: 0 | E81: 0 | F81: 0 | G81: 0 | H81: 10 | J81: Ação | K81: 5. | O81: Monitoramento e relatoria | R81: 0 | S81: DI 1 | T81: 0 | U81: 46228.5 | W81: =IF(OR($A81=0,$A81="S",$A81>CFF!$A$9),"",MAX(W$11:OFFSET(W81,-1,0))+1) -> 21 | X81: FALSE | Y81: FALSE | AA81: =IF($J81=$G$2,ROUND(IF(ISNUMBER(S81),S81,IF(LEFT(S81,2)="DI",HLOOKUP(S81,DADOS!$T$29:$X$30,2,FALSE),0)),4),"") -> 
A82: 2 | B82: 3 | C82: 5 | D82: 1 | E82: 0 | F82: 0 | G82: 0 | H82: 9 | I82: 3 | J82: AtivNível 1 | K82: 5.1. | O82: Elaboração de relatórios mensais das atividades | R82: 0 | S82: DI 1 | T82: 0 | U82: 31525.8 | W82: =IF(OR($A82=0,$A82="S",$A82>CFF!$A$9),"",MAX(W$11:OFFSET(W82,-1,0))+1) -> 22 | X82: FALSE | Y82: FALSE | AA82: =IF($J82=$G$2,ROUND(IF(ISNUMBER(S82),S82,IF(LEFT(S82,2)="DI",HLOOKUP(S82,DADOS!$T$29:$X$30,2,FALSE),0)),4),"") -> 
A83: S | B83: 0 | C83: 5 | D83: 1 | E83: 0 | F83: 0 | G83: 1 | H83: 0 | I83: 0 | J83: Insumo | K83: 5.1.0.1. | L83: CFESS | M83: Rec. Humanos | N83: 003 | O83: =IF(NOT(ISERROR($Y83)),IF($Y83<>FALSE,INDEX(Banco,$Y83,5),""),"") -> Analista pesquisa, consultor social (assistente social mestrado) | P83: H/t | Q83: 80 | R83: 222.41 | S83: DI 1 | T83: 278.01 | U83: 22240.8 | W83: =IF(OR($A83=0,$A83="S",$A83>CFF!$A$9),"",MAX(W$11:OFFSET(W83,-1,0))+1) ->  | X83: Rec. Humanos-003 | Y83: 5 | AA83: =IF($J83=$G$2,ROUND(IF(ISNUMBER(S83),S83,IF(LEFT(S83,2)="DI",HLOOKUP(S83,DADOS!$T$29:$X$30,2,FALSE),0)),4),"") -> 0.25
A84: S | B84: 0 | C84: 5 | D84: 1 | E84: 0 | F84: 0 | G84: 2 | H84: 0 | I84: 0 | J84: Insumo | K84: 5.1.0.2. | L84: FIPE Salariômetro | M84: Rec. Humanos | N84: 006 | O84: =IF(NOT(ISERROR($Y84)),IF($Y84<>FALSE,INDEX(Banco,$Y84,5),""),"") -> Assistente (CBO 411010 - Assistente administrativo) | P84: H/t | Q84: 300 | R84: 24.76 | S84: DI 1 | T84: 30.95 | U84: 9285 | W84: =IF(OR($A84=0,$A84="S",$A84>CFF!$A$9),"",MAX(W$11:OFFSET(W84,-1,0))+1) ->  | X84: Rec. Humanos-006 | Y84: 8 | AA84: =IF($J84=$G$2,ROUND(IF(ISNUMBER(S84),S84,IF(LEFT(S84,2)="DI",HLOOKUP(S84,DADOS!$T$29:$X$30,2,FALSE),0)),4),"") -> 0.25
A85: 2 | B85: 6 | C85: 5 | D85: 2 | E85: 0 | F85: 0 | G85: 0 | H85: 6 | J85: AtivNível 1 | K85: 5.2. | O85: Relatório final e síntese do TTS | R85: 0 | S85: DI 1 | T85: 0 | U85: 14702.7 | W85: =IF(OR($A85=0,$A85="S",$A85>CFF!$A$9),"",MAX(W$11:OFFSET(W85,-1,0))+1) -> 23 | X85: FALSE | Y85: FALSE | AA85: =IF($J85=$G$2,ROUND(IF(ISNUMBER(S85),S85,IF(LEFT(S85,2)="DI",HLOOKUP(S85,DADOS!$T$29:$X$30,2,FALSE),0)),4),"") -> 
A86: S | B86: 0 | C86: 5 | D86: 2 | E86: 0 | F86: 0 | G86: 1 | H86: 0 | I86: 0 | J86: Insumo | K86: 5.2.0.1. | L86: CFESS | M86: Rec. Humanos | N86: 003 | O86: =IF(NOT(ISERROR($Y86)),IF($Y86<>FALSE,INDEX(Banco,$Y86,5),""),"") -> Analista pesquisa, consultor social (assistente social mestrado) | P86: H/t | Q86: 30 | R86: 222.41 | S86: DI 1 | T86: 278.01 | U86: 8340.3 | W86: =IF(OR($A86=0,$A86="S",$A86>CFF!$A$9),"",MAX(W$11:OFFSET(W86,-1,0))+1) ->  | X86: Rec. Humanos-003 | Y86: 5 | AA86: =IF($J86=$G$2,ROUND(IF(ISNUMBER(S86),S86,IF(LEFT(S86,2)="DI",HLOOKUP(S86,DADOS!$T$29:$X$30,2,FALSE),0)),4),"") -> 0.25
A87: S | B87: 0 | C87: 5 | D87: 2 | E87: 0 | F87: 0 | G87: 2 | H87: 0 | I87: 0 | J87: Insumo | K87: 5.2.0.2. | L87: CFESS | M87: Rec. Humanos | N87: 002 | O87: =IF(NOT(ISERROR($Y87)),IF($Y87<>FALSE,INDEX(Banco,$Y87,5),""),"") -> Assistente social (assistente social graduação) | P87: H/t | Q87: 20 | R87: 157.29 | S87: DI 1 | T87: 196.61 | U87: 3932.2 | W87: =IF(OR($A87=0,$A87="S",$A87>CFF!$A$9),"",MAX(W$11:OFFSET(W87,-1,0))+1) ->  | X87: Rec. Humanos-002 | Y87: 4 | AA87: =IF($J87=$G$2,ROUND(IF(ISNUMBER(S87),S87,IF(LEFT(S87,2)="DI",HLOOKUP(S87,DADOS!$T$29:$X$30,2,FALSE),0)),4),"") -> 0.25
A88: S | B88: 0 | C88: 5 | D88: 2 | E88: 0 | F88: 0 | G88: 3 | H88: 0 | I88: 0 | J88: Insumo | K88: 5.2.0.3. | L88: FIPE Salariômetro | M88: Rec. Humanos | N88: 006 | O88: =IF(NOT(ISERROR($Y88)),IF($Y88<>FALSE,INDEX(Banco,$Y88,5),""),"") -> Assistente (CBO 411010 - Assistente administrativo) | P88: H/t | Q88: 40 | R88: 24.76 | S88: DI 1 | T88: 30.95 | U88: 1238 | W88: =IF(OR($A88=0,$A88="S",$A88>CFF!$A$9),"",MAX(W$11:OFFSET(W88,-1,0))+1) ->  | X88: Rec. Humanos-006 | Y88: 8 | AA88: =IF($J88=$G$2,ROUND(IF(ISNUMBER(S88),S88,IF(LEFT(S88,2)="DI",HLOOKUP(S88,DADOS!$T$29:$X$30,2,FALSE),0)),4),"") -> 0.25
A89: S | B89: 0 | C89: 5 | D89: 2 | E89: 0 | F89: 0 | G89: 4 | H89: 0 | I89: 0 | J89: Insumo | K89: 5.2.0.4. | L89: FIPE Salariômetro | M89: Rec. Humanos | N89: 004 | O89: =IF(NOT(ISERROR($Y89)),IF($Y89<>FALSE,INDEX(Banco,$Y89,5),""),"") -> Designer júnior (CBO 239435 - Designer educacional, RS) | P89: H/t | Q89: 12 | R89: 49.48 | S89: DI 1 | T89: 61.85 | U89: 742.2 | W89: =IF(OR($A89=0,$A89="S",$A89>CFF!$A$9),"",MAX(W$11:OFFSET(W89,-1,0))+1) ->  | X89: Rec. Humanos-004 | Y89: 6 | AA89: =IF($J89=$G$2,ROUND(IF(ISNUMBER(S89),S89,IF(LEFT(S89,2)="DI",HLOOKUP(S89,DADOS!$T$29:$X$30,2,FALSE),0)),4),"") -> 0.25
A90: S | B90: 0 | C90: 5 | D90: 2 | E90: 0 | F90: 0 | G90: 5 | H90: 0 | I90: 0 | J90: Insumo | K90: 5.2.0.5. | L90: Sites empresas | M90: Rec. Materiais | N90: 004 | O90: =IF(NOT(ISERROR($Y90)),IF($Y90<>FALSE,INDEX(Banco,$Y90,5),""),"") -> Impressão laser colorida | P90: Página | Q90: 120 | R90: 3 | S90: DI 1 | T90: 3.75 | U90: 450 | W90: =IF(OR($A90=0,$A90="S",$A90>CFF!$A$9),"",MAX(W$11:OFFSET(W90,-1,0))+1) ->  | X90: Rec. Materiais-004 | Y90: 12 | AA90: =IF($J90=$G$2,ROUND(IF(ISNUMBER(S90),S90,IF(LEFT(S90,2)="DI",HLOOKUP(S90,DADOS!$T$29:$X$30,2,FALSE),0)),4),"") -> 0.25
A91: -1 | C91: 0 | D91: 0 | E91: 0 | F91: 0 | G91: 0
K92: Observações:
K98: =Import.Município -> Novo Hamburgo
K99: Local
K101: =TODAY() -> 2022-05-03
K102: Data

Sheet CFF
O1: CFF - | P1: CRONOGRAMA FÍSICO-FINANCEIRO | X1: CRONOGRAMA FÍSICO-FINANCEIRO | AF1: CRONOGRAMA FÍSICO-FINANCEIRO
O2: TS - | P2: TRABALHO SOCIAL | X2: TRABALHO SOCIAL | AF2: TRABALHO SOCIAL
A8: Nível Máx Crono | L8: =IF(MAX($A$14:$A$88)<>MAX(PO!$W$11:$W$91),"ERRO: CRONOGRAMA DESATUALIZADO",IF(OR(COUNTIF($O$16:$AN$16,">1")>0,OFFSET($AN$17,0,-1)<>$N$14),"ERRO: CRONOGRAMA NÃO FECHA EM 100%","")) ->  | N8: =IF(TipoOrçamento="REPROGRAMADOAC","Qtde de Medições realizadas","") -> 
A9: 3 | N9: 1 | O9: =IF(AND(TipoOrçamento="REPROGRAMADOAC",$N$9>0),$N$9-1,0) -> 0 | P9: =OFFSET(P9,0,-1)+1 -> 1 | Q9: =OFFSET(Q9,0,-1)+1 -> 2 | R9: 3 | S9: 4 | T9: 5 | U9: 6 | V9: 7 | W9: 8 | X9: =OFFSET(X9,0,-1)+1 -> 9 | Y9: 10 | Z9: 11 | AA9: 12 | AB9: 13 | AC9: 14 | AD9: 15 | AE9: 16 | AF9: =OFFSET(AF9,0,-1)+1 -> 17 | AG9: 18 | AH9: 19 | AI9: 20 | AJ9: 21 | AK9: 22 | AL9: 23 | AM9: 24
A10: Lista Crono | B10: Último Nível | C10: Nível | D10: Altura | E10: N1 | F10: N2 | G10: N3 | H10: N4 | I10: Czero | J10: Cnível | K10: VTOTAL SOMA | L10: Item | M10: Descrição das Atividades | N10: Valores Totais (R$) | O10: ="Início do TS"&CHAR(10)&TEXT(DADOS!C30,"dd/mm/aa") -> Início do TS 01/09/22 | P10: =IF(AND(TipoOrçamento="REPROGRAMADOAC",$N$9>0,N10="Valores Totais (R$)"),"Parcela "&$N$9&" Executado","Parcela "&P$9&CHAR(10)&TEXT(DATE(YEAR(DADOS!$C$30),MONTH(DADOS!$C$30)-1+P$9-IF(AND(TipoOrçamento="REPROGRAMADOAC",$N$9>0),$N$9,0),1),"mmm/aa")) -> Parcela 1 set/22 | Q10: =IF(AND(TipoOrçamento="REPROGRAMADOAC",$N$9>0,O10="Valores Totais (R$)"),"Parcela "&$N$9&" Executado","Parcela "&Q$9&CHAR(10)&TEXT(DATE(YEAR(DADOS!$C$30),MONTH(DADOS!$C$30)-1+Q$9-IF(AND(TipoOrçamento="REPROGRAMADOAC",$N$9>0),$N$9,0),1),"mmm/aa")) -> Parcela 2 out/22 | R10: =IF(AND(TipoOrçamento="REPROGRAMADOAC",$N$9>0,P10="Valores Totais (R$)"),"Parcela "&$N$9&" Executado","Parcela "&R$9&CHAR(10)&TEXT(DATE(YEAR(DADOS!$C$30),MONTH(DADOS!$C$30)-1+R$9-IF(AND(TipoOrçamento="REPROGRAMADOAC",$N$9>0),$N$9,0),1),"mmm/aa")) -> Parcela 3 nov/22 | S10: =IF(AND(TipoOrçamento="REPROGRAMADOAC",$N$9>0,Q10="Valores Totais (R$)"),"Parcela "&$N$9&" Executado","Parcela "&S$9&CHAR(10)&TEXT(DATE(YEAR(DADOS!$C$30),MONTH(DADOS!$C$30)-1+S$9-IF(AND(TipoOrçamento="REPROGRAMADOAC",$N$9>0),$N$9,0),1),"mmm/aa")) -> Parcela 4 dez/22 | T10: =IF(AND(TipoOrçamento="REPROGRAMADOAC",$N$9>0,R10="Valores Totais (R$)"),"Parcela "&$N$9&" Executado","Parcela "&T$9&CHAR(10)&TEXT(DATE(YEAR(DADOS!$C$30),MONTH(DADOS!$C$30)-1+T$9-IF(AND(TipoOrçamento="REPROGRAMADOAC",$N$9>0),$N$9,0),1),"mmm/aa")) -> Parcela 5 jan/23 | U10: =IF(AND(TipoOrçamento="REPROGRAMADOAC",$N$9>0,S10="Valores Totais (R$)"),"Parcela "&$N$9&" Executado","Parcela "&U$9&CHAR(10)&TEXT(DATE(YEAR(DADOS!$C$30),MONTH(DADOS!$C$30)-1+U$9-IF(AND(TipoOrçamento="REPROGRAMADOAC",$N$9>0),$N$9,0),1),"mmm/aa")) -> Parcela 6 fev/23 | V10: =IF(AND(TipoOrçamento="REPROGRAMADOAC",$N$9>0,T10="Valores Totais (R$)"),"Parcela "&$N$9&" Executado","Parcela "&V$9&CHAR(10)&TEXT(DATE(YEAR(DADOS!$C$30),MONTH(DADOS!$C$30)-1+V$9-IF(AND(TipoOrçamento="REPROGRAMADOAC",$N$9>0),$N$9,0),1),"mmm/aa")) -> Parcela 7 mar/23 | W10: =IF(AND(TipoOrçamento="REPROGRAMADOAC",$N$9>0,U10="Valores Totais (R$)"),"Parcela "&$N$9&" Executado","Parcela "&W$9&CHAR(10)&TEXT(DATE(YEAR(DADOS!$C$30),MONTH(DADOS!$C$30)-1+W$9-IF(AND(TipoOrçamento="REPROGRAMADOAC",$N$9>0),$N$9,0),1),"mmm/aa")) -> Parcela 8 abr/23 | X10: =IF(AND(TipoOrçamento="REPROGRAMADOAC",$N$9>0,V10="Valores Totais (R$)"),"Parcela "&$N$9&" Executado","Parcela "&X$9&CHAR(10)&TEXT(DATE(YEAR(DADOS!$C$30),MONTH(DADOS!$C$30)-1+X$9-IF(AND(TipoOrçamento="REPROGRAMADOAC",$N$9>0),$N$9,0),1),"mmm/aa")) -> Parcela 9 mai/23 | Y10: =IF(AND(TipoOrçamento="REPROGRAMADOAC",$N$9>0,W10="Valores Totais (R$)"),"Parcela "&$N$9&" Executado","Parcela "&Y$9&CHAR(10)&TEXT(DATE(YEAR(DADOS!$C$30),MONTH(DADOS!$C$30)-1+Y$9-IF(AND(TipoOrçamento="REPROGRAMADOAC",$N$9>0),$N$9,0),1),"mmm/aa")) -> Parcela 10 jun/23 | Z10: =IF(AND(TipoOrçamento="REPROGRAMADOAC",$N$9>0,X10="Valores Totais (R$)"),"Parcela "&$N$9&" Executado","Parcela "&Z$9&CHAR(10)&TEXT(DATE(YEAR(DADOS!$C$30),MONTH(DADOS!$C$30)-1+Z$9-IF(AND(TipoOrçamento="REPROGRAMADOAC",$N$9>0),$N$9,0),1),"mmm/aa")) -> Parcela 11 jul/23 | AA10: =IF(AND(TipoOrçamento="REPROGRAMADOAC",$N$9>0,Y10="Valores Totais (R$)"),"Parcela "&$N$9&" Executado","Parcela "&AA$9&CHAR(10)&TEXT(DATE(YEAR(DADOS!$C$30),MONTH(DADOS!$C$30)-1+AA$9-IF(AND(TipoOrçamento="REPROGRAMADOAC",$N$9>0),$N$9,0),1),"mmm/aa")) -> Parcela 12 ago/23 | AB10: =IF(AND(TipoOrçamento="REPROGRAMADOAC",$N$9>0,Z10="Valores Totais (R$)"),"Parcela "&$N$9&" Executado","Parcela "&AB$9&CHAR(10)&TEXT(DATE(YEAR(DADOS!$C$30),MONTH(DADOS!$C$30)-1+AB$9-IF(AND(TipoOrçamento="REPROGRAMADOAC",$N$9>0),$N$9,0),1),"mmm/aa")) -> Parcela 13 set/23 | AC10: =IF(AND(TipoOrçamento="REPROGRAMADOAC",$N$9>0,AA10="Valores Totais (R$)"),"Parcela "&$N$9&" Executado","Parcela "&AC$9&CHAR(10)&TEXT(DATE(YEAR(DADOS!$C$30),MONTH(DADOS!$C$30)-1+AC$9-IF(AND(TipoOrçamento="REPROGRAMADOAC",$N$9>0),$N$9,0),1),"mmm/aa")) -> Parcela 14 out/23 | AD10: =IF(AND(TipoOrçamento="REPROGRAMADOAC",$N$9>0,AB10="Valores Totais (R$)"),"Parcela "&$N$9&" Executado","Parcela "&AD$9&CHAR(10)&TEXT(DATE(YEAR(DADOS!$C$30),MONTH(DADOS!$C$30)-1+AD$9-IF(AND(TipoOrçamento="REPROGRAMADOAC",$N$9>0),$N$9,0),1),"mmm/aa")) -> Parcela 15 nov/23 | AE10: =IF(AND(TipoOrçamento="REPROGRAMADOAC",$N$9>0,AC10="Valores Totais (R$)"),"Parcela "&$N$9&" Executado","Parcela "&AE$9&CHAR(10)&TEXT(DATE(YEAR(DADOS!$C$30),MONTH(DADOS!$C$30)-1+AE$9-IF(AND(TipoOrçamento="REPROGRAMADOAC",$N$9>0),$N$9,0),1),"mmm/aa")) -> Parcela 16 dez/23 | AF10: =IF(AND(TipoOrçamento="REPROGRAMADOAC",$N$9>0,AD10="Valores Totais (R$)"),"Parcela "&$N$9&" Executado","Parcela "&AF$9&CHAR(10)&TEXT(DATE(YEAR(DADOS!$C$30),MONTH(DADOS!$C$30)-1+AF$9-IF(AND(TipoOrçamento="REPROGRAMADOAC",$N$9>0),$N$9,0),1),"mmm/aa")) -> Parcela 17 jan/24 | AG10: =IF(AND(TipoOrçamento="REPROGRAMADOAC",$N$9>0,AE10="Valores Totais (R$)"),"Parcela "&$N$9&" Executado","Parcela "&AG$9&CHAR(10)&TEXT(DATE(YEAR(DADOS!$C$30),MONTH(DADOS!$C$30)-1+AG$9-IF(AND(TipoOrçamento="REPROGRAMADOAC",$N$9>0),$N$9,0),1),"mmm/aa")) -> Parcela 18 fev/24 | AH10: =IF(AND(TipoOrçamento="REPROGRAMADOAC",$N$9>0,AF10="Valores Totais (R$)"),"Parcela "&$N$9&" Executado","Parcela "&AH$9&CHAR(10)&TEXT(DATE(YEAR(DADOS!$C$30),MONTH(DADOS!$C$30)-1+AH$9-IF(AND(TipoOrçamento="REPROGRAMADOAC",$N$9>0),$N$9,0),1),"mmm/aa")) -> Parcela 19 mar/24 | AI10: =IF(AND(TipoOrçamento="REPROGRAMADOAC",$N$9>0,AG10="Valores Totais (R$)"),"Parcela "&$N$9&" Executado","Parcela "&AI$9&CHAR(10)&TEXT(DATE(YEAR(DADOS!$C$30),MONTH(DADOS!$C$30)-1+AI$9-IF(AND(TipoOrçamento="REPROGRAMADOAC",$N$9>0),$N$9,0),1),"mmm/aa")) -> Parcela 20 abr/24 | AJ10: =IF(AND(TipoOrçamento="REPROGRAMADOAC",$N$9>0,AH10="Valores Totais (R$)"),"Parcela "&$N$9&" Executado","Parcela "&AJ$9&CHAR(10)&TEXT(DATE(YEAR(DADOS!$C$30),MONTH(DADOS!$C$30)-1+AJ$9-IF(AND(TipoOrçamento="REPROGRAMADOAC",$N$9>0),$N$9,0),1),"mmm/aa")) -> Parcela 21 mai/24 | AK10: =IF(AND(TipoOrçamento="REPROGRAMADOAC",$N$9>0,AI10="Valores Totais (R$)"),"Parcela "&$N$9&" Executado","Parcela "&AK$9&CHAR(10)&TEXT(DATE(YEAR(DADOS!$C$30),MONTH(DADOS!$C$30)-1+AK$9-IF(AND(TipoOrçamento="REPROGRAMADOAC",$N$9>0),$N$9,0),1),"mmm/aa")) -> Parcela 22 jun/24 | AL10: =IF(AND(TipoOrçamento="REPROGRAMADOAC",$N$9>0,AJ10="Valores Totais (R$)"),"Parcela "&$N$9&" Executado","Parcela "&AL$9&CHAR(10)&TEXT(DATE(YEAR(DADOS!$C$30),MONTH(DADOS!$C$30)-1+AL$9-IF(AND(TipoOrçamento="REPROGRAMADOAC",$N$9>0),$N$9,0),1),"mmm/aa")) -> Parcela 23 jul/24 | AM10: =IF(AND(TipoOrçamento="REPROGRAMADOAC",$N$9>0,AK10="Valores Totais (R$)"),"Parcela "&$N$9&" Executado","Parcela "&AM$9&CHAR(10)&TEXT(DATE(YEAR(DADOS!$C$30),MONTH(DADOS!$C$30)-1+AM$9-IF(AND(TipoOrçamento="REPROGRAMADOAC",$N$9>0),$N$9,0),1),"mmm/aa")) -> Parcela 24 ago/24
L11: =INDEX(PO!K$11:K$91,MATCH($A13,PO!$W$11:$W$91,0)) ->  | M11: =INDEX(PO!O$11:O$91,MATCH($A13,PO!$W$11:$W$91,0)) ->  | N11: =IF(ROUND(K13,2)=0,K13,ROUND(K13,2)) ->  | O11: Parcela (%) | P11: =IF($B13,0,P12-IF(ISNUMBER(O12),O12,0)) ->  | Q11: =IF($B13,0,Q12-IF(ISNUMBER(P12),P12,0)) ->  | X11: =IF($B13,0,X12-IF(ISNUMBER(W12),W12,0)) ->  | Y11: =IF($B13,0,Y12-IF(ISNUMBER(X12),X12,0)) ->  | Z11: =IF($B13,0,Z12-IF(ISNUMBER(Y12),Y12,0)) ->  | AA11: =IF($B13,0,AA12-IF(ISNUMBER(Z12),Z12,0)) ->  | AB11: =IF($B13,0,AB12-IF(ISNUMBER(AA12),AA12,0)) ->  | AC11: =IF($B13,0,AC12-IF(ISNUMBER(AB12),AB12,0)) ->  | AD11: =IF($B13,0,AD12-IF(ISNUMBER(AC12),AC12,0)) ->  | AE11: =IF($B13,0,AE12-IF(ISNUMBER(AD12),AD12,0)) ->  | AF11: =IF($B13,0,AF12-IF(ISNUMBER(AE12),AE12,0)) ->  | AG11: =IF($B13,0,AG12-IF(ISNUMBER(AF12),AF12,0)) ->  | AH11: =IF($B13,0,AH12-IF(ISNUMBER(AG12),AG12,0)) ->  | AI11: =IF($B13,0,AI12-IF(ISNUMBER(AH12),AH12,0)) ->  | AJ11: =IF($B13,0,AJ12-IF(ISNUMBER(AI12),AI12,0)) ->  | AK11: =IF($B13,0,AK12-IF(ISNUMBER(AJ12),AJ12,0)) ->  | AL11: =IF($B13,0,AL12-IF(ISNUMBER(AK12),AK12,0)) ->  | AM11: =IF($B13,0,AM12-IF(ISNUMBER(AL12),AL12,0)) -> 
O12: Acumulado (%) | P12: =MIN(IF($B13,P11+IF(ISNUMBER(O12),O12,0),P13/$N11),1) ->  | Q12: =MIN(IF($B13,Q11+IF(ISNUMBER(P12),P12,0),Q13/$N11),1) ->  | X12: =MIN(IF($B13,X11+IF(ISNUMBER(W12),W12,0),X13/$N11),1) ->  | Y12: =MIN(IF($B13,Y11+IF(ISNUMBER(X12),X12,0),Y13/$N11),1) ->  | Z12: =MIN(IF($B13,Z11+IF(ISNUMBER(Y12),Y12,0),Z13/$N11),1) ->  | AA12: =MIN(IF($B13,AA11+IF(ISNUMBER(Z12),Z12,0),AA13/$N11),1) ->  | AB12: =MIN(IF($B13,AB11+IF(ISNUMBER(AA12),AA12,0),AB13/$N11),1) ->  | AC12: =MIN(IF($B13,AC11+IF(ISNUMBER(AB12),AB12,0),AC13/$N11),1) ->  | AD12: =MIN(IF($B13,AD11+IF(ISNUMBER(AC12),AC12,0),AD13/$N11),1) ->  | AE12: =MIN(IF($B13,AE11+IF(ISNUMBER(AD12),AD12,0),AE13/$N11),1) ->  | AF12: =MIN(IF($B13,AF11+IF(ISNUMBER(AE12),AE12,0),AF13/$N11),1) ->  | AG12: =MIN(IF($B13,AG11+IF(ISNUMBER(AF12),AF12,0),AG13/$N11),1) ->  | AH12: =MIN(IF($B13,AH11+IF(ISNUMBER(AG12),AG12,0),AH13/$N11),1) ->  | AI12: =MIN(IF($B13,AI11+IF(ISNUMBER(AH12),AH12,0),AI13/$N11),1) ->  | AJ12: =MIN(IF($B13,AJ11+IF(ISNUMBER(AI12),AI12,0),AJ13/$N11),1) ->  | AK12: =MIN(IF($B13,AK11+IF(ISNUMBER(AJ12),AJ12,0),AK13/$N11),1) ->  | AL12: =MIN(IF($B13,AL11+IF(ISNUMBER(AK12),AK12,0),AL13/$N11),1) ->  | AM12: =MIN(IF($B13,AM11+IF(ISNUMBER(AL12),AL12,0),AM13/$N11),1) -> 
A13: =OFFSET(A13,-CFF.NumLinha,0)+1 ->  | B13: =$C13>=OFFSET($C13,CFF.NumLinha,0) ->  | C13: =INDEX(PO!A$11:A$91,MATCH($A13,PO!$W$11:$W$91,0)) ->  | D13: =IF(ISERROR(J13),I13,SMALL(I13:J13,1))-1 ->  | E13: =IF($C13=1,OFFSET(E13,-CFF.NumLinha,0)+1,OFFSET(E13,-CFF.NumLinha,0)) ->  | F13: =IF($C13=1,0,IF($C13=2,OFFSET(F13,-CFF.NumLinha,0)+1,OFFSET(F13,-CFF.NumLinha,0))) ->  | G13: =IF(AND($C13<=2,$C13<>0),0,IF($C13=3,OFFSET(G13,-CFF.NumLinha,0)+1,OFFSET(G13,-CFF.NumLinha,0))) ->  | H13: =IF(AND($C13<=3,$C13<>0),0,IF($C13=4,OFFSET(H13,-CFF.NumLinha,0)+1,OFFSET(H13,-CFF.NumLinha,0))) ->  | I13: =MATCH(0,OFFSET($D13,1,$C13,ROW($A$87)-ROW($A13)),0) ->  | J13: =MATCH(OFFSET($D13,0,$C13)+1,OFFSET($D13,1,$C13,ROW($A$87)-ROW($A13)),0) ->  | K13: =ROUND(INDEX(PO!U$11:U$91,MATCH($A13,PO!$W$11:$W$91,0)),2)+10^-12 ->  | O13: Acumulado (R$) | P13: =IF($B13,ROUND(P12*$N11,2),ROUND(SUMIF(OFFSET($B13,1,0,$D13),TRUE,OFFSET(P13,1,0,$D13))/SUMIF(OFFSET($B13,1,0,$D13),TRUE,OFFSET($K13,1,0,$D13))*$N11,2)) ->  | Q13: =IF($B13,ROUND(Q12*$N11,2),ROUND(SUMIF(OFFSET($B13,1,0,$D13),TRUE,OFFSET(Q13,1,0,$D13))/SUMIF(OFFSET($B13,1,0,$D13),TRUE,OFFSET($K13,1,0,$D13))*$N11,2)) ->  | X13: =IF($B13,ROUND(X12*$N11,2),ROUND(SUMIF(OFFSET($B13,1,0,$D13),TRUE,OFFSET(X13,1,0,$D13))/SUMIF(OFFSET($B13,1,0,$D13),TRUE,OFFSET($K13,1,0,$D13))*$N11,2)) ->  | Y13: =IF($B13,ROUND(Y12*$N11,2),ROUND(SUMIF(OFFSET($B13,1,0,$D13),TRUE,OFFSET(Y13,1,0,$D13))/SUMIF(OFFSET($B13,1,0,$D13),TRUE,OFFSET($K13,1,0,$D13))*$N11,2)) ->  | AF13: =IF($B13,ROUND(AF12*$N11,2),ROUND(SUMIF(OFFSET($B13,1,0,$D13),TRUE,OFFSET(AF13,1,0,$D13))/SUMIF(OFFSET($B13,1,0,$D13),TRUE,OFFSET($K13,1,0,$D13))*$N11,2)) ->  | AG13: =IF($B13,ROUND(AG12*$N11,2),ROUND(SUMIF(OFFSET($B13,1,0,$D13),TRUE,OFFSET(AG13,1,0,$D13))/SUMIF(OFFSET($B13,1,0,$D13),TRUE,OFFSET($K13,1,0,$D13))*$N11,2)) -> 
L14: CRONOGRAMA GLOBAL | N14: =IF(PO!$U$11=0,10^-12,PO!$U$11) -> 535116.87 | O14: Parcela (%) | P14: =ROUND(P15/$N14,4) -> 0.032 | Q14: =ROUND(Q15/$N14,4) -> 0.0785 | R14: 0.1048 | S14: 0.0478 | T14: 0.041 | U14: 0.0328 | V14: 0.049 | W14: 0.0319 | X14: =ROUND(X15/$N14,4) -> 0.0341 | Y14: 0.0587 | Z14: 0.0341 | AA14: 0.035 | AB14: 0.0341 | AC14: 0.0292 | AD14: 0.0399 | AE14: 0.0319 | AF14: =ROUND(AF15/$N14,4) -> 0.0323 | AG14: 0.0438 | AH14: 0.0516 | AI14: 0.0429 | AJ14: 0.0509 | AK14: 0.0318 | AL14: 0.0157 | AM14: 0.0157
O15: Parcela (R$) | P15: =P17-IF(ISNUMBER(O17),O17,0) -> 17130.76 | Q15: =Q17-IF(ISNUMBER(P17),P17,0) -> 42022.81 | R15: 56102.3 | S15: 25568.16 | T15: 21938.26 | U15: 17568 | V15: 26246.93 | W15: 17090.18 | X15: =X17-IF(ISNUMBER(W17),W17,0) -> 18270.38 | Y15: =Y17-IF(ISNUMBER(X17),X17,0) -> 31432.84 | Z15: =Z17-IF(ISNUMBER(Y17),Y17,0) -> 18270.39 | AA15: =AA17-IF(ISNUMBER(Z17),Z17,0) -> 18724.16 | AB15: =AB17-IF(ISNUMBER(AA17),AA17,0) -> 18270.39 | AC15: =AC17-IF(ISNUMBER(AB17),AB17,0) -> 15639.61 | AD15: =AD17-IF(ISNUMBER(AC17),AC17,0) -> 21354.94 | AE15: =AE17-IF(ISNUMBER(AD17),AD17,0) -> 17090.15 | AF15: =AF17-IF(ISNUMBER(AE17),AE17,0) -> 17277.14 | AG15: =AG17-IF(ISNUMBER(AF17),AF17,0) -> 23432.72 | AH15: =AH17-IF(ISNUMBER(AG17),AG17,0) -> 27638.54 | AI15: =AI17-IF(ISNUMBER(AH17),AH17,0) -> 22975.37 | AJ15: =AJ17-IF(ISNUMBER(AI17),AI17,0) -> 27219.64 | AK15: =AK17-IF(ISNUMBER(AJ17),AJ17,0) -> 17027.11 | AL15: =AL17-IF(ISNUMBER(AK17),AK17,0) -> 8413.05 | AM15: =AM17-IF(ISNUMBER(AL17),AL17,0) -> 8413.04
O16: Acumulado (%) | P16: =ROUND(P17/$N14,4) -> 0.032 | Q16: =ROUND(Q17/$N14,4) -> 0.1105 | R16: 0.2154 | S16: 0.2632 | T16: 0.3042 | U16: 0.337 | V16: 0.386 | W16: 0.418 | X16: =ROUND(X17/$N14,4) -> 0.4521 | Y16: =ROUND(Y17/$N14,4) -> 0.5109 | Z16: 0.545 | AA16: 0.58 | AB16: 0.6141 | AC16: 0.6434 | AD16: 0.6833 | AE16: 0.7152 | AF16: =ROUND(AF17/$N14,4) -> 0.7475 | AG16: =ROUND(AG17/$N14,4) -> 0.7913 | AH16: 0.8429 | AI16: 0.8859 | AJ16: 0.9367 | AK16: 0.9686 | AL16: 0.9843 | AM16: 1
A17: 0 | D17: =ROW(D$87)-ROW(D18) -> 69 | O17: Acumulado (R$) | P17: =SUMIF(OFFSET($C17,1,0):$C$87,1,OFFSET(P17,1,0):P$87) -> 17130.76 | Q17: =SUMIF(OFFSET($C17,1,0):$C$87,1,OFFSET(Q17,1,0):Q$87) -> 59153.57 | R17: =SUMIF(OFFSET($C17,1,0):$C$87,1,OFFSET(R17,1,0):R$87) -> 115255.87 | S17: =SUMIF(OFFSET($C17,1,0):$C$87,1,OFFSET(S17,1,0):S$87) -> 140824.03 | T17: =SUMIF(OFFSET($C17,1,0):$C$87,1,OFFSET(T17,1,0):T$87) -> 162762.29 | U17: =SUMIF(OFFSET($C17,1,0):$C$87,1,OFFSET(U17,1,0):U$87) -> 180330.29 | V17: =SUMIF(OFFSET($C17,1,0):$C$87,1,OFFSET(V17,1,0):V$87) -> 206577.22 | W17: =SUMIF(OFFSET($C17,1,0):$C$87,1,OFFSET(W17,1,0):W$87) -> 223667.4 | X17: =SUMIF(OFFSET($C17,1,0):$C$87,1,OFFSET(X17,1,0):X$87) -> 241937.78 | Y17: =SUMIF(OFFSET($C17,1,0):$C$87,1,OFFSET(Y17,1,0):Y$87) -> 273370.62 | Z17: =SUMIF(OFFSET($C17,1,0):$C$87,1,OFFSET(Z17,1,0):Z$87) -> 291641.01 | AA17: =SUMIF(OFFSET($C17,1,0):$C$87,1,OFFSET(AA17,1,0):AA$87) -> 310365.17 | AB17: =SUMIF(OFFSET($C17,1,0):$C$87,1,OFFSET(AB17,1,0):AB$87) -> 328635.56 | AC17: =SUMIF(OFFSET($C17,1,0):$C$87,1,OFFSET(AC17,1,0):AC$87) -> 344275.17 | AD17: =SUMIF(OFFSET($C17,1,0):$C$87,1,OFFSET(AD17,1,0):AD$87) -> 365630.11 | AE17: =SUMIF(OFFSET($C17,1,0):$C$87,1,OFFSET(AE17,1,0):AE$87) -> 382720.26 | AF17: =SUMIF(OFFSET($C17,1,0):$C$87,1,OFFSET(AF17,1,0):AF$87) -> 399997.4 | AG17: =SUMIF(OFFSET($C17,1,0):$C$87,1,OFFSET(AG17,1,0):AG$87) -> 423430.12 | AH17: =SUMIF(OFFSET($C17,1,0):$C$87,1,OFFSET(AH17,1,0):AH$87) -> 451068.66 | AI17: =SUMIF(OFFSET($C17,1,0):$C$87,1,OFFSET(AI17,1,0):AI$87) -> 474044.03 | AJ17: =SUMIF(OFFSET($C17,1,0):$C$87,1,OFFSET(AJ17,1,0):AJ$87) -> 501263.67 | AK17: =SUMIF(OFFSET($C17,1,0):$C$87,1,OFFSET(AK17,1,0):AK$87) -> 518290.78 | AL17: =SUMIF(OFFSET($C17,1,0):$C$87,1,OFFSET(AL17,1,0):AL$87) -> 526703.83 | AM17: =SUMIF(OFFSET($C17,1,0):$C$87,1,OFFSET(AM17,1,0):AM$87) -> 535116.87
L18: =INDEX(PO!K$11:K$91,MATCH($A20,PO!$W$11:$W$91,0)) -> 1. | M18: =INDEX(PO!O$11:O$91,MATCH($A20,PO!$W$11:$W$91,0)) -> Mapeamento dos públicos alvo do TTS | N18: =IF(ROUND(K20,2)=0,K20,ROUND(K20,2)) -> 96324.04 | O18: Parcela (%) | P18: =IF($B20,0,P19-IF(ISNUMBER(O19),O19,0)) -> 0.1778451153 | Q18: 0.3556902306 | R18: 0.4664646541 | S18: 0 | T18: 0 | U18: 0 | V18: 0 | W18: 0 | X18: =IF($B20,0,X19-IF(ISNUMBER(W19),W19,0)) -> 0 | Y18: =IF($B20,0,Y19-IF(ISNUMBER(X19),X19,0)) -> 0 | Z18: =IF($B20,0,Z19-IF(ISNUMBER(Y19),Y19,0)) -> 0 | AA18: =IF($B20,0,AA19-IF(ISNUMBER(Z19),Z19,0)) -> 0 | AB18: =IF($B20,0,AB19-IF(ISNUMBER(AA19),AA19,0)) -> 0 | AC18: =IF($B20,0,AC19-IF(ISNUMBER(AB19),AB19,0)) -> 0 | AD18: =IF($B20,0,AD19-IF(ISNUMBER(AC19),AC19,0)) -> 0 | AE18: =IF($B20,0,AE19-IF(ISNUMBER(AD19),AD19,0)) -> 0 | AF18: =IF($B20,0,AF19-IF(ISNUMBER(AE19),AE19,0)) -> 0 | AG18: =IF($B20,0,AG19-IF(ISNUMBER(AF19),AF19,0)) -> 0 | AH18: =IF($B20,0,AH19-IF(ISNUMBER(AG19),AG19,0)) -> 0 | AI18: =IF($B20,0,AI19-IF(ISNUMBER(AH19),AH19,0)) -> 0 | AJ18: =IF($B20,0,AJ19-IF(ISNUMBER(AI19),AI19,0)) -> 0 | AK18: =IF($B20,0,AK19-IF(ISNUMBER(AJ19),AJ19,0)) -> 0 | AL18: =IF($B20,0,AL19-IF(ISNUMBER(AK19),AK19,0)) -> 0 | AM18: =IF($B20,0,AM19-IF(ISNUMBER(AL19),AL19,0)) -> 0
O19: Acumulado (%) | P19: =MIN(IF($B20,P18+IF(ISNUMBER(O19),O19,0),P20/$N18),1) -> 0.1778451153 | Q19: 0.5335353459 | R19: 1 | S19: 1 | T19: 1 | U19: 1 | V19: 1 | W19: 1 | X19: =MIN(IF($B20,X18+IF(ISNUMBER(W19),W19,0),X20/$N18),1) -> 1 | Y19: =MIN(IF($B20,Y18+IF(ISNUMBER(X19),X19,0),Y20/$N18),1) -> 1 | Z19: =MIN(IF($B20,Z18+IF(ISNUMBER(Y19),Y19,0),Z20/$N18),1) -> 1 | AA19: =MIN(IF($B20,AA18+IF(ISNUMBER(Z19),Z19,0),AA20/$N18),1) -> 1 | AB19: =MIN(IF($B20,AB18+IF(ISNUMBER(AA19),AA19,0),AB20/$N18),1) -> 1 | AC19: =MIN(IF($B20,AC18+IF(ISNUMBER(AB19),AB19,0),AC20/$N18),1) -> 1 | AD19: =MIN(IF($B20,AD18+IF(ISNUMBER(AC19),AC19,0),AD20/$N18),1) -> 1 | AE19: =MIN(IF($B20,AE18+IF(ISNUMBER(AD19),AD19,0),AE20/$N18),1) -> 1 | AF19: =MIN(IF($B20,AF18+IF(ISNUMBER(AE19),AE19,0),AF20/$N18),1) -> 1 | AG19: =MIN(IF($B20,AG18+IF(ISNUMBER(AF19),AF19,0),AG20/$N18),1) -> 1 | AH19: =MIN(IF($B20,AH18+IF(ISNUMBER(AG19),AG19,0),AH20/$N18),1) -> 1 | AI19: =MIN(IF($B20,AI18+IF(ISNUMBER(AH19),AH19,0),AI20/$N18),1) -> 1 | AJ19: =MIN(IF($B20,AJ18+IF(ISNUMBER(AI19),AI19,0),AJ20/$N18),1) -> 1 | AK19: =MIN(IF($B20,AK18+IF(ISNUMBER(AJ19),AJ19,0),AK20/$N18),1) -> 1 | AL19: =MIN(IF($B20,AL18+IF(ISNUMBER(AK19),AK19,0),AL20/$N18),1) -> 1 | AM19: =MIN(IF($B20,AM18+IF(ISNUMBER(AL19),AL19,0),AM20/$N18),1) -> 1
A20: =OFFSET(A20,-CFF.NumLinha,0)+1 -> 1 | B20: =$C20>=OFFSET($C20,CFF.NumLinha,0) -> FALSE | C20: =INDEX(PO!A$11:A$91,MATCH($A20,PO!$W$11:$W$91,0)) -> 1 | D20: =IF(ISERROR(J20),I20,SMALL(I20:J20,1))-1 -> 8 | E20: =IF($C20=1,OFFSET(E20,-CFF.NumLinha,0)+1,OFFSET(E20,-CFF.NumLinha,0)) -> 1 | F20: =IF($C20=1,0,IF($C20=2,OFFSET(F20,-CFF.NumLinha,0)+1,OFFSET(F20,-CFF.NumLinha,0))) -> 0 | G20: =IF(AND($C20<=2,$C20<>0),0,IF($C20=3,OFFSET(G20,-CFF.NumLinha,0)+1,OFFSET(G20,-CFF.NumLinha,0))) -> 0 | H20: =IF(AND($C20<=3,$C20<>0),0,IF($C20=4,OFFSET(H20,-CFF.NumLinha,0)+1,OFFSET(H20,-CFF.NumLinha,0))) -> 0 | I20: =MATCH(0,OFFSET($D20,1,$C20,ROW($A$87)-ROW($A20)),0) -> 67 | J20: =MATCH(OFFSET($D20,0,$C20)+1,OFFSET($D20,1,$C20,ROW($A$87)-ROW($A20)),0) -> 9 | K20: =ROUND(INDEX(PO!U$11:U$91,MATCH($A20,PO!$W$11:$W$91,0)),2)+10^-12 -> 96324.04 | O20: Acumulado (R$) | P20: =IF($B20,ROUND(P19*$N18,2),ROUND(SUMIF(OFFSET($B20,1,0,$D20),TRUE,OFFSET(P20,1,0,$D20))/SUMIF(OFFSET($B20,1,0,$D20),TRUE,OFFSET($K20,1,0,$D20))*$N18,2)) -> 17130.76 | Q20: 51392.28 | R20: 96324.04 | S20: 96324.04 | T20: 96324.04 | U20: 96324.04 | V20: 96324.04 | W20: 96324.04 | X20: =IF($B20,ROUND(X19*$N18,2),ROUND(SUMIF(OFFSET($B20,1,0,$D20),TRUE,OFFSET(X20,1,0,$D20))/SUMIF(OFFSET($B20,1,0,$D20),TRUE,OFFSET($K20,1,0,$D20))*$N18,2)) -> 96324.04 | Y20: 96324.04 | Z20: 96324.04 | AA20: 96324.04 | AB20: 96324.04 | AC20: 96324.04 | AD20: 96324.04 | AE20: 96324.04 | AF20: =IF($B20,ROUND(AF19*$N18,2),ROUND(SUMIF(OFFSET($B20,1,0,$D20),TRUE,OFFSET(AF20,1,0,$D20))/SUMIF(OFFSET($B20,1,0,$D20),TRUE,OFFSET($K20,1,0,$D20))*$N18,2)) -> 96324.04 | AG20: 96324.04 | AH20: 96324.04 | AI20: 96324.04 | AJ20: 96324.04 | AK20: 96324.04 | AL20: 96324.04 | AM20: 96324.04
L21: =INDEX(PO!K$11:K$91,MATCH($A23,PO!$W$11:$W$91,0)) -> 1.1. | M21: =INDEX(PO!O$11:O$91,MATCH($A23,PO!$W$11:$W$91,0)) -> Caracterização da população de entorno das obras, mapeamento dos equipamentos públicos, das organizações, dos programas em atividade e da população em situação de vulnerabilidade social na microbacia beneficiária da ETE Luiz Rau | N21: =IF(ROUND(K23,2)=0,K23,ROUND(K23,2)) -> 68523.04 | O21: Parcela (%) | P21: 0.25 | Q21: 0.5 | R21: 0.25 | S21: =IF($B23,0,S22-IF(ISNUMBER(R22),R22,0)) -> 0 | T21: =IF($B23,0,T22-IF(ISNUMBER(S22),S22,0)) -> 0 | U21: =IF($B23,0,U22-IF(ISNUMBER(T22),T22,0)) -> 0 | V21: =IF($B23,0,V22-IF(ISNUMBER(U22),U22,0)) -> 0 | W21: =IF($B23,0,W22-IF(ISNUMBER(V22),V22,0)) -> 0 | X21: 0.75 | Y21: 0.25 | Z21: =IF($B23,0,Z22-IF(ISNUMBER(Y22),Y22,0)) -> 0 | AA21: =IF($B23,0,AA22-IF(ISNUMBER(Z22),Z22,0)) -> 0 | AB21: =IF($B23,0,AB22-IF(ISNUMBER(AA22),AA22,0)) -> 0 | AC21: =IF($B23,0,AC22-IF(ISNUMBER(AB22),AB22,0)) -> 0 | AD21: =IF($B23,0,AD22-IF(ISNUMBER(AC22),AC22,0)) -> 0 | AE21: =IF($B23,0,AE22-IF(ISNUMBER(AD22),AD22,0)) -> 0 | AF21: 0.75 | AG21: 0.25 | AH21: =IF($B23,0,AH22-IF(ISNUMBER(AG22),AG22,0)) -> 0 | AI21: =IF($B23,0,AI22-IF(ISNUMBER(AH22),AH22,0)) -> 0 | AJ21: =IF($B23,0,AJ22-IF(ISNUMBER(AI22),AI22,0)) -> 0 | AK21: =IF($B23,0,AK22-IF(ISNUMBER(AJ22),AJ22,0)) -> 0 | AL21: =IF($B23,0,AL22-IF(ISNUMBER(AK22),AK22,0)) -> 0 | AM21: =IF($B23,0,AM22-IF(ISNUMBER(AL22),AL22,0)) -> 0
O22: Acumulado (%) | P22: =MIN(IF($B23,P21+IF(ISNUMBER(O22),O22,0),P23/$N21),1) -> 0.25 | Q22: =MIN(IF($B23,Q21+IF(ISNUMBER(P22),P22,0),Q23/$N21),1) -> 0.75 | R22: =MIN(IF($B23,R21+IF(ISNUMBER(Q22),Q22,0),R23/$N21),1) -> 1 | S22: =MIN(IF($B23,S21+IF(ISNUMBER(R22),R22,0),S23/$N21),1) -> 1 | T22: =MIN(IF($B23,T21+IF(ISNUMBER(S22),S22,0),T23/$N21),1) -> 1 | U22: =MIN(IF($B23,U21+IF(ISNUMBER(T22),T22,0),U23/$N21),1) -> 1 | V22: =MIN(IF($B23,V21+IF(ISNUMBER(U22),U22,0),V23/$N21),1) -> 1 | W22: =MIN(IF($B23,W21+IF(ISNUMBER(V22),V22,0),W23/$N21),1) -> 1 | X22: =MIN(IF($B23,X21+IF(ISNUMBER(W22),W22,0),X23/$N21),1) -> 1 | Y22: =MIN(IF($B23,Y21+IF(ISNUMBER(X22),X22,0),Y23/$N21),1) -> 1 | Z22: =MIN(IF($B23,Z21+IF(ISNUMBER(Y22),Y22,0),Z23/$N21),1) -> 1 | AA22: =MIN(IF($B23,AA21+IF(ISNUMBER(Z22),Z22,0),AA23/$N21),1) -> 1 | AB22: =MIN(IF($B23,AB21+IF(ISNUMBER(AA22),AA22,0),AB23/$N21),1) -> 1 | AC22: =MIN(IF($B23,AC21+IF(ISNUMBER(AB22),AB22,0),AC23/$N21),1) -> 1 | AD22: =MIN(IF($B23,AD21+IF(ISNUMBER(AC22),AC22,0),AD23/$N21),1) -> 1 | AE22: =MIN(IF($B23,AE21+IF(ISNUMBER(AD22),AD22,0),AE23/$N21),1) -> 1 | AF22: =MIN(IF($B23,AF21+IF(ISNUMBER(AE22),AE22,0),AF23/$N21),1) -> 1 | AG22: =MIN(IF($B23,AG21+IF(ISNUMBER(AF22),AF22,0),AG23/$N21),1) -> 1 | AH22: =MIN(IF($B23,AH21+IF(ISNUMBER(AG22),AG22,0),AH23/$N21),1) -> 1 | AI22: =MIN(IF($B23,AI21+IF(ISNUMBER(AH22),AH22,0),AI23/$N21),1) -> 1 | AJ22: =MIN(IF($B23,AJ21+IF(ISNUMBER(AI22),AI22,0),AJ23/$N21),1) -> 1 | AK22: =MIN(IF($B23,AK21+IF(ISNUMBER(AJ22),AJ22,0),AK23/$N21),1) -> 1 | AL22: =MIN(IF($B23,AL21+IF(ISNUMBER(AK22),AK22,0),AL23/$N21),1) -> 1 | AM22: =MIN(IF($B23,AM21+IF(ISNUMBER(AL22),AL22,0),AM23/$N21),1) -> 1
A23: =OFFSET(A23,-CFF.NumLinha,0)+1 -> 2 | B23: =$C23>=OFFSET($C23,CFF.NumLinha,0) -> TRUE | C23: =INDEX(PO!A$11:A$91,MATCH($A23,PO!$W$11:$W$91,0)) -> 2 | D23: =IF(ISERROR(J23),I23,SMALL(I23:J23,1))-1 -> 2 | E23: =IF($C23=1,OFFSET(E23,-CFF.NumLinha,0)+1,OFFSET(E23,-CFF.NumLinha,0)) -> 1 | F23: =IF($C23=1,0,IF($C23=2,OFFSET(F23,-CFF.NumLinha,0)+1,OFFSET(F23,-CFF.NumLinha,0))) -> 1 | G23: =IF(AND($C23<=2,$C23<>0),0,IF($C23=3,OFFSET(G23,-CFF.NumLinha,0)+1,OFFSET(G23,-CFF.NumLinha,0))) -> 0 | H23: =IF(AND($C23<=3,$C23<>0),0,IF($C23=4,OFFSET(H23,-CFF.NumLinha,0)+1,OFFSET(H23,-CFF.NumLinha,0))) -> 0 | I23: =MATCH(0,OFFSET($D23,1,$C23,ROW($A$87)-ROW($A23)),0) -> 6 | J23: =MATCH(OFFSET($D23,0,$C23)+1,OFFSET($D23,1,$C23,ROW($A$87)-ROW($A23)),0) -> 3 | K23: =ROUND(INDEX(PO!U$11:U$91,MATCH($A23,PO!$W$11:$W$91,0)),2)+10^-12 -> 68523.04 | O23: Acumulado (R$) | P23: =IF($B23,ROUND(P22*$N21,2),ROUND(SUMIF(OFFSET($B23,1,0,$D23),TRUE,OFFSET(P23,1,0,$D23))/SUMIF(OFFSET($B23,1,0,$D23),TRUE,OFFSET($K23,1,0,$D23))*$N21,2)) -> 17130.76 | Q23: 51392.28 | R23: 68523.04 | S23: 68523.04 | T23: 68523.04 | U23: 68523.04 | V23: 68523.04 | W23: 68523.04 | X23: =IF($B23,ROUND(X22*$N21,2),ROUND(SUMIF(OFFSET($B23,1,0,$D23),TRUE,OFFSET(X23,1,0,$D23))/SUMIF(OFFSET($B23,1,0,$D23),TRUE,OFFSET($K23,1,0,$D23))*$N21,2)) -> 68523.04 | Y23: =IF($B23,ROUND(Y22*$N21,2),ROUND(SUMIF(OFFSET($B23,1,0,$D23),TRUE,OFFSET(Y23,1,0,$D23))/SUMIF(OFFSET($B23,1,0,$D23),TRUE,OFFSET($K23,1,0,$D23))*$N21,2)) -> 68523.04 | Z23: =IF($B23,ROUND(Z22*$N21,2),ROUND(SUMIF(OFFSET($B23,1,0,$D23),TRUE,OFFSET(Z23,1,0,$D23))/SUMIF(OFFSET($B23,1,0,$D23),TRUE,OFFSET($K23,1,0,$D23))*$N21,2)) -> 68523.04 | AA23: =IF($B23,ROUND(AA22*$N21,2),ROUND(SUMIF(OFFSET($B23,1,0,$D23),TRUE,OFFSET(AA23,1,0,$D23))/SUMIF(OFFSET($B23,1,0,$D23),TRUE,OFFSET($K23,1,0,$D23))*$N21,2)) -> 68523.04 | AB23: =IF($B23,ROUND(AB22*$N21,2),ROUND(SUMIF(OFFSET($B23,1,0,$D23),TRUE,OFFSET(AB23,1,0,$D23))/SUMIF(OFFSET($B23,1,0,$D23),TRUE,OFFSET($K23,1,0,$D23))*$N21,2)) -> 68523.04 | AC23: =IF($B23,ROUND(AC22*$N21,2),ROUND(SUMIF(OFFSET($B23,1,0,$D23),TRUE,OFFSET(AC23,1,0,$D23))/SUMIF(OFFSET($B23,1,0,$D23),TRUE,OFFSET($K23,1,0,$D23))*$N21,2)) -> 68523.04 | AD23: =IF($B23,ROUND(AD22*$N21,2),ROUND(SUMIF(OFFSET($B23,1,0,$D23),TRUE,OFFSET(AD23,1,0,$D23))/SUMIF(OFFSET($B23,1,0,$D23),TRUE,OFFSET($K23,1,0,$D23))*$N21,2)) -> 68523.04 | AE23: =IF($B23,ROUND(AE22*$N21,2),ROUND(SUMIF(OFFSET($B23,1,0,$D23),TRUE,OFFSET(AE23,1,0,$D23))/SUMIF(OFFSET($B23,1,0,$D23),TRUE,OFFSET($K23,1,0,$D23))*$N21,2)) -> 68523.04 | AF23: =IF($B23,ROUND(AF22*$N21,2),ROUND(SUMIF(OFFSET($B23,1,0,$D23),TRUE,OFFSET(AF23,1,0,$D23))/SUMIF(OFFSET($B23,1,0,$D23),TRUE,OFFSET($K23,1,0,$D23))*$N21,2)) -> 68523.04 | AG23: =IF($B23,ROUND(AG22*$N21,2),ROUND(SUMIF(OFFSET($B23,1,0,$D23),TRUE,OFFSET(AG23,1,0,$D23))/SUMIF(OFFSET($B23,1,0,$D23),TRUE,OFFSET($K23,1,0,$D23))*$N21,2)) -> 68523.04 | AH23: =IF($B23,ROUND(AH22*$N21,2),ROUND(SUMIF(OFFSET($B23,1,0,$D23),TRUE,OFFSET(AH23,1,0,$D23))/SUMIF(OFFSET($B23,1,0,$D23),TRUE,OFFSET($K23,1,0,$D23))*$N21,2)) -> 68523.04 | AI23: =IF($B23,ROUND(AI22*$N21,2),ROUND(SUMIF(OFFSET($B23,1,0,$D23),TRUE,OFFSET(AI23,1,0,$D23))/SUMIF(OFFSET($B23,1,0,$D23),TRUE,OFFSET($K23,1,0,$D23))*$N21,2)) -> 68523.04 | AJ23: =IF($B23,ROUND(AJ22*$N21,2),ROUND(SUMIF(OFFSET($B23,1,0,$D23),TRUE,OFFSET(AJ23,1,0,$D23))/SUMIF(OFFSET($B23,1,0,$D23),TRUE,OFFSET($K23,1,0,$D23))*$N21,2)) -> 68523.04 | AK23: =IF($B23,ROUND(AK22*$N21,2),ROUND(SUMIF(OFFSET($B23,1,0,$D23),TRUE,OFFSET(AK23,1,0,$D23))/SUMIF(OFFSET($B23,1,0,$D23),TRUE,OFFSET($K23,1,0,$D23))*$N21,2)) -> 68523.04 | AL23: =IF($B23,ROUND(AL22*$N21,2),ROUND(SUMIF(OFFSET($B23,1,0,$D23),TRUE,OFFSET(AL23,1,0,$D23))/SUMIF(OFFSET($B23,1,0,$D23),TRUE,OFFSET($K23,1,0,$D23))*$N21,2)) -> 68523.04 | AM23: =IF($B23,ROUND(AM22*$N21,2),ROUND(SUMIF(OFFSET($B23,1,0,$D23),TRUE,OFFSET(AM23,1,0,$D23))/SUMIF(OFFSET($B23,1,0,$D23),TRUE,OFFSET($K23,1,0,$D23))*$N21,2)) -> 68523.04
L24: =INDEX(PO!K$11:K$91,MATCH($A26,PO!$W$11:$W$91,0)) -> 1.2. | M24: =INDEX(PO!O$11:O$91,MATCH($A26,PO!$W$11:$W$91,0)) -> Relatório de Mapeamento Social | N24: =IF(ROUND(K26,2)=0,K26,ROUND(K26,2)) -> 27801 | O24: Parcela (%) | P24: =IF($B26,0,P25-IF(ISNUMBER(O25),O25,0)) -> 0 | Q24: 0 | R24: 1 | S24: =IF($B26,0,S25-IF(ISNUMBER(R25),R25,0)) -> 0 | T24: =IF($B26,0,T25-IF(ISNUMBER(S25),S25,0)) -> 0 | U24: =IF($B26,0,U25-IF(ISNUMBER(T25),T25,0)) -> 0 | V24: =IF($B26,0,V25-IF(ISNUMBER(U25),U25,0)) -> 0 | W24: =IF($B26,0,W25-IF(ISNUMBER(V25),V25,0)) -> 0 | X24: =IF($B26,0,X25-IF(ISNUMBER(W25),W25,0)) -> 0 | Y24: 1 | Z24: =IF($B26,0,Z25-IF(ISNUMBER(Y25),Y25,0)) -> 0 | AA24: =IF($B26,0,AA25-IF(ISNUMBER(Z25),Z25,0)) -> 0 | AB24: =IF($B26,0,AB25-IF(ISNUMBER(AA25),AA25,0)) -> 0 | AC24: =IF($B26,0,AC25-IF(ISNUMBER(AB25),AB25,0)) -> 0 | AD24: =IF($B26,0,AD25-IF(ISNUMBER(AC25),AC25,0)) -> 0 | AE24: =IF($B26,0,AE25-IF(ISNUMBER(AD25),AD25,0)) -> 0 | AF24: =IF($B26,0,AF25-IF(ISNUMBER(AE25),AE25,0)) -> 0 | AG24: 1 | AH24: =IF($B26,0,AH25-IF(ISNUMBER(AG25),AG25,0)) -> 0 | AI24: =IF($B26,0,AI25-IF(ISNUMBER(AH25),AH25,0)) -> 0 | AJ24: =IF($B26,0,AJ25-IF(ISNUMBER(AI25),AI25,0)) -> 0 | AK24: =IF($B26,0,AK25-IF(ISNUMBER(AJ25),AJ25,0)) -> 0 | AL24: =IF($B26,0,AL25-IF(ISNUMBER(AK25),AK25,0)) -> 0 | AM24: =IF($B26,0,AM25-IF(ISNUMBER(AL25),AL25,0)) -> 0
O25: Acumulado (%) | P25: =MIN(IF($B26,P24+IF(ISNUMBER(O25),O25,0),P26/$N24),1) -> 0 | Q25: =MIN(IF($B26,Q24+IF(ISNUMBER(P25),P25,0),Q26/$N24),1) -> 0 | R25: =MIN(IF($B26,R24+IF(ISNUMBER(Q25),Q25,0),R26/$N24),1) -> 1 | S25: =MIN(IF($B26,S24+IF(ISNUMBER(R25),R25,0),S26/$N24),1) -> 1 | T25: =MIN(IF($B26,T24+IF(ISNUMBER(S25),S25,0),T26/$N24),1) -> 1 | U25: =MIN(IF($B26,U24+IF(ISNUMBER(T25),T25,0),U26/$N24),1) -> 1 | V25: =MIN(IF($B26,V24+IF(ISNUMBER(U25),U25,0),V26/$N24),1) -> 1 | W25: =MIN(IF($B26,W24+IF(ISNUMBER(V25),V25,0),W26/$N24),1) -> 1 | X25: =MIN(IF($B26,X24+IF(ISNUMBER(W25),W25,0),X26/$N24),1) -> 1 | Y25: =MIN(IF($B26,Y24+IF(ISNUMBER(X25),X25,0),Y26/$N24),1) -> 1 | Z25: =MIN(IF($B26,Z24+IF(ISNUMBER(Y25),Y25,0),Z26/$N24),1) -> 1 | AA25: =MIN(IF($B26,AA24+IF(ISNUMBER(Z25),Z25,0),AA26/$N24),1) -> 1 | AB25: =MIN(IF($B26,AB24+IF(ISNUMBER(AA25),AA25,0),AB26/$N24),1) -> 1 | AC25: =MIN(IF($B26,AC24+IF(ISNUMBER(AB25),AB25,0),AC26/$N24),1) -> 1 | AD25: =MIN(IF($B26,AD24+IF(ISNUMBER(AC25),AC25,0),AD26/$N24),1) -> 1 | AE25: =MIN(IF($B26,AE24+IF(ISNUMBER(AD25),AD25,0),AE26/$N24),1) -> 1 | AF25: =MIN(IF($B26,AF24+IF(ISNUMBER(AE25),AE25,0),AF26/$N24),1) -> 1 | AG25: =MIN(IF($B26,AG24+IF(ISNUMBER(AF25),AF25,0),AG26/$N24),1) -> 1 | AH25: =MIN(IF($B26,AH24+IF(ISNUMBER(AG25),AG25,0),AH26/$N24),1) -> 1 | AI25: =MIN(IF($B26,AI24+IF(ISNUMBER(AH25),AH25,0),AI26/$N24),1) -> 1 | AJ25: =MIN(IF($B26,AJ24+IF(ISNUMBER(AI25),AI25,0),AJ26/$N24),1) -> 1 | AK25: =MIN(IF($B26,AK24+IF(ISNUMBER(AJ25),AJ25,0),AK26/$N24),1) -> 1 | AL25: =MIN(IF($B26,AL24+IF(ISNUMBER(AK25),AK25,0),AL26/$N24),1) -> 1 | AM25: =MIN(IF($B26,AM24+IF(ISNUMBER(AL25),AL25,0),AM26/$N24),1) -> 1
A26: =OFFSET(A26,-CFF.NumLinha,0)+1 -> 3 | B26: =$C26>=OFFSET($C26,CFF.NumLinha,0) -> TRUE | C26: =INDEX(PO!A$11:A$91,MATCH($A26,PO!$W$11:$W$91,0)) -> 2 | D26: =IF(ISERROR(J26),I26,SMALL(I26:J26,1))-1 -> 2 | E26: =IF($C26=1,OFFSET(E26,-CFF.NumLinha,0)+1,OFFSET(E26,-CFF.NumLinha,0)) -> 1 | F26: =IF($C26=1,0,IF($C26=2,OFFSET(F26,-CFF.NumLinha,0)+1,OFFSET(F26,-CFF.NumLinha,0))) -> 2 | G26: =IF(AND($C26<=2,$C26<>0),0,IF($C26=3,OFFSET(G26,-CFF.NumLinha,0)+1,OFFSET(G26,-CFF.NumLinha,0))) -> 0 | H26: =IF(AND($C26<=3,$C26<>0),0,IF($C26=4,OFFSET(H26,-CFF.NumLinha,0)+1,OFFSET(H26,-CFF.NumLinha,0))) -> 0 | I26: =MATCH(0,OFFSET($D26,1,$C26,ROW($A$87)-ROW($A26)),0) -> 3 | J26: =MATCH(OFFSET($D26,0,$C26)+1,OFFSET($D26,1,$C26,ROW($A$87)-ROW($A26)),0) -> 12 | K26: =ROUND(INDEX(PO!U$11:U$91,MATCH($A26,PO!$W$11:$W$91,0)),2)+10^-12 -> 27801 | O26: Acumulado (R$) | P26: =IF($B26,ROUND(P25*$N24,2),ROUND(SUMIF(OFFSET($B26,1,0,$D26),TRUE,OFFSET(P26,1,0,$D26))/SUMIF(OFFSET($B26,1,0,$D26),TRUE,OFFSET($K26,1,0,$D26))*$N24,2)) -> 0 | Q26: 0 | R26: 27801 | S26: 27801 | T26: 27801 | U26: 27801 | V26: 27801 | W26: 27801 | X26: =IF($B26,ROUND(X25*$N24,2),ROUND(SUMIF(OFFSET($B26,1,0,$D26),TRUE,OFFSET(X26,1,0,$D26))/SUMIF(OFFSET($B26,1,0,$D26),TRUE,OFFSET($K26,1,0,$D26))*$N24,2)) -> 27801 | Y26: =IF($B26,ROUND(Y25*$N24,2),ROUND(SUMIF(OFFSET($B26,1,0,$D26),TRUE,OFFSET(Y26,1,0,$D26))/SUMIF(OFFSET($B26,1,0,$D26),TRUE,OFFSET($K26,1,0,$D26))*$N24,2)) -> 27801 | Z26: =IF($B26,ROUND(Z25*$N24,2),ROUND(SUMIF(OFFSET($B26,1,0,$D26),TRUE,OFFSET(Z26,1,0,$D26))/SUMIF(OFFSET($B26,1,0,$D26),TRUE,OFFSET($K26,1,0,$D26))*$N24,2)) -> 27801 | AA26: =IF($B26,ROUND(AA25*$N24,2),ROUND(SUMIF(OFFSET($B26,1,0,$D26),TRUE,OFFSET(AA26,1,0,$D26))/SUMIF(OFFSET($B26,1,0,$D26),TRUE,OFFSET($K26,1,0,$D26))*$N24,2)) -> 27801 | AB26: =IF($B26,ROUND(AB25*$N24,2),ROUND(SUMIF(OFFSET($B26,1,0,$D26),TRUE,OFFSET(AB26,1,0,$D26))/SUMIF(OFFSET($B26,1,0,$D26),TRUE,OFFSET($K26,1,0,$D26))*$N24,2)) -> 27801 | AC26: =IF($B26,ROUND(AC25*$N24,2),ROUND(SUMIF(OFFSET($B26,1,0,$D26),TRUE,OFFSET(AC26,1,0,$D26))/SUMIF(OFFSET($B26,1,0,$D26),TRUE,OFFSET($K26,1,0,$D26))*$N24,2)) -> 27801 | AD26: =IF($B26,ROUND(AD25*$N24,2),ROUND(SUMIF(OFFSET($B26,1,0,$D26),TRUE,OFFSET(AD26,1,0,$D26))/SUMIF(OFFSET($B26,1,0,$D26),TRUE,OFFSET($K26,1,0,$D26))*$N24,2)) -> 27801 | AE26: =IF($B26,ROUND(AE25*$N24,2),ROUND(SUMIF(OFFSET($B26,1,0,$D26),TRUE,OFFSET(AE26,1,0,$D26))/SUMIF(OFFSET($B26,1,0,$D26),TRUE,OFFSET($K26,1,0,$D26))*$N24,2)) -> 27801 | AF26: =IF($B26,ROUND(AF25*$N24,2),ROUND(SUMIF(OFFSET($B26,1,0,$D26),TRUE,OFFSET(AF26,1,0,$D26))/SUMIF(OFFSET($B26,1,0,$D26),TRUE,OFFSET($K26,1,0,$D26))*$N24,2)) -> 27801 | AG26: =IF($B26,ROUND(AG25*$N24,2),ROUND(SUMIF(OFFSET($B26,1,0,$D26),TRUE,OFFSET(AG26,1,0,$D26))/SUMIF(OFFSET($B26,1,0,$D26),TRUE,OFFSET($K26,1,0,$D26))*$N24,2)) -> 27801 | AH26: =IF($B26,ROUND(AH25*$N24,2),ROUND(SUMIF(OFFSET($B26,1,0,$D26),TRUE,OFFSET(AH26,1,0,$D26))/SUMIF(OFFSET($B26,1,0,$D26),TRUE,OFFSET($K26,1,0,$D26))*$N24,2)) -> 27801 | AI26: =IF($B26,ROUND(AI25*$N24,2),ROUND(SUMIF(OFFSET($B26,1,0,$D26),TRUE,OFFSET(AI26,1,0,$D26))/SUMIF(OFFSET($B26,1,0,$D26),TRUE,OFFSET($K26,1,0,$D26))*$N24,2)) -> 27801 | AJ26: =IF($B26,ROUND(AJ25*$N24,2),ROUND(SUMIF(OFFSET($B26,1,0,$D26),TRUE,OFFSET(AJ26,1,0,$D26))/SUMIF(OFFSET($B26,1,0,$D26),TRUE,OFFSET($K26,1,0,$D26))*$N24,2)) -> 27801 | AK26: =IF($B26,ROUND(AK25*$N24,2),ROUND(SUMIF(OFFSET($B26,1,0,$D26),TRUE,OFFSET(AK26,1,0,$D26))/SUMIF(OFFSET($B26,1,0,$D26),TRUE,OFFSET($K26,1,0,$D26))*$N24,2)) -> 27801 | AL26: =IF($B26,ROUND(AL25*$N24,2),ROUND(SUMIF(OFFSET($B26,1,0,$D26),TRUE,OFFSET(AL26,1,0,$D26))/SUMIF(OFFSET($B26,1,0,$D26),TRUE,OFFSET($K26,1,0,$D26))*$N24,2)) -> 27801 | AM26: =IF($B26,ROUND(AM25*$N24,2),ROUND(SUMIF(OFFSET($B26,1,0,$D26),TRUE,OFFSET(AM26,1,0,$D26))/SUMIF(OFFSET($B26,1,0,$D26),TRUE,OFFSET($K26,1,0,$D26))*$N24,2)) -> 27801
L27: =INDEX(PO!K$11:K$91,MATCH($A29,PO!$W$11:$W$91,0)) -> 2. | M27: =INDEX(PO!O$11:O$91,MATCH($A29,PO!$W$11:$W$91,0)) -> Implementação de estratégia de comunicação do Projeto | N27: =IF(ROUND(K29,2)=0,K29,ROUND(K29,2)) -> 89907.8 | O27: Parcela (%) | P27: =IF($B29,0,P28-IF(ISNUMBER(O28),O28,0)) -> 0 | Q27: =IF($B29,0,Q28-IF(ISNUMBER(P28),P28,0)) -> 0.06879269652 | R27: =IF($B29,0,R28-IF(ISNUMBER(Q28),Q28,0)) -> 0.09312073035 | S27: =IF($B29,0,S28-IF(ISNUMBER(R28),R28,0)) -> 0 | T27: =IF($B29,0,T28-IF(ISNUMBER(S28),S28,0)) -> 0.09312073035 | U27: =IF($B29,0,U28-IF(ISNUMBER(T28),T28,0)) -> 0 | V27: =IF($B29,0,V28-IF(ISNUMBER(U28),U28,0)) -> 0.09312073035 | W27: =IF($B29,0,W28-IF(ISNUMBER(V28),V28,0)) -> 0 | X27: =IF($B29,0,X28-IF(ISNUMBER(W28),W28,0)) -> 0.09312073035 | Y27: =IF($B29,0,Y28-IF(ISNUMBER(X28),X28,0)) -> 0 | Z27: =IF($B29,0,Z28-IF(ISNUMBER(Y28),Y28,0)) -> 0.09312073035 | AA27: =IF($B29,0,AA28-IF(ISNUMBER(Z28),Z28,0)) -> 0 | AB27: =IF($B29,0,AB28-IF(ISNUMBER(AA28),AA28,0)) -> 0.09312073035 | AC27: =IF($B29,0,AC28-IF(ISNUMBER(AB28),AB28,0)) -> 0 | AD27: =IF($B29,0,AD28-IF(ISNUMBER(AC28),AC28,0)) -> 0.09312073035 | AE27: =IF($B29,0,AE28-IF(ISNUMBER(AD28),AD28,0)) -> 0 | AF27: =IF($B29,0,AF28-IF(ISNUMBER(AE28),AE28,0)) -> 0.09312073035 | AG27: =IF($B29,0,AG28-IF(ISNUMBER(AF28),AF28,0)) -> 0 | AH27: =IF($B29,0,AH28-IF(ISNUMBER(AG28),AG28,0)) -> 0.09312073035 | AI27: =IF($B29,0,AI28-IF(ISNUMBER(AH28),AH28,0)) -> 0 | AJ27: =IF($B29,0,AJ28-IF(ISNUMBER(AI28),AI28,0)) -> 0.09312073035 | AK27: =IF($B29,0,AK28-IF(ISNUMBER(AJ28),AJ28,0)) -> 0 | AL27: =IF($B29,0,AL28-IF(ISNUMBER(AK28),AK28,0)) -> 0 | AM27: =IF($B29,0,AM28-IF(ISNUMBER(AL28),AL28,0)) -> 0
O28: Acumulado (%) | P28: =MIN(IF($B29,P27+IF(ISNUMBER(O28),O28,0),P29/$N27),1) -> 0 | Q28: =MIN(IF($B29,Q27+IF(ISNUMBER(P28),P28,0),Q29/$N27),1) -> 0.06879269652 | R28: =MIN(IF($B29,R27+IF(ISNUMBER(Q28),Q28,0),R29/$N27),1) -> 0.1619134269 | S28: =MIN(IF($B29,S27+IF(ISNUMBER(R28),R28,0),S29/$N27),1) -> 0.1619134269 | T28: =MIN(IF($B29,T27+IF(ISNUMBER(S28),S28,0),T29/$N27),1) -> 0.2550341572 | U28: =MIN(IF($B29,U27+IF(ISNUMBER(T28),T28,0),U29/$N27),1) -> 0.2550341572 | V28: =MIN(IF($B29,V27+IF(ISNUMBER(U28),U28,0),V29/$N27),1) -> 0.3481548876 | W28: =MIN(IF($B29,W27+IF(ISNUMBER(V28),V28,0),W29/$N27),1) -> 0.3481548876 | X28: =MIN(IF($B29,X27+IF(ISNUMBER(W28),W28,0),X29/$N27),1) -> 0.4412756179 | Y28: =MIN(IF($B29,Y27+IF(ISNUMBER(X28),X28,0),Y29/$N27),1) -> 0.4412756179 | Z28: =MIN(IF($B29,Z27+IF(ISNUMBER(Y28),Y28,0),Z29/$N27),1) -> 0.5343963483 | AA28: =MIN(IF($B29,AA27+IF(ISNUMBER(Z28),Z28,0),AA29/$N27),1) -> 0.5343963483 | AB28: =MIN(IF($B29,AB27+IF(ISNUMBER(AA28),AA28,0),AB29/$N27),1) -> 0.6275170786 | AC28: =MIN(IF($B29,AC27+IF(ISNUMBER(AB28),AB28,0),AC29/$N27),1) -> 0.6275170786 | AD28: =MIN(IF($B29,AD27+IF(ISNUMBER(AC28),AC28,0),AD29/$N27),1) -> 0.720637809 | AE28: =MIN(IF($B29,AE27+IF(ISNUMBER(AD28),AD28,0),AE29/$N27),1) -> 0.720637809 | AF28: =MIN(IF($B29,AF27+IF(ISNUMBER(AE28),AE28,0),AF29/$N27),1) -> 0.8137585393 | AG28: =MIN(IF($B29,AG27+IF(ISNUMBER(AF28),AF28,0),AG29/$N27),1) -> 0.8137585393 | AH28: =MIN(IF($B29,AH27+IF(ISNUMBER(AG28),AG28,0),AH29/$N27),1) -> 0.9068792697 | AI28: =MIN(IF($B29,AI27+IF(ISNUMBER(AH28),AH28,0),AI29/$N27),1) -> 0.9068792697 | AJ28: =MIN(IF($B29,AJ27+IF(ISNUMBER(AI28),AI28,0),AJ29/$N27),1) -> 1 | AK28: =MIN(IF($B29,AK27+IF(ISNUMBER(AJ28),AJ28,0),AK29/$N27),1) -> 1 | AL28: =MIN(IF($B29,AL27+IF(ISNUMBER(AK28),AK28,0),AL29/$N27),1) -> 1 | AM28: =MIN(IF($B29,AM27+IF(ISNUMBER(AL28),AL28,0),AM29/$N27),1) -> 1
A29: =OFFSET(A29,-CFF.NumLinha,0)+1 -> 4 | B29: =$C29>=OFFSET($C29,CFF.NumLinha,0) -> FALSE | C29: =INDEX(PO!A$11:A$91,MATCH($A29,PO!$W$11:$W$91,0)) -> 1 | D29: =IF(ISERROR(J29),I29,SMALL(I29:J29,1))-1 -> 14 | E29: =IF($C29=1,OFFSET(E29,-CFF.NumLinha,0)+1,OFFSET(E29,-CFF.NumLinha,0)) -> 2 | F29: =IF($C29=1,0,IF($C29=2,OFFSET(F29,-CFF.NumLinha,0)+1,OFFSET(F29,-CFF.NumLinha,0))) -> 0 | G29: =IF(AND($C29<=2,$C29<>0),0,IF($C29=3,OFFSET(G29,-CFF.NumLinha,0)+1,OFFSET(G29,-CFF.NumLinha,0))) -> 0 | H29: =IF(AND($C29<=3,$C29<>0),0,IF($C29=4,OFFSET(H29,-CFF.NumLinha,0)+1,OFFSET(H29,-CFF.NumLinha,0))) -> 0 | I29: =MATCH(0,OFFSET($D29,1,$C29,ROW($A$87)-ROW($A29)),0) -> 58 | J29: =MATCH(OFFSET($D29,0,$C29)+1,OFFSET($D29,1,$C29,ROW($A$87)-ROW($A29)),0) -> 15 | K29: =ROUND(INDEX(PO!U$11:U$91,MATCH($A29,PO!$W$11:$W$91,0)),2)+10^-12 -> 89907.8 | O29: Acumulado (R$) | P29: =IF($B29,ROUND(P28*$N27,2),ROUND(SUMIF(OFFSET($B29,1,0,$D29),TRUE,OFFSET(P29,1,0,$D29))/SUMIF(OFFSET($B29,1,0,$D29),TRUE,OFFSET($K29,1,0,$D29))*$N27,2)) -> 0 | Q29: 6185 | R29: 14557.28 | S29: 14557.28 | T29: 22929.56 | U29: 22929.56 | V29: 31301.84 | W29: 31301.84 | X29: =IF($B29,ROUND(X28*$N27,2),ROUND(SUMIF(OFFSET($B29,1,0,$D29),TRUE,OFFSET(X29,1,0,$D29))/SUMIF(OFFSET($B29,1,0,$D29),TRUE,OFFSET($K29,1,0,$D29))*$N27,2)) -> 39674.12 | Y29: =IF($B29,ROUND(Y28*$N27,2),ROUND(SUMIF(OFFSET($B29,1,0,$D29),TRUE,OFFSET(Y29,1,0,$D29))/SUMIF(OFFSET($B29,1,0,$D29),TRUE,OFFSET($K29,1,0,$D29))*$N27,2)) -> 39674.12 | Z29: =IF($B29,ROUND(Z28*$N27,2),ROUND(SUMIF(OFFSET($B29,1,0,$D29),TRUE,OFFSET(Z29,1,0,$D29))/SUMIF(OFFSET($B29,1,0,$D29),TRUE,OFFSET($K29,1,0,$D29))*$N27,2)) -> 48046.4 | AA29: =IF($B29,ROUND(AA28*$N27,2),ROUND(SUMIF(OFFSET($B29,1,0,$D29),TRUE,OFFSET(AA29,1,0,$D29))/SUMIF(OFFSET($B29,1,0,$D29),TRUE,OFFSET($K29,1,0,$D29))*$N27,2)) -> 48046.4 | AB29: =IF($B29,ROUND(AB28*$N27,2),ROUND(SUMIF(OFFSET($B29,1,0,$D29),TRUE,OFFSET(AB29,1,0,$D29))/SUMIF(OFFSET($B29,1,0,$D29),TRUE,OFFSET($K29,1,0,$D29))*$N27,2)) -> 56418.68 | AC29: =IF($B29,ROUND(AC28*$N27,2),ROUND(SUMIF(OFFSET($B29,1,0,$D29),TRUE,OFFSET(AC29,1,0,$D29))/SUMIF(OFFSET($B29,1,0,$D29),TRUE,OFFSET($K29,1,0,$D29))*$N27,2)) -> 56418.68 | AD29: =IF($B29,ROUND(AD28*$N27,2),ROUND(SUMIF(OFFSET($B29,1,0,$D29),TRUE,OFFSET(AD29,1,0,$D29))/SUMIF(OFFSET($B29,1,0,$D29),TRUE,OFFSET($K29,1,0,$D29))*$N27,2)) -> 64790.96 | AE29: =IF($B29,ROUND(AE28*$N27,2),ROUND(SUMIF(OFFSET($B29,1,0,$D29),TRUE,OFFSET(AE29,1,0,$D29))/SUMIF(OFFSET($B29,1,0,$D29),TRUE,OFFSET($K29,1,0,$D29))*$N27,2)) -> 64790.96 | AF29: =IF($B29,ROUND(AF28*$N27,2),ROUND(SUMIF(OFFSET($B29,1,0,$D29),TRUE,OFFSET(AF29,1,0,$D29))/SUMIF(OFFSET($B29,1,0,$D29),TRUE,OFFSET($K29,1,0,$D29))*$N27,2)) -> 73163.24 | AG29: =IF($B29,ROUND(AG28*$N27,2),ROUND(SUMIF(OFFSET($B29,1,0,$D29),TRUE,OFFSET(AG29,1,0,$D29))/SUMIF(OFFSET($B29,1,0,$D29),TRUE,OFFSET($K29,1,0,$D29))*$N27,2)) -> 73163.24 | AH29: =IF($B29,ROUND(AH28*$N27,2),ROUND(SUMIF(OFFSET($B29,1,0,$D29),TRUE,OFFSET(AH29,1,0,$D29))/SUMIF(OFFSET($B29,1,0,$D29),TRUE,OFFSET($K29,1,0,$D29))*$N27,2)) -> 81535.52 | AI29: =IF($B29,ROUND(AI28*$N27,2),ROUND(SUMIF(OFFSET($B29,1,0,$D29),TRUE,OFFSET(AI29,1,0,$D29))/SUMIF(OFFSET($B29,1,0,$D29),TRUE,OFFSET($K29,1,0,$D29))*$N27,2)) -> 81535.52 | AJ29: =IF($B29,ROUND(AJ28*$N27,2),ROUND(SUMIF(OFFSET($B29,1,0,$D29),TRUE,OFFSET(AJ29,1,0,$D29))/SUMIF(OFFSET($B29,1,0,$D29),TRUE,OFFSET($K29,1,0,$D29))*$N27,2)) -> 89907.8 | AK29: =IF($B29,ROUND(AK28*$N27,2),ROUND(SUMIF(OFFSET($B29,1,0,$D29),TRUE,OFFSET(AK29,1,0,$D29))/SUMIF(OFFSET($B29,1,0,$D29),TRUE,OFFSET($K29,1,0,$D29))*$N27,2)) -> 89907.8 | AL29: =IF($B29,ROUND(AL28*$N27,2),ROUND(SUMIF(OFFSET($B29,1,0,$D29),TRUE,OFFSET(AL29,1,0,$D29))/SUMIF(OFFSET($B29,1,0,$D29),TRUE,OFFSET($K29,1,0,$D29))*$N27,2)) -> 89907.8 | AM29: =IF($B29,ROUND(AM28*$N27,2),ROUND(SUMIF(OFFSET($B29,1,0,$D29),TRUE,OFFSET(AM29,1,0,$D29))/SUMIF(OFFSET($B29,1,0,$D29),TRUE,OFFSET($K29,1,0,$D29))*$N27,2)) -> 89907.8
L30: =INDEX(PO!K$11:K$91,MATCH($A32,PO!$W$11:$W$91,0)) -> 2.1. | M30: =INDEX(PO!O$11:O$91,MATCH($A32,PO!$W$11:$W$91,0)) -> Elaboração de base para peças de comunicação de multimídia | N30: =IF(ROUND(K32,2)=0,K32,ROUND(K32,2)) -> 6185 | O30: Parcela (%) | P30: =IF($B32,0,P31-IF(ISNUMBER(O31),O31,0)) -> 0 | Q30: 1 | R30: =IF($B32,0,R31-IF(ISNUMBER(Q31),Q31,0)) -> 0 | S30: =IF($B32,0,S31-IF(ISNUMBER(R31),R31,0)) -> 0 | T30: =IF($B32,0,T31-IF(ISNUMBER(S31),S31,0)) -> 0 | U30: =IF($B32,0,U31-IF(ISNUMBER(T31),T31,0)) -> 0 | V30: =IF($B32,0,V31-IF(ISNUMBER(U31),U31,0)) -> 0 | W30: =IF($B32,0,W31-IF(ISNUMBER(V31),V31,0)) -> 0 | X30: =IF($B32,0,X31-IF(ISNUMBER(W31),W31,0)) -> 0 | Y30: 1 | Z30: =IF($B32,0,Z31-IF(ISNUMBER(Y31),Y31,0)) -> 0 | AA30: =IF($B32,0,AA31-IF(ISNUMBER(Z31),Z31,0)) -> 0 | AB30: =IF($B32,0,AB31-IF(ISNUMBER(AA31),AA31,0)) -> 0 | AC30: =IF($B32,0,AC31-IF(ISNUMBER(AB31),AB31,0)) -> 0 | AD30: =IF($B32,0,AD31-IF(ISNUMBER(AC31),AC31,0)) -> 0 | AE30: =IF($B32,0,AE31-IF(ISNUMBER(AD31),AD31,0)) -> 0 | AF30: =IF($B32,0,AF31-IF(ISNUMBER(AE31),AE31,0)) -> 0 | AG30: 1 | AH30: =IF($B32,0,AH31-IF(ISNUMBER(AG31),AG31,0)) -> 0 | AI30: =IF($B32,0,AI31-IF(ISNUMBER(AH31),AH31,0)) -> 0 | AJ30: =IF($B32,0,AJ31-IF(ISNUMBER(AI31),AI31,0)) -> 0 | AK30: =IF($B32,0,AK31-IF(ISNUMBER(AJ31),AJ31,0)) -> 0 | AL30: =IF($B32,0,AL31-IF(ISNUMBER(AK31),AK31,0)) -> 0 | AM30: =IF($B32,0,AM31-IF(ISNUMBER(AL31),AL31,0)) -> 0
O31: Acumulado (%) | P31: =MIN(IF($B32,P30+IF(ISNUMBER(O31),O31,0),P32/$N30),1) -> 0 | Q31: =MIN(IF($B32,Q30+IF(ISNUMBER(P31),P31,0),Q32/$N30),1) -> 1 | R31: =MIN(IF($B32,R30+IF(ISNUMBER(Q31),Q31,0),R32/$N30),1) -> 1 | S31: =MIN(IF($B32,S30+IF(ISNUMBER(R31),R31,0),S32/$N30),1) -> 1 | T31: =MIN(IF($B32,T30+IF(ISNUMBER(S31),S31,0),T32/$N30),1) -> 1 | U31: =MIN(IF($B32,U30+IF(ISNUMBER(T31),T31,0),U32/$N30),1) -> 1 | V31: =MIN(IF($B32,V30+IF(ISNUMBER(U31),U31,0),V32/$N30),1) -> 1 | W31: =MIN(IF($B32,W30+IF(ISNUMBER(V31),V31,0),W32/$N30),1) -> 1 | X31: =MIN(IF($B32,X30+IF(ISNUMBER(W31),W31,0),X32/$N30),1) -> 1 | Y31: =MIN(IF($B32,Y30+IF(ISNUMBER(X31),X31,0),Y32/$N30),1) -> 1 | Z31: =MIN(IF($B32,Z30+IF(ISNUMBER(Y31),Y31,0),Z32/$N30),1) -> 1 | AA31: =MIN(IF($B32,AA30+IF(ISNUMBER(Z31),Z31,0),AA32/$N30),1) -> 1 | AB31: =MIN(IF($B32,AB30+IF(ISNUMBER(AA31),AA31,0),AB32/$N30),1) -> 1 | AC31: =MIN(IF($B32,AC30+IF(ISNUMBER(AB31),AB31,0),AC32/$N30),1) -> 1 | AD31: =MIN(IF($B32,AD30+IF(ISNUMBER(AC31),AC31,0),AD32/$N30),1) -> 1 | AE31: =MIN(IF($B32,AE30+IF(ISNUMBER(AD31),AD31,0),AE32/$N30),1) -> 1 | AF31: =MIN(IF($B32,AF30+IF(ISNUMBER(AE31),AE31,0),AF32/$N30),1) -> 1 | AG31: =MIN(IF($B32,AG30+IF(ISNUMBER(AF31),AF31,0),AG32/$N30),1) -> 1 | AH31: =MIN(IF($B32,AH30+IF(ISNUMBER(AG31),AG31,0),AH32/$N30),1) -> 1 | AI31: =MIN(IF($B32,AI30+IF(ISNUMBER(AH31),AH31,0),AI32/$N30),1) -> 1 | AJ31: =MIN(IF($B32,AJ30+IF(ISNUMBER(AI31),AI31,0),AJ32/$N30),1) -> 1 | AK31: =MIN(IF($B32,AK30+IF(ISNUMBER(AJ31),AJ31,0),AK32/$N30),1) -> 1 | AL31: =MIN(IF($B32,AL30+IF(ISNUMBER(AK31),AK31,0),AL32/$N30),1) -> 1 | AM31: =MIN(IF($B32,AM30+IF(ISNUMBER(AL31),AL31,0),AM32/$N30),1) -> 1
A32: =OFFSET(A32,-CFF.NumLinha,0)+1 -> 5 | B32: =$C32>=OFFSET($C32,CFF.NumLinha,0) -> TRUE | C32: =INDEX(PO!A$11:A$91,MATCH($A32,PO!$W$11:$W$91,0)) -> 2 | D32: =IF(ISERROR(J32),I32,SMALL(I32:J32,1))-1 -> 2 | E32: =IF($C32=1,OFFSET(E32,-CFF.NumLinha,0)+1,OFFSET(E32,-CFF.NumLinha,0)) -> 2 | F32: =IF($C32=1,0,IF($C32=2,OFFSET(F32,-CFF.NumLinha,0)+1,OFFSET(F32,-CFF.NumLinha,0))) -> 1 | G32: =IF(AND($C32<=2,$C32<>0),0,IF($C32=3,OFFSET(G32,-CFF.NumLinha,0)+1,OFFSET(G32,-CFF.NumLinha,0))) -> 0 | H32: =IF(AND($C32<=3,$C32<>0),0,IF($C32=4,OFFSET(H32,-CFF.NumLinha,0)+1,OFFSET(H32,-CFF.NumLinha,0))) -> 0 | I32: =MATCH(0,OFFSET($D32,1,$C32,ROW($A$87)-ROW($A32)),0) -> 12 | J32: =MATCH(OFFSET($D32,0,$C32)+1,OFFSET($D32,1,$C32,ROW($A$87)-ROW($A32)),0) -> 3 | K32: =ROUND(INDEX(PO!U$11:U$91,MATCH($A32,PO!$W$11:$W$91,0)),2)+10^-12 -> 6185 | O32: Acumulado (R$) | P32: =IF($B32,ROUND(P31*$N30,2),ROUND(SUMIF(OFFSET($B32,1,0,$D32),TRUE,OFFSET(P32,1,0,$D32))/SUMIF(OFFSET($B32,1,0,$D32),TRUE,OFFSET($K32,1,0,$D32))*$N30,2)) -> 0 | Q32: 6185 | R32: 6185 | S32: 6185 | T32: 6185 | U32: 6185 | V32: 6185 | W32: 6185 | X32: =IF($B32,ROUND(X31*$N30,2),ROUND(SUMIF(OFFSET($B32,1,0,$D32),TRUE,OFFSET(X32,1,0,$D32))/SUMIF(OFFSET($B32,1,0,$D32),TRUE,OFFSET($K32,1,0,$D32))*$N30,2)) -> 6185 | Y32: =IF($B32,ROUND(Y31*$N30,2),ROUND(SUMIF(OFFSET($B32,1,0,$D32),TRUE,OFFSET(Y32,1,0,$D32))/SUMIF(OFFSET($B32,1,0,$D32),TRUE,OFFSET($K32,1,0,$D32))*$N30,2)) -> 6185 | Z32: =IF($B32,ROUND(Z31*$N30,2),ROUND(SUMIF(OFFSET($B32,1,0,$D32),TRUE,OFFSET(Z32,1,0,$D32))/SUMIF(OFFSET($B32,1,0,$D32),TRUE,OFFSET($K32,1,0,$D32))*$N30,2)) -> 6185 | AA32: =IF($B32,ROUND(AA31*$N30,2),ROUND(SUMIF(OFFSET($B32,1,0,$D32),TRUE,OFFSET(AA32,1,0,$D32))/SUMIF(OFFSET($B32,1,0,$D32),TRUE,OFFSET($K32,1,0,$D32))*$N30,2)) -> 6185 | AB32: =IF($B32,ROUND(AB31*$N30,2),ROUND(SUMIF(OFFSET($B32,1,0,$D32),TRUE,OFFSET(AB32,1,0,$D32))/SUMIF(OFFSET($B32,1,0,$D32),TRUE,OFFSET($K32,1,0,$D32))*$N30,2)) -> 6185 | AC32: =IF($B32,ROUND(AC31*$N30,2),ROUND(SUMIF(OFFSET($B32,1,0,$D32),TRUE,OFFSET(AC32,1,0,$D32))/SUMIF(OFFSET($B32,1,0,$D32),TRUE,OFFSET($K32,1,0,$D32))*$N30,2)) -> 6185 | AD32: =IF($B32,ROUND(AD31*$N30,2),ROUND(SUMIF(OFFSET($B32,1,0,$D32),TRUE,OFFSET(AD32,1,0,$D32))/SUMIF(OFFSET($B32,1,0,$D32),TRUE,OFFSET($K32,1,0,$D32))*$N30,2)) -> 6185 | AE32: =IF($B32,ROUND(AE31*$N30,2),ROUND(SUMIF(OFFSET($B32,1,0,$D32),TRUE,OFFSET(AE32,1,0,$D32))/SUMIF(OFFSET($B32,1,0,$D32),TRUE,OFFSET($K32,1,0,$D32))*$N30,2)) -> 6185 | AF32: =IF($B32,ROUND(AF31*$N30,2),ROUND(SUMIF(OFFSET($B32,1,0,$D32),TRUE,OFFSET(AF32,1,0,$D32))/SUMIF(OFFSET($B32,1,0,$D32),TRUE,OFFSET($K32,1,0,$D32))*$N30,2)) -> 6185 | AG32: =IF($B32,ROUND(AG31*$N30,2),ROUND(SUMIF(OFFSET($B32,1,0,$D32),TRUE,OFFSET(AG32,1,0,$D32))/SUMIF(OFFSET($B32,1,0,$D32),TRUE,OFFSET($K32,1,0,$D32))*$N30,2)) -> 6185 | AH32: =IF($B32,ROUND(AH31*$N30,2),ROUND(SUMIF(OFFSET($B32,1,0,$D32),TRUE,OFFSET(AH32,1,0,$D32))/SUMIF(OFFSET($B32,1,0,$D32),TRUE,OFFSET($K32,1,0,$D32))*$N30,2)) -> 6185 | AI32: =IF($B32,ROUND(AI31*$N30,2),ROUND(SUMIF(OFFSET($B32,1,0,$D32),TRUE,OFFSET(AI32,1,0,$D32))/SUMIF(OFFSET($B32,1,0,$D32),TRUE,OFFSET($K32,1,0,$D32))*$N30,2)) -> 6185 | AJ32: =IF($B32,ROUND(AJ31*$N30,2),ROUND(SUMIF(OFFSET($B32,1,0,$D32),TRUE,OFFSET(AJ32,1,0,$D32))/SUMIF(OFFSET($B32,1,0,$D32),TRUE,OFFSET($K32,1,0,$D32))*$N30,2)) -> 6185 | AK32: =IF($B32,ROUND(AK31*$N30,2),ROUND(SUMIF(OFFSET($B32,1,0,$D32),TRUE,OFFSET(AK32,1,0,$D32))/SUMIF(OFFSET($B32,1,0,$D32),TRUE,OFFSET($K32,1,0,$D32))*$N30,2)) -> 6185 | AL32: =IF($B32,ROUND(AL31*$N30,2),ROUND(SUMIF(OFFSET($B32,1,0,$D32),TRUE,OFFSET(AL32,1,0,$D32))/SUMIF(OFFSET($B32,1,0,$D32),TRUE,OFFSET($K32,1,0,$D32))*$N30,2)) -> 6185 | AM32: =IF($B32,ROUND(AM31*$N30,2),ROUND(SUMIF(OFFSET($B32,1,0,$D32),TRUE,OFFSET(AM32,1,0,$D32))/SUMIF(OFFSET($B32,1,0,$D32),TRUE,OFFSET($K32,1,0,$D32))*$N30,2)) -> 6185
L33: =INDEX(PO!K$11:K$91,MATCH($A35,PO!$W$11:$W$91,0)) -> 2.2. | M33: =INDEX(PO!O$11:O$91,MATCH($A35,PO!$W$11:$W$91,0)) -> Elaboração de 10 peças de comunicação ao longo do projeto | N33: =IF(ROUND(K35,2)=0,K35,ROUND(K35,2)) -> 37531.3 | O33: Parcela (%) | P33: =IF($B35,0,P34-IF(ISNUMBER(O34),O34,0)) -> 0 | Q33: 0 | R33: 0.1 | S33: 0 | T33: 0.1 | U33: 0 | V33: 0.1 | W33: 0 | X33: 0.1 | Y33: 0 | Z33: 0.1 | AA33: 0 | AB33: 0.1 | AC33: 0 | AD33: 0.1 | AE33: 0 | AF33: 0.1 | AG33: 0 | AH33: 0.1 | AI33: 0 | AJ33: 0.1 | AK33: =IF($B35,0,AK34-IF(ISNUMBER(AJ34),AJ34,0)) -> 0 | AL33: =IF($B35,0,AL34-IF(ISNUMBER(AK34),AK34,0)) -> 0 | AM33: =IF($B35,0,AM34-IF(ISNUMBER(AL34),AL34,0)) -> 0
O34: Acumulado (%) | P34: =MIN(IF($B35,P33+IF(ISNUMBER(O34),O34,0),P35/$N33),1) -> 0 | Q34: =MIN(IF($B35,Q33+IF(ISNUMBER(P34),P34,0),Q35/$N33),1) -> 0 | R34: =MIN(IF($B35,R33+IF(ISNUMBER(Q34),Q34,0),R35/$N33),1) -> 0.1 | S34: =MIN(IF($B35,S33+IF(ISNUMBER(R34),R34,0),S35/$N33),1) -> 0.1 | T34: =MIN(IF($B35,T33+IF(ISNUMBER(S34),S34,0),T35/$N33),1) -> 0.2 | U34: =MIN(IF($B35,U33+IF(ISNUMBER(T34),T34,0),U35/$N33),1) -> 0.2 | V34: =MIN(IF($B35,V33+IF(ISNUMBER(U34),U34,0),V35/$N33),1) -> 0.3 | W34: =MIN(IF($B35,W33+IF(ISNUMBER(V34),V34,0),W35/$N33),1) -> 0.3 | X34: 0.4 | Y34: =MIN(IF($B35,Y33+IF(ISNUMBER(X34),X34,0),Y35/$N33),1) -> 0.4 | Z34: =MIN(IF($B35,Z33+IF(ISNUMBER(Y34),Y34,0),Z35/$N33),1) -> 0.5 | AA34: =MIN(IF($B35,AA33+IF(ISNUMBER(Z34),Z34,0),AA35/$N33),1) -> 0.5 | AB34: =MIN(IF($B35,AB33+IF(ISNUMBER(AA34),AA34,0),AB35/$N33),1) -> 0.6 | AC34: =MIN(IF($B35,AC33+IF(ISNUMBER(AB34),AB34,0),AC35/$N33),1) -> 0.6 | AD34: =MIN(IF($B35,AD33+IF(ISNUMBER(AC34),AC34,0),AD35/$N33),1) -> 0.7 | AE34: =MIN(IF($B35,AE33+IF(ISNUMBER(AD34),AD34,0),AE35/$N33),1) -> 0.7 | AF34: =MIN(IF($B35,AF33+IF(ISNUMBER(AE34),AE34,0),AF35/$N33),1) -> 0.8 | AG34: =MIN(IF($B35,AG33+IF(ISNUMBER(AF34),AF34,0),AG35/$N33),1) -> 0.8 | AH34: =MIN(IF($B35,AH33+IF(ISNUMBER(AG34),AG34,0),AH35/$N33),1) -> 0.9 | AI34: =MIN(IF($B35,AI33+IF(ISNUMBER(AH34),AH34,0),AI35/$N33),1) -> 0.9 | AJ34: =MIN(IF($B35,AJ33+IF(ISNUMBER(AI34),AI34,0),AJ35/$N33),1) -> 1 | AK34: =MIN(IF($B35,AK33+IF(ISNUMBER(AJ34),AJ34,0),AK35/$N33),1) -> 1 | AL34: =MIN(IF($B35,AL33+IF(ISNUMBER(AK34),AK34,0),AL35/$N33),1) -> 1 | AM34: =MIN(IF($B35,AM33+IF(ISNUMBER(AL34),AL34,0),AM35/$N33),1) -> 1
A35: =OFFSET(A35,-CFF.NumLinha,0)+1 -> 6 | B35: =$C35>=OFFSET($C35,CFF.NumLinha,0) -> TRUE | C35: =INDEX(PO!A$11:A$91,MATCH($A35,PO!$W$11:$W$91,0)) -> 2 | D35: =IF(ISERROR(J35),I35,SMALL(I35:J35,1))-1 -> 2 | E35: =IF($C35=1,OFFSET(E35,-CFF.NumLinha,0)+1,OFFSET(E35,-CFF.NumLinha,0)) -> 2 | F35: =IF($C35=1,0,IF($C35=2,OFFSET(F35,-CFF.NumLinha,0)+1,OFFSET(F35,-CFF.NumLinha,0))) -> 2 | G35: =IF(AND($C35<=2,$C35<>0),0,IF($C35=3,OFFSET(G35,-CFF.NumLinha,0)+1,OFFSET(G35,-CFF.NumLinha,0))) -> 0 | H35: =IF(AND($C35<=3,$C35<>0),0,IF($C35=4,OFFSET(H35,-CFF.NumLinha,0)+1,OFFSET(H35,-CFF.NumLinha,0))) -> 0 | I35: =MATCH(0,OFFSET($D35,1,$C35,ROW($A$87)-ROW($A35)),0) -> 9 | J35: =MATCH(OFFSET($D35,0,$C35)+1,OFFSET($D35,1,$C35,ROW($A$87)-ROW($A35)),0) -> 3 | K35: =ROUND(INDEX(PO!U$11:U$91,MATCH($A35,PO!$W$11:$W$91,0)),2)+10^-12 -> 37531.3 | O35: Acumulado (R$) | P35: =IF($B35,ROUND(P34*$N33,2),ROUND(SUMIF(OFFSET($B35,1,0,$D35),TRUE,OFFSET(P35,1,0,$D35))/SUMIF(OFFSET($B35,1,0,$D35),TRUE,OFFSET($K35,1,0,$D35))*$N33,2)) -> 0 | Q35: 0 | R35: 3753.13 | S35: 3753.13 | T35: 7506.26 | U35: 7506.26 | V35: 11259.39 | W35: 11259.39 | X35: 15012.52 | Y35: 15012.52 | Z35: 18765.65 | AA35: 18765.65 | AB35: 22518.78 | AC35: 22518.78 | AD35: 26271.91 | AE35: 26271.91 | AF35: =IF($B35,ROUND(AF34*$N33,2),ROUND(SUMIF(OFFSET($B35,1,0,$D35),TRUE,OFFSET(AF35,1,0,$D35))/SUMIF(OFFSET($B35,1,0,$D35),TRUE,OFFSET($K35,1,0,$D35))*$N33,2)) -> 30025.04 | AG35: =IF($B35,ROUND(AG34*$N33,2),ROUND(SUMIF(OFFSET($B35,1,0,$D35),TRUE,OFFSET(AG35,1,0,$D35))/SUMIF(OFFSET($B35,1,0,$D35),TRUE,OFFSET($K35,1,0,$D35))*$N33,2)) -> 30025.04 | AH35: =IF($B35,ROUND(AH34*$N33,2),ROUND(SUMIF(OFFSET($B35,1,0,$D35),TRUE,OFFSET(AH35,1,0,$D35))/SUMIF(OFFSET($B35,1,0,$D35),TRUE,OFFSET($K35,1,0,$D35))*$N33,2)) -> 33778.17 | AI35: =IF($B35,ROUND(AI34*$N33,2),ROUND(SUMIF(OFFSET($B35,1,0,$D35),TRUE,OFFSET(AI35,1,0,$D35))/SUMIF(OFFSET($B35,1,0,$D35),TRUE,OFFSET($K35,1,0,$D35))*$N33,2)) -> 33778.17 | AJ35: =IF($B35,ROUND(AJ34*$N33,2),ROUND(SUMIF(OFFSET($B35,1,0,$D35),TRUE,OFFSET(AJ35,1,0,$D35))/SUMIF(OFFSET($B35,1,0,$D35),TRUE,OFFSET($K35,1,0,$D35))*$N33,2)) -> 37531.3 | AK35: =IF($B35,ROUND(AK34*$N33,2),ROUND(SUMIF(OFFSET($B35,1,0,$D35),TRUE,OFFSET(AK35,1,0,$D35))/SUMIF(OFFSET($B35,1,0,$D35),TRUE,OFFSET($K35,1,0,$D35))*$N33,2)) -> 37531.3 | AL35: =IF($B35,ROUND(AL34*$N33,2),ROUND(SUMIF(OFFSET($B35,1,0,$D35),TRUE,OFFSET(AL35,1,0,$D35))/SUMIF(OFFSET($B35,1,0,$D35),TRUE,OFFSET($K35,1,0,$D35))*$N33,2)) -> 37531.3 | AM35: =IF($B35,ROUND(AM34*$N33,2),ROUND(SUMIF(OFFSET($B35,1,0,$D35),TRUE,OFFSET(AM35,1,0,$D35))/SUMIF(OFFSET($B35,1,0,$D35),TRUE,OFFSET($K35,1,0,$D35))*$N33,2)) -> 37531.3
L36: =INDEX(PO!K$11:K$91,MATCH($A38,PO!$W$11:$W$91,0)) -> 2.3. | M36: =INDEX(PO!O$11:O$91,MATCH($A38,PO!$W$11:$W$91,0)) -> Definição e implementação de estratégia de comunicação | N36: =IF(ROUND(K38,2)=0,K38,ROUND(K38,2)) -> 40877.9 | O36: Parcela (%) | P36: =IF($B38,0,P37-IF(ISNUMBER(O37),O37,0)) -> 0 | Q36: =IF($B38,0,Q37-IF(ISNUMBER(P37),P37,0)) -> 0 | R36: 0.1 | S36: 0 | T36: 0.1 | U36: 0 | V36: 0.1 | W36: 0 | X36: 0.1 | Y36: 0 | Z36: 0.1 | AA36: 0 | AB36: 0.1 | AC36: 0 | AD36: 0.1 | AE36: 0 | AF36: 0.1 | AG36: 0 | AH36: 0.1 | AI36: 0 | AJ36: 0.1 | AK36: =IF($B38,0,AK37-IF(ISNUMBER(AJ37),AJ37,0)) -> 0 | AL36: =IF($B38,0,AL37-IF(ISNUMBER(AK37),AK37,0)) -> 0 | AM36: =IF($B38,0,AM37-IF(ISNUMBER(AL37),AL37,0)) -> 0
O37: Acumulado (%) | P37: =MIN(IF($B38,P36+IF(ISNUMBER(O37),O37,0),P38/$N36),1) -> 0 | Q37: =MIN(IF($B38,Q36+IF(ISNUMBER(P37),P37,0),Q38/$N36),1) -> 0 | R37: =MIN(IF($B38,R36+IF(ISNUMBER(Q37),Q37,0),R38/$N36),1) -> 0.1 | S37: =MIN(IF($B38,S36+IF(ISNUMBER(R37),R37,0),S38/$N36),1) -> 0.1 | T37: =MIN(IF($B38,T36+IF(ISNUMBER(S37),S37,0),T38/$N36),1) -> 0.2 | U37: =MIN(IF($B38,U36+IF(ISNUMBER(T37),T37,0),U38/$N36),1) -> 0.2 | V37: =MIN(IF($B38,V36+IF(ISNUMBER(U37),U37,0),V38/$N36),1) -> 0.3 | W37: =MIN(IF($B38,W36+IF(ISNUMBER(V37),V37,0),W38/$N36),1) -> 0.3 | X37: 0.4 | Y37: =MIN(IF($B38,Y36+IF(ISNUMBER(X37),X37,0),Y38/$N36),1) -> 0.4 | Z37: =MIN(IF($B38,Z36+IF(ISNUMBER(Y37),Y37,0),Z38/$N36),1) -> 0.5 | AA37: =MIN(IF($B38,AA36+IF(ISNUMBER(Z37),Z37,0),AA38/$N36),1) -> 0.5 | AB37: =MIN(IF($B38,AB36+IF(ISNUMBER(AA37),AA37,0),AB38/$N36),1) -> 0.6 | AC37: =MIN(IF($B38,AC36+IF(ISNUMBER(AB37),AB37,0),AC38/$N36),1) -> 0.6 | AD37: =MIN(IF($B38,AD36+IF(ISNUMBER(AC37),AC37,0),AD38/$N36),1) -> 0.7 | AE37: =MIN(IF($B38,AE36+IF(ISNUMBER(AD37),AD37,0),AE38/$N36),1) -> 0.7 | AF37: =MIN(IF($B38,AF36+IF(ISNUMBER(AE37),AE37,0),AF38/$N36),1) -> 0.8 | AG37: =MIN(IF($B38,AG36+IF(ISNUMBER(AF37),AF37,0),AG38/$N36),1) -> 0.8 | AH37: =MIN(IF($B38,AH36+IF(ISNUMBER(AG37),AG37,0),AH38/$N36),1) -> 0.9 | AI37: =MIN(IF($B38,AI36+IF(ISNUMBER(AH37),AH37,0),AI38/$N36),1) -> 0.9 | AJ37: =MIN(IF($B38,AJ36+IF(ISNUMBER(AI37),AI37,0),AJ38/$N36),1) -> 1 | AK37: =MIN(IF($B38,AK36+IF(ISNUMBER(AJ37),AJ37,0),AK38/$N36),1) -> 1 | AL37: =MIN(IF($B38,AL36+IF(ISNUMBER(AK37),AK37,0),AL38/$N36),1) -> 1 | AM37: =MIN(IF($B38,AM36+IF(ISNUMBER(AL37),AL37,0),AM38/$N36),1) -> 1
A38: =OFFSET(A38,-CFF.NumLinha,0)+1 -> 7 | B38: =$C38>=OFFSET($C38,CFF.NumLinha,0) -> TRUE | C38: =INDEX(PO!A$11:A$91,MATCH($A38,PO!$W$11:$W$91,0)) -> 2 | D38: =IF(ISERROR(J38),I38,SMALL(I38:J38,1))-1 -> 2 | E38: =IF($C38=1,OFFSET(E38,-CFF.NumLinha,0)+1,OFFSET(E38,-CFF.NumLinha,0)) -> 2 | F38: =IF($C38=1,0,IF($C38=2,OFFSET(F38,-CFF.NumLinha,0)+1,OFFSET(F38,-CFF.NumLinha,0))) -> 3 | G38: =IF(AND($C38<=2,$C38<>0),0,IF($C38=3,OFFSET(G38,-CFF.NumLinha,0)+1,OFFSET(G38,-CFF.NumLinha,0))) -> 0 | H38: =IF(AND($C38<=3,$C38<>0),0,IF($C38=4,OFFSET(H38,-CFF.NumLinha,0)+1,OFFSET(H38,-CFF.NumLinha,0))) -> 0 | I38: =MATCH(0,OFFSET($D38,1,$C38,ROW($A$87)-ROW($A38)),0) -> 6 | J38: =MATCH(OFFSET($D38,0,$C38)+1,OFFSET($D38,1,$C38,ROW($A$87)-ROW($A38)),0) -> 3 | K38: =ROUND(INDEX(PO!U$11:U$91,MATCH($A38,PO!$W$11:$W$91,0)),2)+10^-12 -> 40877.9 | O38: Acumulado (R$) | P38: =IF($B38,ROUND(P37*$N36,2),ROUND(SUMIF(OFFSET($B38,1,0,$D38),TRUE,OFFSET(P38,1,0,$D38))/SUMIF(OFFSET($B38,1,0,$D38),TRUE,OFFSET($K38,1,0,$D38))*$N36,2)) -> 0 | Q38: 0 | R38: 4087.79 | S38: 4087.79 | T38: 8175.58 | U38: 8175.58 | V38: 12263.37 | W38: 12263.37 | X38: 16351.16 | Y38: 16351.16 | Z38: 20438.95 | AA38: 20438.95 | AB38: 24526.74 | AC38: 24526.74 | AD38: 28614.53 | AE38: 28614.53 | AF38: =IF($B38,ROUND(AF37*$N36,2),ROUND(SUMIF(OFFSET($B38,1,0,$D38),TRUE,OFFSET(AF38,1,0,$D38))/SUMIF(OFFSET($B38,1,0,$D38),TRUE,OFFSET($K38,1,0,$D38))*$N36,2)) -> 32702.32 | AG38: =IF($B38,ROUND(AG37*$N36,2),ROUND(SUMIF(OFFSET($B38,1,0,$D38),TRUE,OFFSET(AG38,1,0,$D38))/SUMIF(OFFSET($B38,1,0,$D38),TRUE,OFFSET($K38,1,0,$D38))*$N36,2)) -> 32702.32 | AH38: =IF($B38,ROUND(AH37*$N36,2),ROUND(SUMIF(OFFSET($B38,1,0,$D38),TRUE,OFFSET(AH38,1,0,$D38))/SUMIF(OFFSET($B38,1,0,$D38),TRUE,OFFSET($K38,1,0,$D38))*$N36,2)) -> 36790.11 | AI38: =IF($B38,ROUND(AI37*$N36,2),ROUND(SUMIF(OFFSET($B38,1,0,$D38),TRUE,OFFSET(AI38,1,0,$D38))/SUMIF(OFFSET($B38,1,0,$D38),TRUE,OFFSET($K38,1,0,$D38))*$N36,2)) -> 36790.11 | AJ38: =IF($B38,ROUND(AJ37*$N36,2),ROUND(SUMIF(OFFSET($B38,1,0,$D38),TRUE,OFFSET(AJ38,1,0,$D38))/SUMIF(OFFSET($B38,1,0,$D38),TRUE,OFFSET($K38,1,0,$D38))*$N36,2)) -> 40877.9 | AK38: =IF($B38,ROUND(AK37*$N36,2),ROUND(SUMIF(OFFSET($B38,1,0,$D38),TRUE,OFFSET(AK38,1,0,$D38))/SUMIF(OFFSET($B38,1,0,$D38),TRUE,OFFSET($K38,1,0,$D38))*$N36,2)) -> 40877.9 | AL38: =IF($B38,ROUND(AL37*$N36,2),ROUND(SUMIF(OFFSET($B38,1,0,$D38),TRUE,OFFSET(AL38,1,0,$D38))/SUMIF(OFFSET($B38,1,0,$D38),TRUE,OFFSET($K38,1,0,$D38))*$N36,2)) -> 40877.9 | AM38: =IF($B38,ROUND(AM37*$N36,2),ROUND(SUMIF(OFFSET($B38,1,0,$D38),TRUE,OFFSET(AM38,1,0,$D38))/SUMIF(OFFSET($B38,1,0,$D38),TRUE,OFFSET($K38,1,0,$D38))*$N36,2)) -> 40877.9
L39: =INDEX(PO!K$11:K$91,MATCH($A41,PO!$W$11:$W$91,0)) -> 2.4. | M39: =INDEX(PO!O$11:O$91,MATCH($A41,PO!$W$11:$W$91,0)) -> Monitoramento de resultados de comunicação | N39: =IF(ROUND(K41,2)=0,K41,ROUND(K41,2)) -> 5313.6 | O39: Parcela (%) | P39: =IF($B41,0,P40-IF(ISNUMBER(O40),O40,0)) -> 0 | Q39: =IF($B41,0,Q40-IF(ISNUMBER(P40),P40,0)) -> 0 | R39: 0.1 | S39: 0 | T39: 0.1 | U39: 0 | V39: 0.1 | W39: 0 | X39: 0.1 | Y39: 0 | Z39: 0.1 | AA39: 0 | AB39: 0.1 | AC39: 0 | AD39: 0.1 | AE39: 0 | AF39: 0.1 | AG39: 0 | AH39: 0.1 | AI39: 0 | AJ39: 0.1 | AK39: =IF($B41,0,AK40-IF(ISNUMBER(AJ40),AJ40,0)) -> 0 | AL39: =IF($B41,0,AL40-IF(ISNUMBER(AK40),AK40,0)) -> 0 | AM39: =IF($B41,0,AM40-IF(ISNUMBER(AL40),AL40,0)) -> 0
O40: Acumulado (%) | P40: =MIN(IF($B41,P39+IF(ISNUMBER(O40),O40,0),P41/$N39),1) -> 0 | Q40: =MIN(IF($B41,Q39+IF(ISNUMBER(P40),P40,0),Q41/$N39),1) -> 0 | R40: =MIN(IF($B41,R39+IF(ISNUMBER(Q40),Q40,0),R41/$N39),1) -> 0.1 | S40: =MIN(IF($B41,S39+IF(ISNUMBER(R40),R40,0),S41/$N39),1) -> 0.1 | T40: =MIN(IF($B41,T39+IF(ISNUMBER(S40),S40,0),T41/$N39),1) -> 0.2 | U40: =MIN(IF($B41,U39+IF(ISNUMBER(T40),T40,0),U41/$N39),1) -> 0.2 | V40: =MIN(IF($B41,V39+IF(ISNUMBER(U40),U40,0),V41/$N39),1) -> 0.3 | W40: =MIN(IF($B41,W39+IF(ISNUMBER(V40),V40,0),W41/$N39),1) -> 0.3 | X40: 0.4 | Y40: =MIN(IF($B41,Y39+IF(ISNUMBER(X40),X40,0),Y41/$N39),1) -> 0.4 | Z40: =MIN(IF($B41,Z39+IF(ISNUMBER(Y40),Y40,0),Z41/$N39),1) -> 0.5 | AA40: =MIN(IF($B41,AA39+IF(ISNUMBER(Z40),Z40,0),AA41/$N39),1) -> 0.5 | AB40: =MIN(IF($B41,AB39+IF(ISNUMBER(AA40),AA40,0),AB41/$N39),1) -> 0.6 | AC40: =MIN(IF($B41,AC39+IF(ISNUMBER(AB40),AB40,0),AC41/$N39),1) -> 0.6 | AD40: =MIN(IF($B41,AD39+IF(ISNUMBER(AC40),AC40,0),AD41/$N39),1) -> 0.7 | AE40: =MIN(IF($B41,AE39+IF(ISNUMBER(AD40),AD40,0),AE41/$N39),1) -> 0.7 | AF40: =MIN(IF($B41,AF39+IF(ISNUMBER(AE40),AE40,0),AF41/$N39),1) -> 0.8 | AG40: =MIN(IF($B41,AG39+IF(ISNUMBER(AF40),AF40,0),AG41/$N39),1) -> 0.8 | AH40: =MIN(IF($B41,AH39+IF(ISNUMBER(AG40),AG40,0),AH41/$N39),1) -> 0.9 | AI40: =MIN(IF($B41,AI39+IF(ISNUMBER(AH40),AH40,0),AI41/$N39),1) -> 0.9 | AJ40: =MIN(IF($B41,AJ39+IF(ISNUMBER(AI40),AI40,0),AJ41/$N39),1) -> 1 | AK40: =MIN(IF($B41,AK39+IF(ISNUMBER(AJ40),AJ40,0),AK41/$N39),1) -> 1 | AL40: =MIN(IF($B41,AL39+IF(ISNUMBER(AK40),AK40,0),AL41/$N39),1) -> 1 | AM40: =MIN(IF($B41,AM39+IF(ISNUMBER(AL40),AL40,0),AM41/$N39),1) -> 1
A41: =OFFSET(A41,-CFF.NumLinha,0)+1 -> 8 | B41: =$C41>=OFFSET($C41,CFF.NumLinha,0) -> TRUE | C41: =INDEX(PO!A$11:A$91,MATCH($A41,PO!$W$11:$W$91,0)) -> 2 | D41: =IF(ISERROR(J41),I41,SMALL(I41:J41,1))-1 -> 2 | E41: =IF($C41=1,OFFSET(E41,-CFF.NumLinha,0)+1,OFFSET(E41,-CFF.NumLinha,0)) -> 2 | F41: =IF($C41=1,0,IF($C41=2,OFFSET(F41,-CFF.NumLinha,0)+1,OFFSET(F41,-CFF.NumLinha,0))) -> 4 | G41: =IF(AND($C41<=2,$C41<>0),0,IF($C41=3,OFFSET(G41,-CFF.NumLinha,0)+1,OFFSET(G41,-CFF.NumLinha,0))) -> 0 | H41: =IF(AND($C41<=3,$C41<>0),0,IF($C41=4,OFFSET(H41,-CFF.NumLinha,0)+1,OFFSET(H41,-CFF.NumLinha,0))) -> 0 | I41: =MATCH(0,OFFSET($D41,1,$C41,ROW($A$87)-ROW($A41)),0) -> 3 | J41: =MATCH(OFFSET($D41,0,$C41)+1,OFFSET($D41,1,$C41,ROW($A$87)-ROW($A41)),0) -> 30 | K41: =ROUND(INDEX(PO!U$11:U$91,MATCH($A41,PO!$W$11:$W$91,0)),2)+10^-12 -> 5313.6 | O41: Acumulado (R$) | P41: =IF($B41,ROUND(P40*$N39,2),ROUND(SUMIF(OFFSET($B41,1,0,$D41),TRUE,OFFSET(P41,1,0,$D41))/SUMIF(OFFSET($B41,1,0,$D41),TRUE,OFFSET($K41,1,0,$D41))*$N39,2)) -> 0 | Q41: 0 | R41: 531.36 | S41: 531.36 | T41: 1062.72 | U41: 1062.72 | V41: 1594.08 | W41: 1594.08 | X41: 2125.44 | Y41: 2125.44 | Z41: 2656.8 | AA41: 2656.8 | AB41: 3188.16 | AC41: 3188.16 | AD41: 3719.52 | AE41: 3719.52 | AF41: =IF($B41,ROUND(AF40*$N39,2),ROUND(SUMIF(OFFSET($B41,1,0,$D41),TRUE,OFFSET(AF41,1,0,$D41))/SUMIF(OFFSET($B41,1,0,$D41),TRUE,OFFSET($K41,1,0,$D41))*$N39,2)) -> 4250.88 | AG41: =IF($B41,ROUND(AG40*$N39,2),ROUND(SUMIF(OFFSET($B41,1,0,$D41),TRUE,OFFSET(AG41,1,0,$D41))/SUMIF(OFFSET($B41,1,0,$D41),TRUE,OFFSET($K41,1,0,$D41))*$N39,2)) -> 4250.88 | AH41: =IF($B41,ROUND(AH40*$N39,2),ROUND(SUMIF(OFFSET($B41,1,0,$D41),TRUE,OFFSET(AH41,1,0,$D41))/SUMIF(OFFSET($B41,1,0,$D41),TRUE,OFFSET($K41,1,0,$D41))*$N39,2)) -> 4782.24 | AI41: =IF($B41,ROUND(AI40*$N39,2),ROUND(SUMIF(OFFSET($B41,1,0,$D41),TRUE,OFFSET(AI41,1,0,$D41))/SUMIF(OFFSET($B41,1,0,$D41),TRUE,OFFSET($K41,1,0,$D41))*$N39,2)) -> 4782.24 | AJ41: =IF($B41,ROUND(AJ40*$N39,2),ROUND(SUMIF(OFFSET($B41,1,0,$D41),TRUE,OFFSET(AJ41,1,0,$D41))/SUMIF(OFFSET($B41,1,0,$D41),TRUE,OFFSET($K41,1,0,$D41))*$N39,2)) -> 5313.6 | AK41: =IF($B41,ROUND(AK40*$N39,2),ROUND(SUMIF(OFFSET($B41,1,0,$D41),TRUE,OFFSET(AK41,1,0,$D41))/SUMIF(OFFSET($B41,1,0,$D41),TRUE,OFFSET($K41,1,0,$D41))*$N39,2)) -> 5313.6 | AL41: =IF($B41,ROUND(AL40*$N39,2),ROUND(SUMIF(OFFSET($B41,1,0,$D41),TRUE,OFFSET(AL41,1,0,$D41))/SUMIF(OFFSET($B41,1,0,$D41),TRUE,OFFSET($K41,1,0,$D41))*$N39,2)) -> 5313.6 | AM41: =IF($B41,ROUND(AM40*$N39,2),ROUND(SUMIF(OFFSET($B41,1,0,$D41),TRUE,OFFSET(AM41,1,0,$D41))/SUMIF(OFFSET($B41,1,0,$D41),TRUE,OFFSET($K41,1,0,$D41))*$N39,2)) -> 5313.6
L42: =INDEX(PO!K$11:K$91,MATCH($A44,PO!$W$11:$W$91,0)) -> 3. | M42: =INDEX(PO!O$11:O$91,MATCH($A44,PO!$W$11:$W$91,0)) -> Educação Sanitária e Ambiental | N42: =IF(ROUND(K44,2)=0,K44,ROUND(K44,2)) -> 277286.37 | O42: Parcela (%) | P42: =IF($B44,0,P43-IF(ISNUMBER(O43),O43,0)) -> 0 | Q42: =IF($B44,0,Q43-IF(ISNUMBER(P43),P43,0)) -> 0 | R42: =IF($B44,0,R43-IF(ISNUMBER(Q43),Q43,0)) -> 0.00467974679 | S42: =IF($B44,0,S43-IF(ISNUMBER(R43),R43,0)) -> 0.08679665719 | T42: =IF($B44,0,T43-IF(ISNUMBER(S43),S43,0)) -> 0.04351227217 | U42: =IF($B44,0,U43-IF(ISNUMBER(T43),T43,0)) -> 0.03507143175 | V42: =IF($B44,0,V43-IF(ISNUMBER(U43),U43,0)) -> 0.03617732815 | W42: =IF($B44,0,W43-IF(ISNUMBER(V43),V43,0)) -> 0.05622184026 | X42: 0.03028446728 | Y42: =IF($B44,0,Y43-IF(ISNUMBER(X43),X43,0)) -> 0.1079469575 | Z42: =IF($B44,0,Z43-IF(ISNUMBER(Y43),Y43,0)) -> 0.03028450335 | AA42: =IF($B44,0,AA43-IF(ISNUMBER(Z43),Z43,0)) -> 0.06211459294 | AB42: =IF($B44,0,AB43-IF(ISNUMBER(AA43),AA43,0)) -> 0.03028450335 | AC42: =IF($B44,0,AC43-IF(ISNUMBER(AB43),AB43,0)) -> 0.05099053372 | AD42: =IF($B44,0,AD43-IF(ISNUMBER(AC43),AC43,0)) -> 0.04140856256 | AE42: =IF($B44,0,AE43-IF(ISNUMBER(AD43),AD43,0)) -> 0.05622176813 | AF42: =IF($B44,0,AF43-IF(ISNUMBER(AE43),AE43,0)) -> 0.003828857509 | AG42: =IF($B44,0,AG43-IF(ISNUMBER(AF43),AF43,0)) -> 0.05622184026 | AH42: =IF($B44,0,AH43-IF(ISNUMBER(AG43),AG43,0)) -> 0.0640696115 | AI42: =IF($B44,0,AI43-IF(ISNUMBER(AH43),AH43,0)) -> 0.07744607137 | AJ42: =IF($B44,0,AJ43-IF(ISNUMBER(AI43),AI43,0)) -> 0.06255893501 | AK42: =IF($B44,0,AK43-IF(ISNUMBER(AJ43),AJ43,0)) -> 0.05622176813 | AL42: =IF($B44,0,AL43-IF(ISNUMBER(AK43),AK43,0)) -> 0.003828893573 | AM42: =IF($B44,0,AM43-IF(ISNUMBER(AL43),AL43,0)) -> 0.003828857509
O43: Acumulado (%) | P43: =MIN(IF($B44,P42+IF(ISNUMBER(O43),O43,0),P44/$N42),1) -> 0 | Q43: =MIN(IF($B44,Q42+IF(ISNUMBER(P43),P43,0),Q44/$N42),1) -> 0 | R43: =MIN(IF($B44,R42+IF(ISNUMBER(Q43),Q43,0),R44/$N42),1) -> 0.00467974679 | S43: =MIN(IF($B44,S42+IF(ISNUMBER(R43),R43,0),S44/$N42),1) -> 0.09147640398 | T43: =MIN(IF($B44,T42+IF(ISNUMBER(S43),S43,0),T44/$N42),1) -> 0.1349886761 | U43: =MIN(IF($B44,U42+IF(ISNUMBER(T43),T43,0),U44/$N42),1) -> 0.1700601079 | V43: =MIN(IF($B44,V42+IF(ISNUMBER(U43),U43,0),V44/$N42),1) -> 0.206237436 | W43: =MIN(IF($B44,W42+IF(ISNUMBER(V43),V43,0),W44/$N42),1) -> 0.2624592763 | X43: 0.2927437436 | Y43: =MIN(IF($B44,Y42+IF(ISNUMBER(X43),X43,0),Y44/$N42),1) -> 0.4006907011 | Z43: =MIN(IF($B44,Z42+IF(ISNUMBER(Y43),Y43,0),Z44/$N42),1) -> 0.4309752044 | AA43: =MIN(IF($B44,AA42+IF(ISNUMBER(Z43),Z43,0),AA44/$N42),1) -> 0.4930897974 | AB43: =MIN(IF($B44,AB42+IF(ISNUMBER(AA43),AA43,0),AB44/$N42),1) -> 0.5233743007 | AC43: =MIN(IF($B44,AC42+IF(ISNUMBER(AB43),AB43,0),AC44/$N42),1) -> 0.5743648344 | AD43: =MIN(IF($B44,AD42+IF(ISNUMBER(AC43),AC43,0),AD44/$N42),1) -> 0.615773397 | AE43: =MIN(IF($B44,AE42+IF(ISNUMBER(AD43),AD43,0),AE44/$N42),1) -> 0.6719951651 | AF43: =MIN(IF($B44,AF42+IF(ISNUMBER(AE43),AE43,0),AF44/$N42),1) -> 0.6758240227 | AG43: =MIN(IF($B44,AG42+IF(ISNUMBER(AF43),AF43,0),AG44/$N42),1) -> 0.7320458629 | AH43: =MIN(IF($B44,AH42+IF(ISNUMBER(AG43),AG43,0),AH44/$N42),1) -> 0.7961154744 | AI43: =MIN(IF($B44,AI42+IF(ISNUMBER(AH43),AH43,0),AI44/$N42),1) -> 0.8735615458 | AJ43: =MIN(IF($B44,AJ42+IF(ISNUMBER(AI43),AI43,0),AJ44/$N42),1) -> 0.9361204808 | AK43: =MIN(IF($B44,AK42+IF(ISNUMBER(AJ43),AJ43,0),AK44/$N42),1) -> 0.9923422489 | AL43: =MIN(IF($B44,AL42+IF(ISNUMBER(AK43),AK43,0),AL44/$N42),1) -> 0.9961711425 | AM43: =MIN(IF($B44,AM42+IF(ISNUMBER(AL43),AL43,0),AM44/$N42),1) -> 1
A44: =OFFSET(A44,-CFF.NumLinha,0)+1 -> 9 | B44: =$C44>=OFFSET($C44,CFF.NumLinha,0) -> FALSE | C44: =INDEX(PO!A$11:A$91,MATCH($A44,PO!$W$11:$W$91,0)) -> 1 | D44: =IF(ISERROR(J44),I44,SMALL(I44:J44,1))-1 -> 29 | E44: =IF($C44=1,OFFSET(E44,-CFF.NumLinha,0)+1,OFFSET(E44,-CFF.NumLinha,0)) -> 3 | F44: =IF($C44=1,0,IF($C44=2,OFFSET(F44,-CFF.NumLinha,0)+1,OFFSET(F44,-CFF.NumLinha,0))) -> 0 | G44: =IF(AND($C44<=2,$C44<>0),0,IF($C44=3,OFFSET(G44,-CFF.NumLinha,0)+1,OFFSET(G44,-CFF.NumLinha,0))) -> 0 | H44: =IF(AND($C44<=3,$C44<>0),0,IF($C44=4,OFFSET(H44,-CFF.NumLinha,0)+1,OFFSET(H44,-CFF.NumLinha,0))) -> 0 | I44: =MATCH(0,OFFSET($D44,1,$C44,ROW($A$87)-ROW($A44)),0) -> 43 | J44: =MATCH(OFFSET($D44,0,$C44)+1,OFFSET($D44,1,$C44,ROW($A$87)-ROW($A44)),0) -> 30 | K44: =ROUND(INDEX(PO!U$11:U$91,MATCH($A44,PO!$W$11:$W$91,0)),2)+10^-12 -> 277286.37 | O44: Acumulado (R$) | P44: =IF($B44,ROUND(P43*$N42,2),ROUND(SUMIF(OFFSET($B44,1,0,$D44),TRUE,OFFSET(P44,1,0,$D44))/SUMIF(OFFSET($B44,1,0,$D44),TRUE,OFFSET($K44,1,0,$D44))*$N42,2)) -> 0 | Q44: 0 | R44: 1297.63 | S44: 25365.16 | T44: 37430.52 | U44: 47155.35 | V44: 57186.83 | W44: 72776.38 | X44: 81173.85 | Y44: 111106.07 | Z44: 119503.55 | AA44: 136727.08 | AB44: 145124.56 | AC44: 159263.54 | AD44: 170745.57 | AE44: 186335.1 | AF44: =IF($B44,ROUND(AF43*$N42,2),ROUND(SUMIF(OFFSET($B44,1,0,$D44),TRUE,OFFSET(AF44,1,0,$D44))/SUMIF(OFFSET($B44,1,0,$D44),TRUE,OFFSET($K44,1,0,$D44))*$N42,2)) -> 187396.79 | AG44: =IF($B44,ROUND(AG43*$N42,2),ROUND(SUMIF(OFFSET($B44,1,0,$D44),TRUE,OFFSET(AG44,1,0,$D44))/SUMIF(OFFSET($B44,1,0,$D44),TRUE,OFFSET($K44,1,0,$D44))*$N42,2)) -> 202986.34 | AH44: =IF($B44,ROUND(AH43*$N42,2),ROUND(SUMIF(OFFSET($B44,1,0,$D44),TRUE,OFFSET(AH44,1,0,$D44))/SUMIF(OFFSET($B44,1,0,$D44),TRUE,OFFSET($K44,1,0,$D44))*$N42,2)) -> 220751.97 | AI44: =IF($B44,ROUND(AI43*$N42,2),ROUND(SUMIF(OFFSET($B44,1,0,$D44),TRUE,OFFSET(AI44,1,0,$D44))/SUMIF(OFFSET($B44,1,0,$D44),TRUE,OFFSET($K44,1,0,$D44))*$N42,2)) -> 242226.71 | AJ44: =IF($B44,ROUND(AJ43*$N42,2),ROUND(SUMIF(OFFSET($B44,1,0,$D44),TRUE,OFFSET(AJ44,1,0,$D44))/SUMIF(OFFSET($B44,1,0,$D44),TRUE,OFFSET($K44,1,0,$D44))*$N42,2)) -> 259573.45 | AK44: =IF($B44,ROUND(AK43*$N42,2),ROUND(SUMIF(OFFSET($B44,1,0,$D44),TRUE,OFFSET(AK44,1,0,$D44))/SUMIF(OFFSET($B44,1,0,$D44),TRUE,OFFSET($K44,1,0,$D44))*$N42,2)) -> 275162.98 | AL44: =IF($B44,ROUND(AL43*$N42,2),ROUND(SUMIF(OFFSET($B44,1,0,$D44),TRUE,OFFSET(AL44,1,0,$D44))/SUMIF(OFFSET($B44,1,0,$D44),TRUE,OFFSET($K44,1,0,$D44))*$N42,2)) -> 276224.68 | AM44: =IF($B44,ROUND(AM43*$N42,2),ROUND(SUMIF(OFFSET($B44,1,0,$D44),TRUE,OFFSET(AM44,1,0,$D44))/SUMIF(OFFSET($B44,1,0,$D44),TRUE,OFFSET($K44,1,0,$D44))*$N42,2)) -> 277286.37
L45: =INDEX(PO!K$11:K$91,MATCH($A47,PO!$W$11:$W$91,0)) -> 3.1. | M45: =INDEX(PO!O$11:O$91,MATCH($A47,PO!$W$11:$W$91,0)) -> Visitas técnicas presenciais à ETE | N45: =IF(ROUND(K47,2)=0,K47,ROUND(K47,2)) -> 58647 | O45: Parcela (%) | P45: =IF($B47,0,P46-IF(ISNUMBER(O46),O46,0)) -> 0 | Q45: =IF($B47,0,Q46-IF(ISNUMBER(P46),P46,0)) -> 0 | R45: =IF($B47,0,R46-IF(ISNUMBER(Q46),Q46,0)) -> 0 | S45: =IF($B47,0,S46-IF(ISNUMBER(R46),R46,0)) -> 0 | T45: =IF($B47,0,T46-IF(ISNUMBER(S46),S46,0)) -> 0 | U45: =IF($B47,0,U46-IF(ISNUMBER(T46),T46,0)) -> 0 | V45: 0 | W45: 0.1 | X45: 0 | Y45: 0.1 | Z45: 0 | AA45: 0.1 | AB45: 0 | AC45: 0.1 | AD45: 0 | AE45: 0.1 | AF45: 0 | AG45: 0.1 | AH45: 0.1 | AI45: 0.1 | AJ45: 0.1 | AK45: 0.1 | AL45: =IF($B47,0,AL46-IF(ISNUMBER(AK46),AK46,0)) -> 0 | AM45: =IF($B47,0,AM46-IF(ISNUMBER(AL46),AL46,0)) -> 0
O46: Acumulado (%) | P46: =MIN(IF($B47,P45+IF(ISNUMBER(O46),O46,0),P47/$N45),1) -> 0 | Q46: =MIN(IF($B47,Q45+IF(ISNUMBER(P46),P46,0),Q47/$N45),1) -> 0 | R46: =MIN(IF($B47,R45+IF(ISNUMBER(Q46),Q46,0),R47/$N45),1) -> 0 | S46: =MIN(IF($B47,S45+IF(ISNUMBER(R46),R46,0),S47/$N45),1) -> 0 | T46: =MIN(IF($B47,T45+IF(ISNUMBER(S46),S46,0),T47/$N45),1) -> 0 | U46: =MIN(IF($B47,U45+IF(ISNUMBER(T46),T46,0),U47/$N45),1) -> 0 | V46: =MIN(IF($B47,V45+IF(ISNUMBER(U46),U46,0),V47/$N45),1) -> 0 | W46: =MIN(IF($B47,W45+IF(ISNUMBER(V46),V46,0),W47/$N45),1) -> 0.1 | X46: 0.1 | Y46: =MIN(IF($B47,Y45+IF(ISNUMBER(X46),X46,0),Y47/$N45),1) -> 0.2 | Z46: =MIN(IF($B47,Z45+IF(ISNUMBER(Y46),Y46,0),Z47/$N45),1) -> 0.2 | AA46: =MIN(IF($B47,AA45+IF(ISNUMBER(Z46),Z46,0),AA47/$N45),1) -> 0.3 | AB46: =MIN(IF($B47,AB45+IF(ISNUMBER(AA46),AA46,0),AB47/$N45),1) -> 0.3 | AC46: =MIN(IF($B47,AC45+IF(ISNUMBER(AB46),AB46,0),AC47/$N45),1) -> 0.4 | AD46: =MIN(IF($B47,AD45+IF(ISNUMBER(AC46),AC46,0),AD47/$N45),1) -> 0.4 | AE46: =MIN(IF($B47,AE45+IF(ISNUMBER(AD46),AD46,0),AE47/$N45),1) -> 0.5 | AF46: =MIN(IF($B47,AF45+IF(ISNUMBER(AE46),AE46,0),AF47/$N45),1) -> 0.5 | AG46: =MIN(IF($B47,AG45+IF(ISNUMBER(AF46),AF46,0),AG47/$N45),1) -> 0.6 | AH46: =MIN(IF($B47,AH45+IF(ISNUMBER(AG46),AG46,0),AH47/$N45),1) -> 0.7 | AI46: =MIN(IF($B47,AI45+IF(ISNUMBER(AH46),AH46,0),AI47/$N45),1) -> 0.8 | AJ46: =MIN(IF($B47,AJ45+IF(ISNUMBER(AI46),AI46,0),AJ47/$N45),1) -> 0.9 | AK46: =MIN(IF($B47,AK45+IF(ISNUMBER(AJ46),AJ46,0),AK47/$N45),1) -> 1 | AL46: =MIN(IF($B47,AL45+IF(ISNUMBER(AK46),AK46,0),AL47/$N45),1) -> 1 | AM46: =MIN(IF($B47,AM45+IF(ISNUMBER(AL46),AL46,0),AM47/$N45),1) -> 1
A47: =OFFSET(A47,-CFF.NumLinha,0)+1 -> 10 | B47: =$C47>=OFFSET($C47,CFF.NumLinha,0) -> TRUE | C47: =INDEX(PO!A$11:A$91,MATCH($A47,PO!$W$11:$W$91,0)) -> 2 | D47: =IF(ISERROR(J47),I47,SMALL(I47:J47,1))-1 -> 2 | E47: =IF($C47=1,OFFSET(E47,-CFF.NumLinha,0)+1,OFFSET(E47,-CFF.NumLinha,0)) -> 3 | F47: =IF($C47=1,0,IF($C47=2,OFFSET(F47,-CFF.NumLinha,0)+1,OFFSET(F47,-CFF.NumLinha,0))) -> 1 | G47: =IF(AND($C47<=2,$C47<>0),0,IF($C47=3,OFFSET(G47,-CFF.NumLinha,0)+1,OFFSET(G47,-CFF.NumLinha,0))) -> 0 | H47: =IF(AND($C47<=3,$C47<>0),0,IF($C47=4,OFFSET(H47,-CFF.NumLinha,0)+1,OFFSET(H47,-CFF.NumLinha,0))) -> 0 | I47: =MATCH(0,OFFSET($D47,1,$C47,ROW($A$87)-ROW($A47)),0) -> 27 | J47: =MATCH(OFFSET($D47,0,$C47)+1,OFFSET($D47,1,$C47,ROW($A$87)-ROW($A47)),0) -> 3 | K47: =ROUND(INDEX(PO!U$11:U$91,MATCH($A47,PO!$W$11:$W$91,0)),2)+10^-12 -> 58647 | O47: Acumulado (R$) | P47: =IF($B47,ROUND(P46*$N45,2),ROUND(SUMIF(OFFSET($B47,1,0,$D47),TRUE,OFFSET(P47,1,0,$D47))/SUMIF(OFFSET($B47,1,0,$D47),TRUE,OFFSET($K47,1,0,$D47))*$N45,2)) -> 0 | Q47: 0 | R47: 0 | S47: 0 | T47: 0 | U47: 0 | V47: 0 | W47: 5864.7 | X47: 5864.7 | Y47: 11729.4 | Z47: 11729.4 | AA47: 17594.1 | AB47: 17594.1 | AC47: 23458.8 | AD47: 23458.8 | AE47: 29323.5 | AF47: =IF($B47,ROUND(AF46*$N45,2),ROUND(SUMIF(OFFSET($B47,1,0,$D47),TRUE,OFFSET(AF47,1,0,$D47))/SUMIF(OFFSET($B47,1,0,$D47),TRUE,OFFSET($K47,1,0,$D47))*$N45,2)) -> 29323.5 | AG47: =IF($B47,ROUND(AG46*$N45,2),ROUND(SUMIF(OFFSET($B47,1,0,$D47),TRUE,OFFSET(AG47,1,0,$D47))/SUMIF(OFFSET($B47,1,0,$D47),TRUE,OFFSET($K47,1,0,$D47))*$N45,2)) -> 35188.2 | AH47: =IF($B47,ROUND(AH46*$N45,2),ROUND(SUMIF(OFFSET($B47,1,0,$D47),TRUE,OFFSET(AH47,1,0,$D47))/SUMIF(OFFSET($B47,1,0,$D47),TRUE,OFFSET($K47,1,0,$D47))*$N45,2)) -> 41052.9 | AI47: =IF($B47,ROUND(AI46*$N45,2),ROUND(SUMIF(OFFSET($B47,1,0,$D47),TRUE,OFFSET(AI47,1,0,$D47))/SUMIF(OFFSET($B47,1,0,$D47),TRUE,OFFSET($K47,1,0,$D47))*$N45,2)) -> 46917.6 | AJ47: =IF($B47,ROUND(AJ46*$N45,2),ROUND(SUMIF(OFFSET($B47,1,0,$D47),TRUE,OFFSET(AJ47,1,0,$D47))/SUMIF(OFFSET($B47,1,0,$D47),TRUE,OFFSET($K47,1,0,$D47))*$N45,2)) -> 52782.3 | AK47: =IF($B47,ROUND(AK46*$N45,2),ROUND(SUMIF(OFFSET($B47,1,0,$D47),TRUE,OFFSET(AK47,1,0,$D47))/SUMIF(OFFSET($B47,1,0,$D47),TRUE,OFFSET($K47,1,0,$D47))*$N45,2)) -> 58647 | AL47: =IF($B47,ROUND(AL46*$N45,2),ROUND(SUMIF(OFFSET($B47,1,0,$D47),TRUE,OFFSET(AL47,1,0,$D47))/SUMIF(OFFSET($B47,1,0,$D47),TRUE,OFFSET($K47,1,0,$D47))*$N45,2)) -> 58647 | AM47: =IF($B47,ROUND(AM46*$N45,2),ROUND(SUMIF(OFFSET($B47,1,0,$D47),TRUE,OFFSET(AM47,1,0,$D47))/SUMIF(OFFSET($B47,1,0,$D47),TRUE,OFFSET($K47,1,0,$D47))*$N45,2)) -> 58647
L48: =INDEX(PO!K$11:K$91,MATCH($A50,PO!$W$11:$W$91,0)) -> 3.2. | M48: =INDEX(PO!O$11:O$91,MATCH($A50,PO!$W$11:$W$91,0)) -> Qualificação do diálogo do público alvo com o projeto | N48: =IF(ROUND(K50,2)=0,K50,ROUND(K50,2)) -> 36866.76 | O48: Parcela (%) | P48: =IF($B50,0,P49-IF(ISNUMBER(O49),O49,0)) -> 0 | Q48: =IF($B50,0,Q49-IF(ISNUMBER(P49),P49,0)) -> 0 | R48: =IF($B50,0,R49-IF(ISNUMBER(Q49),Q49,0)) -> 0.03519783133 | S48: =IF($B50,0,S49-IF(ISNUMBER(R49),R49,0)) -> 0.06480227717 | T48: =IF($B50,0,T49-IF(ISNUMBER(S49),S49,0)) -> 0.02879802836 | U48: =IF($B50,0,U49-IF(ISNUMBER(T49),T49,0)) -> 0.06480227717 | V48: =IF($B50,0,V49-IF(ISNUMBER(U49),U49,0)) -> 0.02879802836 | W48: =IF($B50,0,W49-IF(ISNUMBER(V49),V49,0)) -> 0.06480254842 | X48: 0.02879802836 | Y48: =IF($B50,0,Y49-IF(ISNUMBER(X49),X49,0)) -> 0.06480200593 | Z48: =IF($B50,0,Z49-IF(ISNUMBER(Y49),Y49,0)) -> 0.02879829961 | AA48: =IF($B50,0,AA49-IF(ISNUMBER(Z49),Z49,0)) -> 0.06480227717 | AB48: =IF($B50,0,AB49-IF(ISNUMBER(AA49),AA49,0)) -> 0.02879829961 | AC48: =IF($B50,0,AC49-IF(ISNUMBER(AB49),AB49,0)) -> 0.06480227717 | AD48: =IF($B50,0,AD49-IF(ISNUMBER(AC49),AC49,0)) -> 0.02879802836 | AE48: =IF($B50,0,AE49-IF(ISNUMBER(AD49),AD49,0)) -> 0.06480227717 | AF48: =IF($B50,0,AF49-IF(ISNUMBER(AE49),AE49,0)) -> 0.02879802836 | AG48: =IF($B50,0,AG49-IF(ISNUMBER(AF49),AF49,0)) -> 0.06480254842 | AH48: =IF($B50,0,AH49-IF(ISNUMBER(AG49),AG49,0)) -> 0.02879802836 | AI48: =IF($B50,0,AI49-IF(ISNUMBER(AH49),AH49,0)) -> 0.06480200593 | AJ48: =IF($B50,0,AJ49-IF(ISNUMBER(AI49),AI49,0)) -> 0.02879829961 | AK48: =IF($B50,0,AK49-IF(ISNUMBER(AJ49),AJ49,0)) -> 0.06480227717 | AL48: =IF($B50,0,AL49-IF(ISNUMBER(AK49),AK49,0)) -> 0.02879829961 | AM48: =IF($B50,0,AM49-IF(ISNUMBER(AL49),AL49,0)) -> 0.02879802836
O49: Acumulado (%) | P49: =MIN(IF($B50,P48+IF(ISNUMBER(O49),O49,0),P50/$N48),1) -> 0 | Q49: =MIN(IF($B50,Q48+IF(ISNUMBER(P49),P49,0),Q50/$N48),1) -> 0 | R49: =MIN(IF($B50,R48+IF(ISNUMBER(Q49),Q49,0),R50/$N48),1) -> 0.03519783133 | S49: =MIN(IF($B50,S48+IF(ISNUMBER(R49),R49,0),S50/$N48),1) -> 0.1000001085 | T49: =MIN(IF($B50,T48+IF(ISNUMBER(S49),S49,0),T50/$N48),1) -> 0.1287981369 | U49: =MIN(IF($B50,U48+IF(ISNUMBER(T49),T49,0),U50/$N48),1) -> 0.193600414 | V49: =MIN(IF($B50,V48+IF(ISNUMBER(U49),U49,0),V50/$N48),1) -> 0.2223984424 | W49: =MIN(IF($B50,W48+IF(ISNUMBER(V49),V49,0),W50/$N48),1) -> 0.2872009908 | X49: 0.3159990192 | Y49: =MIN(IF($B50,Y48+IF(ISNUMBER(X49),X49,0),Y50/$N48),1) -> 0.3808010251 | Z49: =MIN(IF($B50,Z48+IF(ISNUMBER(Y49),Y49,0),Z50/$N48),1) -> 0.4095993247 | AA49: =MIN(IF($B50,AA48+IF(ISNUMBER(Z49),Z49,0),AA50/$N48),1) -> 0.4744016019 | AB49: =MIN(IF($B50,AB48+IF(ISNUMBER(AA49),AA49,0),AB50/$N48),1) -> 0.5031999015 | AC49: =MIN(IF($B50,AC48+IF(ISNUMBER(AB49),AB49,0),AC50/$N48),1) -> 0.5680021787 | AD49: =MIN(IF($B50,AD48+IF(ISNUMBER(AC49),AC49,0),AD50/$N48),1) -> 0.596800207 | AE49: =MIN(IF($B50,AE48+IF(ISNUMBER(AD49),AD49,0),AE50/$N48),1) -> 0.6616024842 | AF49: =MIN(IF($B50,AF48+IF(ISNUMBER(AE49),AE49,0),AF50/$N48),1) -> 0.6904005125 | AG49: =MIN(IF($B50,AG48+IF(ISNUMBER(AF49),AF49,0),AG50/$N48),1) -> 0.755203061 | AH49: =MIN(IF($B50,AH48+IF(ISNUMBER(AG49),AG49,0),AH50/$N48),1) -> 0.7840010893 | AI49: =MIN(IF($B50,AI48+IF(ISNUMBER(AH49),AH49,0),AI50/$N48),1) -> 0.8488030953 | AJ49: =MIN(IF($B50,AJ48+IF(ISNUMBER(AI49),AI49,0),AJ50/$N48),1) -> 0.8776013949 | AK49: =MIN(IF($B50,AK48+IF(ISNUMBER(AJ49),AJ49,0),AK50/$N48),1) -> 0.942403672 | AL49: =MIN(IF($B50,AL48+IF(ISNUMBER(AK49),AK49,0),AL50/$N48),1) -> 0.9712019716 | AM49: =MIN(IF($B50,AM48+IF(ISNUMBER(AL49),AL49,0),AM50/$N48),1) -> 1
A50: =OFFSET(A50,-CFF.NumLinha,0)+1 -> 11 | B50: =$C50>=OFFSET($C50,CFF.NumLinha,0) -> FALSE | C50: =INDEX(PO!A$11:A$91,MATCH($A50,PO!$W$11:$W$91,0)) -> 2 | D50: =IF(ISERROR(J50),I50,SMALL(I50:J50,1))-1 -> 8 | E50: =IF($C50=1,OFFSET(E50,-CFF.NumLinha,0)+1,OFFSET(E50,-CFF.NumLinha,0)) -> 3 | F50: =IF($C50=1,0,IF($C50=2,OFFSET(F50,-CFF.NumLinha,0)+1,OFFSET(F50,-CFF.NumLinha,0))) -> 2 | G50: =IF(AND($C50<=2,$C50<>0),0,IF($C50=3,OFFSET(G50,-CFF.NumLinha,0)+1,OFFSET(G50,-CFF.NumLinha,0))) -> 0 | H50: =IF(AND($C50<=3,$C50<>0),0,IF($C50=4,OFFSET(H50,-CFF.NumLinha,0)+1,OFFSET(H50,-CFF.NumLinha,0))) -> 0 | I50: =MATCH(0,OFFSET($D50,1,$C50,ROW($A$87)-ROW($A50)),0) -> 24 | J50: =MATCH(OFFSET($D50,0,$C50)+1,OFFSET($D50,1,$C50,ROW($A$87)-ROW($A50)),0) -> 9 | K50: =ROUND(INDEX(PO!U$11:U$91,MATCH($A50,PO!$W$11:$W$91,0)),2)+10^-12 -> 36866.76 | O50: Acumulado (R$) | P50: =IF($B50,ROUND(P49*$N48,2),ROUND(SUMIF(OFFSET($B50,1,0,$D50),TRUE,OFFSET(P50,1,0,$D50))/SUMIF(OFFSET($B50,1,0,$D50),TRUE,OFFSET($K50,1,0,$D50))*$N48,2)) -> 0 | Q50: 0 | R50: 1297.63 | S50: 3686.68 | T50: 4748.37 | U50: 7137.42 | V50: 8199.11 | W50: 10588.17 | X50: 11649.86 | Y50: 14038.9 | Z50: 15100.6 | AA50: 17489.65 | AB50: 18551.35 | AC50: 20940.4 | AD50: 22002.09 | AE50: 24391.14 | AF50: =IF($B50,ROUND(AF49*$N48,2),ROUND(SUMIF(OFFSET($B50,1,0,$D50),TRUE,OFFSET(AF50,1,0,$D50))/SUMIF(OFFSET($B50,1,0,$D50),TRUE,OFFSET($K50,1,0,$D50))*$N48,2)) -> 25452.83 | AG50: =IF($B50,ROUND(AG49*$N48,2),ROUND(SUMIF(OFFSET($B50,1,0,$D50),TRUE,OFFSET(AG50,1,0,$D50))/SUMIF(OFFSET($B50,1,0,$D50),TRUE,OFFSET($K50,1,0,$D50))*$N48,2)) -> 27841.89 | AH50: =IF($B50,ROUND(AH49*$N48,2),ROUND(SUMIF(OFFSET($B50,1,0,$D50),TRUE,OFFSET(AH50,1,0,$D50))/SUMIF(OFFSET($B50,1,0,$D50),TRUE,OFFSET($K50,1,0,$D50))*$N48,2)) -> 28903.58 | AI50: =IF($B50,ROUND(AI49*$N48,2),ROUND(SUMIF(OFFSET($B50,1,0,$D50),TRUE,OFFSET(AI50,1,0,$D50))/SUMIF(OFFSET($B50,1,0,$D50),TRUE,OFFSET($K50,1,0,$D50))*$N48,2)) -> 31292.62 | AJ50: =IF($B50,ROUND(AJ49*$N48,2),ROUND(SUMIF(OFFSET($B50,1,0,$D50),TRUE,OFFSET(AJ50,1,0,$D50))/SUMIF(OFFSET($B50,1,0,$D50),TRUE,OFFSET($K50,1,0,$D50))*$N48,2)) -> 32354.32 | AK50: =IF($B50,ROUND(AK49*$N48,2),ROUND(SUMIF(OFFSET($B50,1,0,$D50),TRUE,OFFSET(AK50,1,0,$D50))/SUMIF(OFFSET($B50,1,0,$D50),TRUE,OFFSET($K50,1,0,$D50))*$N48,2)) -> 34743.37 | AL50: =IF($B50,ROUND(AL49*$N48,2),ROUND(SUMIF(OFFSET($B50,1,0,$D50),TRUE,OFFSET(AL50,1,0,$D50))/SUMIF(OFFSET($B50,1,0,$D50),TRUE,OFFSET($K50,1,0,$D50))*$N48,2)) -> 35805.07 | AM50: =IF($B50,ROUND(AM49*$N48,2),ROUND(SUMIF(OFFSET($B50,1,0,$D50),TRUE,OFFSET(AM50,1,0,$D50))/SUMIF(OFFSET($B50,1,0,$D50),TRUE,OFFSET($K50,1,0,$D50))*$N48,2)) -> 36866.76
L51: =INDEX(PO!K$11:K$91,MATCH($A53,PO!$W$11:$W$91,0)) -> 3.2.1. | M51: =INDEX(PO!O$11:O$91,MATCH($A53,PO!$W$11:$W$91,0)) -> Utilização de canais receptivos existentes, treinamento de atendimento e protocolo de registro | N51: =IF(ROUND(K53,2)=0,K53,ROUND(K53,2)) -> 13273.56 | O51: Parcela (%) | P51: =IF($B53,0,P52-IF(ISNUMBER(O52),O52,0)) -> 0 | R51: =IF($B53,0,R52-IF(ISNUMBER(Q52),Q52,0)) -> 0 | S51: 0.1 | T51: 0 | U51: 0.1 | V51: 0 | W51: 0.1 | X51: 0 | Y51: 0.1 | Z51: 0 | AA51: 0.1 | AB51: =IF($B53,0,AB52-IF(ISNUMBER(AA52),AA52,0)) -> 0 | AC51: 0.1 | AD51: 0 | AE51: 0.1 | AF51: =IF($B53,0,AF52-IF(ISNUMBER(AE52),AE52,0)) -> 0 | AG51: 0.1 | AH51: 0 | AI51: 0.1 | AJ51: =IF($B53,0,AJ52-IF(ISNUMBER(AI52),AI52,0)) -> 0 | AK51: 0.1 | AL51: =IF($B53,0,AL52-IF(ISNUMBER(AK52),AK52,0)) -> 0 | AM51: =IF($B53,0,AM52-IF(ISNUMBER(AL52),AL52,0)) -> 0
O52: Acumulado (%) | P52: =MIN(IF($B53,P51+IF(ISNUMBER(O52),O52,0),P53/$N51),1) -> 0 | Q52: =MIN(IF($B53,Q51+IF(ISNUMBER(P52),P52,0),Q53/$N51),1) -> 0 | R52: =MIN(IF($B53,R51+IF(ISNUMBER(Q52),Q52,0),R53/$N51),1) -> 0 | S52: =MIN(IF($B53,S51+IF(ISNUMBER(R52),R52,0),S53/$N51),1) -> 0.1 | T52: =MIN(IF($B53,T51+IF(ISNUMBER(S52),S52,0),T53/$N51),1) -> 0.1 | U52: =MIN(IF($B53,U51+IF(ISNUMBER(T52),T52,0),U53/$N51),1) -> 0.2 | V52: =MIN(IF($B53,V51+IF(ISNUMBER(U52),U52,0),V53/$N51),1) -> 0.2 | W52: =MIN(IF($B53,W51+IF(ISNUMBER(V52),V52,0),W53/$N51),1) -> 0.3 | X52: 0.3 | Y52: =MIN(IF($B53,Y51+IF(ISNUMBER(X52),X52,0),Y53/$N51),1) -> 0.4 | Z52: =MIN(IF($B53,Z51+IF(ISNUMBER(Y52),Y52,0),Z53/$N51),1) -> 0.4 | AA52: =MIN(IF($B53,AA51+IF(ISNUMBER(Z52),Z52,0),AA53/$N51),1) -> 0.5 | AB52: =MIN(IF($B53,AB51+IF(ISNUMBER(AA52),AA52,0),AB53/$N51),1) -> 0.5 | AC52: =MIN(IF($B53,AC51+IF(ISNUMBER(AB52),AB52,0),AC53/$N51),1) -> 0.6 | AD52: =MIN(IF($B53,AD51+IF(ISNUMBER(AC52),AC52,0),AD53/$N51),1) -> 0.6 | AE52: =MIN(IF($B53,AE51+IF(ISNUMBER(AD52),AD52,0),AE53/$N51),1) -> 0.7 | AF52: =MIN(IF($B53,AF51+IF(ISNUMBER(AE52),AE52,0),AF53/$N51),1) -> 0.7 | AG52: =MIN(IF($B53,AG51+IF(ISNUMBER(AF52),AF52,0),AG53/$N51),1) -> 0.8 | AH52: =MIN(IF($B53,AH51+IF(ISNUMBER(AG52),AG52,0),AH53/$N51),1) -> 0.8 | AI52: =MIN(IF($B53,AI51+IF(ISNUMBER(AH52),AH52,0),AI53/$N51),1) -> 0.9 | AJ52: =MIN(IF($B53,AJ51+IF(ISNUMBER(AI52),AI52,0),AJ53/$N51),1) -> 0.9 | AK52: =MIN(IF($B53,AK51+IF(ISNUMBER(AJ52),AJ52,0),AK53/$N51),1) -> 1 | AL52: =MIN(IF($B53,AL51+IF(ISNUMBER(AK52),AK52,0),AL53/$N51),1) -> 1 | AM52: =MIN(IF($B53,AM51+IF(ISNUMBER(AL52),AL52,0),AM53/$N51),1) -> 1
A53: =OFFSET(A53,-CFF.NumLinha,0)+1 -> 12 | B53: =$C53>=OFFSET($C53,CFF.NumLinha,0) -> TRUE | C53: =INDEX(PO!A$11:A$91,MATCH($A53,PO!$W$11:$W$91,0)) -> 3 | D53: =IF(ISERROR(J53),I53,SMALL(I53:J53,1))-1 -> 2 | E53: =IF($C53=1,OFFSET(E53,-CFF.NumLinha,0)+1,OFFSET(E53,-CFF.NumLinha,0)) -> 3 | F53: =IF($C53=1,0,IF($C53=2,OFFSET(F53,-CFF.NumLinha,0)+1,OFFSET(F53,-CFF.NumLinha,0))) -> 2 | G53: =IF(AND($C53<=2,$C53<>0),0,IF($C53=3,OFFSET(G53,-CFF.NumLinha,0)+1,OFFSET(G53,-CFF.NumLinha,0))) -> 1 | H53: =IF(AND($C53<=3,$C53<>0),0,IF($C53=4,OFFSET(H53,-CFF.NumLinha,0)+1,OFFSET(H53,-CFF.NumLinha,0))) -> 0 | I53: =MATCH(0,OFFSET($D53,1,$C53,ROW($A$87)-ROW($A53)),0) -> 6 | J53: =MATCH(OFFSET($D53,0,$C53)+1,OFFSET($D53,1,$C53,ROW($A$87)-ROW($A53)),0) -> 3 | K53: =ROUND(INDEX(PO!U$11:U$91,MATCH($A53,PO!$W$11:$W$91,0)),2)+10^-12 -> 13273.56 | O53: Acumulado (R$) | P53: =IF($B53,ROUND(P52*$N51,2),ROUND(SUMIF(OFFSET($B53,1,0,$D53),TRUE,OFFSET(P53,1,0,$D53))/SUMIF(OFFSET($B53,1,0,$D53),TRUE,OFFSET($K53,1,0,$D53))*$N51,2)) -> 0 | Q53: 0 | R53: 0 | S53: 1327.36 | T53: 1327.36 | U53: 2654.71 | V53: 2654.71 | W53: 3982.07 | X53: 3982.07 | Y53: 5309.42 | Z53: 5309.42 | AA53: 6636.78 | AB53: 6636.78 | AC53: 7964.14 | AD53: 7964.14 | AE53: 9291.49 | AF53: =IF($B53,ROUND(AF52*$N51,2),ROUND(SUMIF(OFFSET($B53,1,0,$D53),TRUE,OFFSET(AF53,1,0,$D53))/SUMIF(OFFSET($B53,1,0,$D53),TRUE,OFFSET($K53,1,0,$D53))*$N51,2)) -> 9291.49 | AG53: =IF($B53,ROUND(AG52*$N51,2),ROUND(SUMIF(OFFSET($B53,1,0,$D53),TRUE,OFFSET(AG53,1,0,$D53))/SUMIF(OFFSET($B53,1,0,$D53),TRUE,OFFSET($K53,1,0,$D53))*$N51,2)) -> 10618.85 | AH53: =IF($B53,ROUND(AH52*$N51,2),ROUND(SUMIF(OFFSET($B53,1,0,$D53),TRUE,OFFSET(AH53,1,0,$D53))/SUMIF(OFFSET($B53,1,0,$D53),TRUE,OFFSET($K53,1,0,$D53))*$N51,2)) -> 10618.85 | AI53: =IF($B53,ROUND(AI52*$N51,2),ROUND(SUMIF(OFFSET($B53,1,0,$D53),TRUE,OFFSET(AI53,1,0,$D53))/SUMIF(OFFSET($B53,1,0,$D53),TRUE,OFFSET($K53,1,0,$D53))*$N51,2)) -> 11946.2 | AJ53: =IF($B53,ROUND(AJ52*$N51,2),ROUND(SUMIF(OFFSET($B53,1,0,$D53),TRUE,OFFSET(AJ53,1,0,$D53))/SUMIF(OFFSET($B53,1,0,$D53),TRUE,OFFSET($K53,1,0,$D53))*$N51,2)) -> 11946.2 | AK53: =IF($B53,ROUND(AK52*$N51,2),ROUND(SUMIF(OFFSET($B53,1,0,$D53),TRUE,OFFSET(AK53,1,0,$D53))/SUMIF(OFFSET($B53,1,0,$D53),TRUE,OFFSET($K53,1,0,$D53))*$N51,2)) -> 13273.56 | AL53: =IF($B53,ROUND(AL52*$N51,2),ROUND(SUMIF(OFFSET($B53,1,0,$D53),TRUE,OFFSET(AL53,1,0,$D53))/SUMIF(OFFSET($B53,1,0,$D53),TRUE,OFFSET($K53,1,0,$D53))*$N51,2)) -> 13273.56 | AM53: =IF($B53,ROUND(AM52*$N51,2),ROUND(SUMIF(OFFSET($B53,1,0,$D53),TRUE,OFFSET(AM53,1,0,$D53))/SUMIF(OFFSET($B53,1,0,$D53),TRUE,OFFSET($K53,1,0,$D53))*$N51,2)) -> 13273.56
L54: =INDEX(PO!K$11:K$91,MATCH($A56,PO!$W$11:$W$91,0)) -> 3.2.2. | M54: =INDEX(PO!O$11:O$91,MATCH($A56,PO!$W$11:$W$91,0)) -> Relatório de ouvidoria | N54: =IF(ROUND(K56,2)=0,K56,ROUND(K56,2)) -> 23593.2 | O54: Parcela (%) | P54: =IF($B56,0,P55-IF(ISNUMBER(O55),O55,0)) -> 0 | Q54: =IF($B56,0,Q55-IF(ISNUMBER(P55),P55,0)) -> 0 | R54: 0.055 | S54: 0.045 | T54: 0.045 | U54: 0.045 | V54: 0.045 | W54: 0.045 | X54: 0.045 | Y54: 0.045 | Z54: 0.045 | AA54: 0.045 | AB54: 0.045 | AC54: 0.045 | AD54: 0.045 | AE54: 0.045 | AF54: 0.045 | AG54: 0.045 | AH54: 0.045 | AI54: 0.045 | AJ54: 0.045 | AK54: 0.045 | AL54: 0.045 | AM54: 0.045
O55: Acumulado (%) | P55: =MIN(IF($B56,P54+IF(ISNUMBER(O55),O55,0),P56/$N54),1) -> 0 | Q55: =MIN(IF($B56,Q54+IF(ISNUMBER(P55),P55,0),Q56/$N54),1) -> 0 | R55: =MIN(IF($B56,R54+IF(ISNUMBER(Q55),Q55,0),R56/$N54),1) -> 0.055 | S55: =MIN(IF($B56,S54+IF(ISNUMBER(R55),R55,0),S56/$N54),1) -> 0.1 | T55: =MIN(IF($B56,T54+IF(ISNUMBER(S55),S55,0),T56/$N54),1) -> 0.145 | U55: =MIN(IF($B56,U54+IF(ISNUMBER(T55),T55,0),U56/$N54),1) -> 0.19 | V55: =MIN(IF($B56,V54+IF(ISNUMBER(U55),U55,0),V56/$N54),1) -> 0.235 | W55: =MIN(IF($B56,W54+IF(ISNUMBER(V55),V55,0),W56/$N54),1) -> 0.28 | X55: 0.325 | Y55: =MIN(IF($B56,Y54+IF(ISNUMBER(X55),X55,0),Y56/$N54),1) -> 0.37 | Z55: =MIN(IF($B56,Z54+IF(ISNUMBER(Y55),Y55,0),Z56/$N54),1) -> 0.415 | AA55: =MIN(IF($B56,AA54+IF(ISNUMBER(Z55),Z55,0),AA56/$N54),1) -> 0.46 | AB55: =MIN(IF($B56,AB54+IF(ISNUMBER(AA55),AA55,0),AB56/$N54),1) -> 0.505 | AC55: =MIN(IF($B56,AC54+IF(ISNUMBER(AB55),AB55,0),AC56/$N54),1) -> 0.55 | AD55: =MIN(IF($B56,AD54+IF(ISNUMBER(AC55),AC55,0),AD56/$N54),1) -> 0.595 | AE55: =MIN(IF($B56,AE54+IF(ISNUMBER(AD55),AD55,0),AE56/$N54),1) -> 0.64 | AF55: =MIN(IF($B56,AF54+IF(ISNUMBER(AE55),AE55,0),AF56/$N54),1) -> 0.685 | AG55: =MIN(IF($B56,AG54+IF(ISNUMBER(AF55),AF55,0),AG56/$N54),1) -> 0.73 | AH55: =MIN(IF($B56,AH54+IF(ISNUMBER(AG55),AG55,0),AH56/$N54),1) -> 0.775 | AI55: =MIN(IF($B56,AI54+IF(ISNUMBER(AH55),AH55,0),AI56/$N54),1) -> 0.82 | AJ55: =MIN(IF($B56,AJ54+IF(ISNUMBER(AI55),AI55,0),AJ56/$N54),1) -> 0.865 | AK55: =MIN(IF($B56,AK54+IF(ISNUMBER(AJ55),AJ55,0),AK56/$N54),1) -> 0.91 | AL55: =MIN(IF($B56,AL54+IF(ISNUMBER(AK55),AK55,0),AL56/$N54),1) -> 0.955 | AM55: =MIN(IF($B56,AM54+IF(ISNUMBER(AL55),AL55,0),AM56/$N54),1) -> 1
A56: =OFFSET(A56,-CFF.NumLinha,0)+1 -> 13 | B56: =$C56>=OFFSET($C56,CFF.NumLinha,0) -> TRUE | C56: =INDEX(PO!A$11:A$91,MATCH($A56,PO!$W$11:$W$91,0)) -> 3 | D56: =IF(ISERROR(J56),I56,SMALL(I56:J56,1))-1 -> 2 | E56: =IF($C56=1,OFFSET(E56,-CFF.NumLinha,0)+1,OFFSET(E56,-CFF.NumLinha,0)) -> 3 | F56: =IF($C56=1,0,IF($C56=2,OFFSET(F56,-CFF.NumLinha,0)+1,OFFSET(F56,-CFF.NumLinha,0))) -> 2 | G56: =IF(AND($C56<=2,$C56<>0),0,IF($C56=3,OFFSET(G56,-CFF.NumLinha,0)+1,OFFSET(G56,-CFF.NumLinha,0))) -> 2 | H56: =IF(AND($C56<=3,$C56<>0),0,IF($C56=4,OFFSET(H56,-CFF.NumLinha,0)+1,OFFSET(H56,-CFF.NumLinha,0))) -> 0 | I56: =MATCH(0,OFFSET($D56,1,$C56,ROW($A$87)-ROW($A56)),0) -> 3 | J56: =MATCH(OFFSET($D56,0,$C56)+1,OFFSET($D56,1,$C56,ROW($A$87)-ROW($A56)),0) ->  | K56: =ROUND(INDEX(PO!U$11:U$91,MATCH($A56,PO!$W$11:$W$91,0)),2)+10^-12 -> 23593.2 | O56: Acumulado (R$) | P56: =IF($B56,ROUND(P55*$N54,2),ROUND(SUMIF(OFFSET($B56,1,0,$D56),TRUE,OFFSET(P56,1,0,$D56))/SUMIF(OFFSET($B56,1,0,$D56),TRUE,OFFSET($K56,1,0,$D56))*$N54,2)) -> 0 | Q56: 0 | R56: 1297.63 | S56: 2359.32 | T56: 3421.01 | U56: 4482.71 | V56: 5544.4 | W56: 6606.1 | X56: 7667.79 | Y56: 8729.48 | Z56: 9791.18 | AA56: 10852.87 | AB56: 11914.57 | AC56: 12976.26 | AD56: 14037.95 | AE56: 15099.65 | AF56: =IF($B56,ROUND(AF55*$N54,2),ROUND(SUMIF(OFFSET($B56,1,0,$D56),TRUE,OFFSET(AF56,1,0,$D56))/SUMIF(OFFSET($B56,1,0,$D56),TRUE,OFFSET($K56,1,0,$D56))*$N54,2)) -> 16161.34 | AG56: =IF($B56,ROUND(AG55*$N54,2),ROUND(SUMIF(OFFSET($B56,1,0,$D56),TRUE,OFFSET(AG56,1,0,$D56))/SUMIF(OFFSET($B56,1,0,$D56),TRUE,OFFSET($K56,1,0,$D56))*$N54,2)) -> 17223.04 | AH56: =IF($B56,ROUND(AH55*$N54,2),ROUND(SUMIF(OFFSET($B56,1,0,$D56),TRUE,OFFSET(AH56,1,0,$D56))/SUMIF(OFFSET($B56,1,0,$D56),TRUE,OFFSET($K56,1,0,$D56))*$N54,2)) -> 18284.73 | AI56: =IF($B56,ROUND(AI55*$N54,2),ROUND(SUMIF(OFFSET($B56,1,0,$D56),TRUE,OFFSET(AI56,1,0,$D56))/SUMIF(OFFSET($B56,1,0,$D56),TRUE,OFFSET($K56,1,0,$D56))*$N54,2)) -> 19346.42 | AJ56: =IF($B56,ROUND(AJ55*$N54,2),ROUND(SUMIF(OFFSET($B56,1,0,$D56),TRUE,OFFSET(AJ56,1,0,$D56))/SUMIF(OFFSET($B56,1,0,$D56),TRUE,OFFSET($K56,1,0,$D56))*$N54,2)) -> 20408.12 | AK56: =IF($B56,ROUND(AK55*$N54,2),ROUND(SUMIF(OFFSET($B56,1,0,$D56),TRUE,OFFSET(AK56,1,0,$D56))/SUMIF(OFFSET($B56,1,0,$D56),TRUE,OFFSET($K56,1,0,$D56))*$N54,2)) -> 21469.81 | AL56: =IF($B56,ROUND(AL55*$N54,2),ROUND(SUMIF(OFFSET($B56,1,0,$D56),TRUE,OFFSET(AL56,1,0,$D56))/SUMIF(OFFSET($B56,1,0,$D56),TRUE,OFFSET($K56,1,0,$D56))*$N54,2)) -> 22531.51 | AM56: =IF($B56,ROUND(AM55*$N54,2),ROUND(SUMIF(OFFSET($B56,1,0,$D56),TRUE,OFFSET(AM56,1,0,$D56))/SUMIF(OFFSET($B56,1,0,$D56),TRUE,OFFSET($K56,1,0,$D56))*$N54,2)) -> 23593.2
L57: =INDEX(PO!K$11:K$91,MATCH($A59,PO!$W$11:$W$91,0)) -> 3.3. | M57: =INDEX(PO!O$11:O$91,MATCH($A59,PO!$W$11:$W$91,0)) -> Visitas, plantões sociais e oficinas | N57: =IF(ROUND(K59,2)=0,K59,ROUND(K59,2)) -> 145893.47 | O57: Parcela (%) | P57: =IF($B59,0,P58-IF(ISNUMBER(O58),O58,0)) -> 0 | Q57: =IF($B59,0,Q58-IF(ISNUMBER(P58),P58,0)) -> 0 | R57: =IF($B59,0,R58-IF(ISNUMBER(Q58),Q58,0)) -> 0 | S57: =IF($B59,0,S58-IF(ISNUMBER(R58),R58,0)) -> 0.1485911604 | T57: =IF($B59,0,T58-IF(ISNUMBER(S58),S58,0)) -> 0.07542263543 | U57: =IF($B59,0,U58-IF(ISNUMBER(T58),T58,0)) -> 0.05028175696 | V57: =IF($B59,0,V58-IF(ISNUMBER(U58),U58,0)) -> 0 | W57: =IF($B59,0,W58-IF(ISNUMBER(V58),V58,0)) -> 0.0502818255 | X57: 0.05028175696 | Y57: =IF($B59,0,Y58-IF(ISNUMBER(X58),X58,0)) -> 0.1485911604 | Z57: =IF($B59,0,Z58-IF(ISNUMBER(Y58),Y58,0)) -> 0.05028175696 | AA57: =IF($B59,0,AA58-IF(ISNUMBER(Z58),Z58,0)) -> 0 | AB57: =IF($B59,0,AB58-IF(ISNUMBER(AA58),AA58,0)) -> 0.05028175696 | AC57: =IF($B59,0,AC58-IF(ISNUMBER(AB58),AB58,0)) -> 0 | AD57: =IF($B59,0,AD58-IF(ISNUMBER(AC58),AC58,0)) -> 0.05028175696 | AE57: =IF($B59,0,AE58-IF(ISNUMBER(AD58),AD58,0)) -> 0.05028175696 | AF57: =IF($B59,0,AF58-IF(ISNUMBER(AE58),AE58,0)) -> 0 | AG57: =IF($B59,0,AG58-IF(ISNUMBER(AF58),AF58,0)) -> 0.0502818255 | AH57: =IF($B59,0,AH58-IF(ISNUMBER(AG58),AG58,0)) -> 0.07429558019 | AI57: =IF($B59,0,AI58-IF(ISNUMBER(AH58),AH58,0)) -> 0.05028175696 | AJ57: =IF($B59,0,AJ58-IF(ISNUMBER(AI58),AI58,0)) -> 0.05028175696 | AK57: =IF($B59,0,AK58-IF(ISNUMBER(AJ58),AJ58,0)) -> 0.05028175696 | AL57: =IF($B59,0,AL58-IF(ISNUMBER(AK58),AK58,0)) -> 0 | AM57: =IF($B59,0,AM58-IF(ISNUMBER(AL58),AL58,0)) -> 0
O58: Acumulado (%) | P58: =MIN(IF($B59,P57+IF(ISNUMBER(O58),O58,0),P59/$N57),1) -> 0 | Q58: =MIN(IF($B59,Q57+IF(ISNUMBER(P58),P58,0),Q59/$N57),1) -> 0 | R58: =MIN(IF($B59,R57+IF(ISNUMBER(Q58),Q58,0),R59/$N57),1) -> 0 | S58: =MIN(IF($B59,S57+IF(ISNUMBER(R58),R58,0),S59/$N57),1) -> 0.1485911604 | T58: =MIN(IF($B59,T57+IF(ISNUMBER(S58),S58,0),T59/$N57),1) -> 0.2240137958 | U58: =MIN(IF($B59,U57+IF(ISNUMBER(T58),T58,0),U59/$N57),1) -> 0.2742955528 | V58: =MIN(IF($B59,V57+IF(ISNUMBER(U58),U58,0),V59/$N57),1) -> 0.2742955528 | W58: =MIN(IF($B59,W57+IF(ISNUMBER(V58),V58,0),W59/$N57),1) -> 0.3245773783 | X58: 0.3748591352 | Y58: =MIN(IF($B59,Y57+IF(ISNUMBER(X58),X58,0),Y59/$N57),1) -> 0.5234502956 | Z58: =MIN(IF($B59,Z57+IF(ISNUMBER(Y58),Y58,0),Z59/$N57),1) -> 0.5737320526 | AA58: =MIN(IF($B59,AA57+IF(ISNUMBER(Z58),Z58,0),AA59/$N57),1) -> 0.5737320526 | AB58: =MIN(IF($B59,AB57+IF(ISNUMBER(AA58),AA58,0),AB59/$N57),1) -> 0.6240138095 | AC58: =MIN(IF($B59,AC57+IF(ISNUMBER(AB58),AB58,0),AC59/$N57),1) -> 0.6240138095 | AD58: =MIN(IF($B59,AD57+IF(ISNUMBER(AC58),AC58,0),AD59/$N57),1) -> 0.6742955665 | AE58: =MIN(IF($B59,AE57+IF(ISNUMBER(AD58),AD58,0),AE59/$N57),1) -> 0.7245773234 | AF58: =MIN(IF($B59,AF57+IF(ISNUMBER(AE58),AE58,0),AF59/$N57),1) -> 0.7245773234 | AG58: =MIN(IF($B59,AG57+IF(ISNUMBER(AF58),AF58,0),AG59/$N57),1) -> 0.7748591489 | AH58: =MIN(IF($B59,AH57+IF(ISNUMBER(AG58),AG58,0),AH59/$N57),1) -> 0.8491547291 | AI58: =MIN(IF($B59,AI57+IF(ISNUMBER(AH58),AH58,0),AI59/$N57),1) -> 0.8994364861 | AJ58: =MIN(IF($B59,AJ57+IF(ISNUMBER(AI58),AI58,0),AJ59/$N57),1) -> 0.949718243 | AK58: =MIN(IF($B59,AK57+IF(ISNUMBER(AJ58),AJ58,0),AK59/$N57),1) -> 1 | AL58: =MIN(IF($B59,AL57+IF(ISNUMBER(AK58),AK58,0),AL59/$N57),1) -> 1 | AM58: =MIN(IF($B59,AM57+IF(ISNUMBER(AL58),AL58,0),AM59/$N57),1) -> 1
A59: =OFFSET(A59,-CFF.NumLinha,0)+1 -> 14 | B59: =$C59>=OFFSET($C59,CFF.NumLinha,0) -> FALSE | C59: =INDEX(PO!A$11:A$91,MATCH($A59,PO!$W$11:$W$91,0)) -> 2 | D59: =IF(ISERROR(J59),I59,SMALL(I59:J59,1))-1 -> 8 | E59: =IF($C59=1,OFFSET(E59,-CFF.NumLinha,0)+1,OFFSET(E59,-CFF.NumLinha,0)) -> 3 | F59: =IF($C59=1,0,IF($C59=2,OFFSET(F59,-CFF.NumLinha,0)+1,OFFSET(F59,-CFF.NumLinha,0))) -> 3 | G59: =IF(AND($C59<=2,$C59<>0),0,IF($C59=3,OFFSET(G59,-CFF.NumLinha,0)+1,OFFSET(G59,-CFF.NumLinha,0))) -> 0 | H59: =IF(AND($C59<=3,$C59<>0),0,IF($C59=4,OFFSET(H59,-CFF.NumLinha,0)+1,OFFSET(H59,-CFF.NumLinha,0))) -> 0 | I59: =MATCH(0,OFFSET($D59,1,$C59,ROW($A$87)-ROW($A59)),0) -> 15 | J59: =MATCH(OFFSET($D59,0,$C59)+1,OFFSET($D59,1,$C59,ROW($A$87)-ROW($A59)),0) -> 9 | K59: =ROUND(INDEX(PO!U$11:U$91,MATCH($A59,PO!$W$11:$W$91,0)),2)+10^-12 -> 145893.47 | O59: Acumulado (R$) | P59: =IF($B59,ROUND(P58*$N57,2),ROUND(SUMIF(OFFSET($B59,1,0,$D59),TRUE,OFFSET(P59,1,0,$D59))/SUMIF(OFFSET($B59,1,0,$D59),TRUE,OFFSET($K59,1,0,$D59))*$N57,2)) -> 0 | Q59: 0 | R59: 0 | S59: 21678.48 | T59: 32682.15 | U59: 40017.93 | V59: 40017.93 | W59: 47353.72 | X59: 54689.5 | Y59: 76367.98 | Z59: 83703.76 | AA59: 83703.76 | AB59: 91039.54 | AC59: 91039.54 | AD59: 98375.32 | AE59: 105711.1 | AF59: =IF($B59,ROUND(AF58*$N57,2),ROUND(SUMIF(OFFSET($B59,1,0,$D59),TRUE,OFFSET(AF59,1,0,$D59))/SUMIF(OFFSET($B59,1,0,$D59),TRUE,OFFSET($K59,1,0,$D59))*$N57,2)) -> 105711.1 | AG59: =IF($B59,ROUND(AG58*$N57,2),ROUND(SUMIF(OFFSET($B59,1,0,$D59),TRUE,OFFSET(AG59,1,0,$D59))/SUMIF(OFFSET($B59,1,0,$D59),TRUE,OFFSET($K59,1,0,$D59))*$N57,2)) -> 113046.89 | AH59: =IF($B59,ROUND(AH58*$N57,2),ROUND(SUMIF(OFFSET($B59,1,0,$D59),TRUE,OFFSET(AH59,1,0,$D59))/SUMIF(OFFSET($B59,1,0,$D59),TRUE,OFFSET($K59,1,0,$D59))*$N57,2)) -> 123886.13 | AI59: =IF($B59,ROUND(AI58*$N57,2),ROUND(SUMIF(OFFSET($B59,1,0,$D59),TRUE,OFFSET(AI59,1,0,$D59))/SUMIF(OFFSET($B59,1,0,$D59),TRUE,OFFSET($K59,1,0,$D59))*$N57,2)) -> 131221.91 | AJ59: =IF($B59,ROUND(AJ58*$N57,2),ROUND(SUMIF(OFFSET($B59,1,0,$D59),TRUE,OFFSET(AJ59,1,0,$D59))/SUMIF(OFFSET($B59,1,0,$D59),TRUE,OFFSET($K59,1,0,$D59))*$N57,2)) -> 138557.69 | AK59: =IF($B59,ROUND(AK58*$N57,2),ROUND(SUMIF(OFFSET($B59,1,0,$D59),TRUE,OFFSET(AK59,1,0,$D59))/SUMIF(OFFSET($B59,1,0,$D59),TRUE,OFFSET($K59,1,0,$D59))*$N57,2)) -> 145893.47 | AL59: =IF($B59,ROUND(AL58*$N57,2),ROUND(SUMIF(OFFSET($B59,1,0,$D59),TRUE,OFFSET(AL59,1,0,$D59))/SUMIF(OFFSET($B59,1,0,$D59),TRUE,OFFSET($K59,1,0,$D59))*$N57,2)) -> 145893.47 | AM59: =IF($B59,ROUND(AM58*$N57,2),ROUND(SUMIF(OFFSET($B59,1,0,$D59),TRUE,OFFSET(AM59,1,0,$D59))/SUMIF(OFFSET($B59,1,0,$D59),TRUE,OFFSET($K59,1,0,$D59))*$N57,2)) -> 145893.47
L60: =INDEX(PO!K$11:K$91,MATCH($A62,PO!$W$11:$W$91,0)) -> 3.3.1. | M60: =INDEX(PO!O$11:O$91,MATCH($A62,PO!$W$11:$W$91,0)) -> Visitas domicílios e estabelecimentos entorno das obras | N60: =IF(ROUND(K62,2)=0,K62,ROUND(K62,2)) -> 54196.2 | O60: Parcela (%) | P60: =IF($B62,0,P61-IF(ISNUMBER(O61),O61,0)) -> 0 | Q60: =IF($B62,0,Q61-IF(ISNUMBER(P61),P61,0)) -> 0 | R60: =IF($B62,0,R61-IF(ISNUMBER(Q61),Q61,0)) -> 0 | S60: 0.4 | T60: =IF($B62,0,T61-IF(ISNUMBER(S61),S61,0)) -> 0 | U60: =IF($B62,0,U61-IF(ISNUMBER(T61),T61,0)) -> 0 | V60: =IF($B62,0,V61-IF(ISNUMBER(U61),U61,0)) -> 0 | W60: =IF($B62,0,W61-IF(ISNUMBER(V61),V61,0)) -> 0 | X60: 0 | Y60: 0.4 | Z60: =IF($B62,0,Z61-IF(ISNUMBER(Y61),Y61,0)) -> 0 | AA60: =IF($B62,0,AA61-IF(ISNUMBER(Z61),Z61,0)) -> 0 | AB60: =IF($B62,0,AB61-IF(ISNUMBER(AA61),AA61,0)) -> 0 | AC60: =IF($B62,0,AC61-IF(ISNUMBER(AB61),AB61,0)) -> 0 | AD60: =IF($B62,0,AD61-IF(ISNUMBER(AC61),AC61,0)) -> 0 | AE60: =IF($B62,0,AE61-IF(ISNUMBER(AD61),AD61,0)) -> 0 | AF60: =IF($B62,0,AF61-IF(ISNUMBER(AE61),AE61,0)) -> 0 | AG60: =IF($B62,0,AG61-IF(ISNUMBER(AF61),AF61,0)) -> 0 | AH60: 0.2 | AI60: =IF($B62,0,AI61-IF(ISNUMBER(AH61),AH61,0)) -> 0 | AJ60: =IF($B62,0,AJ61-IF(ISNUMBER(AI61),AI61,0)) -> 0 | AK60: =IF($B62,0,AK61-IF(ISNUMBER(AJ61),AJ61,0)) -> 0 | AL60: =IF($B62,0,AL61-IF(ISNUMBER(AK61),AK61,0)) -> 0 | AM60: =IF($B62,0,AM61-IF(ISNUMBER(AL61),AL61,0)) -> 0
O61: Acumulado (%) | P61: =MIN(IF($B62,P60+IF(ISNUMBER(O61),O61,0),P62/$N60),1) -> 0 | Q61: =MIN(IF($B62,Q60+IF(ISNUMBER(P61),P61,0),Q62/$N60),1) -> 0 | R61: =MIN(IF($B62,R60+IF(ISNUMBER(Q61),Q61,0),R62/$N60),1) -> 0 | S61: =MIN(IF($B62,S60+IF(ISNUMBER(R61),R61,0),S62/$N60),1) -> 0.4 | T61: =MIN(IF($B62,T60+IF(ISNUMBER(S61),S61,0),T62/$N60),1) -> 0.4 | U61: =MIN(IF($B62,U60+IF(ISNUMBER(T61),T61,0),U62/$N60),1) -> 0.4 | V61: =MIN(IF($B62,V60+IF(ISNUMBER(U61),U61,0),V62/$N60),1) -> 0.4 | W61: =MIN(IF($B62,W60+IF(ISNUMBER(V61),V61,0),W62/$N60),1) -> 0.4 | X61: 0.4 | Y61: =MIN(IF($B62,Y60+IF(ISNUMBER(X61),X61,0),Y62/$N60),1) -> 0.8 | Z61: =MIN(IF($B62,Z60+IF(ISNUMBER(Y61),Y61,0),Z62/$N60),1) -> 0.8 | AA61: =MIN(IF($B62,AA60+IF(ISNUMBER(Z61),Z61,0),AA62/$N60),1) -> 0.8 | AB61: =MIN(IF($B62,AB60+IF(ISNUMBER(AA61),AA61,0),AB62/$N60),1) -> 0.8 | AC61: =MIN(IF($B62,AC60+IF(ISNUMBER(AB61),AB61,0),AC62/$N60),1) -> 0.8 | AD61: =MIN(IF($B62,AD60+IF(ISNUMBER(AC61),AC61,0),AD62/$N60),1) -> 0.8 | AE61: =MIN(IF($B62,AE60+IF(ISNUMBER(AD61),AD61,0),AE62/$N60),1) -> 0.8 | AF61: =MIN(IF($B62,AF60+IF(ISNUMBER(AE61),AE61,0),AF62/$N60),1) -> 0.8 | AG61: =MIN(IF($B62,AG60+IF(ISNUMBER(AF61),AF61,0),AG62/$N60),1) -> 0.8 | AH61: =MIN(IF($B62,AH60+IF(ISNUMBER(AG61),AG61,0),AH62/$N60),1) -> 1 | AI61: =MIN(IF($B62,AI60+IF(ISNUMBER(AH61),AH61,0),AI62/$N60),1) -> 1 | AJ61: =MIN(IF($B62,AJ60+IF(ISNUMBER(AI61),AI61,0),AJ62/$N60),1) -> 1 | AK61: =MIN(IF($B62,AK60+IF(ISNUMBER(AJ61),AJ61,0),AK62/$N60),1) -> 1 | AL61: =MIN(IF($B62,AL60+IF(ISNUMBER(AK61),AK61,0),AL62/$N60),1) -> 1 | AM61: =MIN(IF($B62,AM60+IF(ISNUMBER(AL61),AL61,0),AM62/$N60),1) -> 1
A62: =OFFSET(A62,-CFF.NumLinha,0)+1 -> 15 | B62: =$C62>=OFFSET($C62,CFF.NumLinha,0) -> TRUE | C62: =INDEX(PO!A$11:A$91,MATCH($A62,PO!$W$11:$W$91,0)) -> 3 | D62: =IF(ISERROR(J62),I62,SMALL(I62:J62,1))-1 -> 2 | E62: =IF($C62=1,OFFSET(E62,-CFF.NumLinha,0)+1,OFFSET(E62,-CFF.NumLinha,0)) -> 3 | F62: =IF($C62=1,0,IF($C62=2,OFFSET(F62,-CFF.NumLinha,0)+1,OFFSET(F62,-CFF.NumLinha,0))) -> 3 | G62: =IF(AND($C62<=2,$C62<>0),0,IF($C62=3,OFFSET(G62,-CFF.NumLinha,0)+1,OFFSET(G62,-CFF.NumLinha,0))) -> 1 | H62: =IF(AND($C62<=3,$C62<>0),0,IF($C62=4,OFFSET(H62,-CFF.NumLinha,0)+1,OFFSET(H62,-CFF.NumLinha,0))) -> 0 | I62: =MATCH(0,OFFSET($D62,1,$C62,ROW($A$87)-ROW($A62)),0) -> 6 | J62: =MATCH(OFFSET($D62,0,$C62)+1,OFFSET($D62,1,$C62,ROW($A$87)-ROW($A62)),0) -> 3 | K62: =ROUND(INDEX(PO!U$11:U$91,MATCH($A62,PO!$W$11:$W$91,0)),2)+10^-12 -> 54196.2 | O62: Acumulado (R$) | P62: =IF($B62,ROUND(P61*$N60,2),ROUND(SUMIF(OFFSET($B62,1,0,$D62),TRUE,OFFSET(P62,1,0,$D62))/SUMIF(OFFSET($B62,1,0,$D62),TRUE,OFFSET($K62,1,0,$D62))*$N60,2)) -> 0 | Q62: 0 | R62: 0 | S62: 21678.48 | T62: 21678.48 | U62: 21678.48 | V62: 21678.48 | W62: 21678.48 | X62: 21678.48 | Y62: 43356.96 | Z62: 43356.96 | AA62: 43356.96 | AB62: 43356.96 | AC62: 43356.96 | AD62: 43356.96 | AE62: 43356.96 | AF62: =IF($B62,ROUND(AF61*$N60,2),ROUND(SUMIF(OFFSET($B62,1,0,$D62),TRUE,OFFSET(AF62,1,0,$D62))/SUMIF(OFFSET($B62,1,0,$D62),TRUE,OFFSET($K62,1,0,$D62))*$N60,2)) -> 43356.96 | AG62: =IF($B62,ROUND(AG61*$N60,2),ROUND(SUMIF(OFFSET($B62,1,0,$D62),TRUE,OFFSET(AG62,1,0,$D62))/SUMIF(OFFSET($B62,1,0,$D62),TRUE,OFFSET($K62,1,0,$D62))*$N60,2)) -> 43356.96 | AH62: =IF($B62,ROUND(AH61*$N60,2),ROUND(SUMIF(OFFSET($B62,1,0,$D62),TRUE,OFFSET(AH62,1,0,$D62))/SUMIF(OFFSET($B62,1,0,$D62),TRUE,OFFSET($K62,1,0,$D62))*$N60,2)) -> 54196.2 | AI62: =IF($B62,ROUND(AI61*$N60,2),ROUND(SUMIF(OFFSET($B62,1,0,$D62),TRUE,OFFSET(AI62,1,0,$D62))/SUMIF(OFFSET($B62,1,0,$D62),TRUE,OFFSET($K62,1,0,$D62))*$N60,2)) -> 54196.2 | AJ62: =IF($B62,ROUND(AJ61*$N60,2),ROUND(SUMIF(OFFSET($B62,1,0,$D62),TRUE,OFFSET(AJ62,1,0,$D62))/SUMIF(OFFSET($B62,1,0,$D62),TRUE,OFFSET($K62,1,0,$D62))*$N60,2)) -> 54196.2 | AK62: =IF($B62,ROUND(AK61*$N60,2),ROUND(SUMIF(OFFSET($B62,1,0,$D62),TRUE,OFFSET(AK62,1,0,$D62))/SUMIF(OFFSET($B62,1,0,$D62),TRUE,OFFSET($K62,1,0,$D62))*$N60,2)) -> 54196.2 | AL62: =IF($B62,ROUND(AL61*$N60,2),ROUND(SUMIF(OFFSET($B62,1,0,$D62),TRUE,OFFSET(AL62,1,0,$D62))/SUMIF(OFFSET($B62,1,0,$D62),TRUE,OFFSET($K62,1,0,$D62))*$N60,2)) -> 54196.2 | AM62: =IF($B62,ROUND(AM61*$N60,2),ROUND(SUMIF(OFFSET($B62,1,0,$D62),TRUE,OFFSET(AM62,1,0,$D62))/SUMIF(OFFSET($B62,1,0,$D62),TRUE,OFFSET($K62,1,0,$D62))*$N60,2)) -> 54196.2
L63: =INDEX(PO!K$11:K$91,MATCH($A65,PO!$W$11:$W$91,0)) -> 3.3.2. | M63: =INDEX(PO!O$11:O$91,MATCH($A65,PO!$W$11:$W$91,0)) -> Realização de plantões sociais | N63: =IF(ROUND(K65,2)=0,K65,ROUND(K65,2)) -> 91697.27 | O63: Parcela (%) | P63: =IF($B65,0,P64-IF(ISNUMBER(O64),O64,0)) -> 0 | Q63: =IF($B65,0,Q64-IF(ISNUMBER(P64),P64,0)) -> 0 | R63: =IF($B65,0,R64-IF(ISNUMBER(Q64),Q64,0)) -> 0 | S63: =IF($B65,0,S64-IF(ISNUMBER(R64),R64,0)) -> 0 | T63: 0.12 | U63: 0.08 | V63: =IF($B65,0,V64-IF(ISNUMBER(U64),U64,0)) -> 0 | W63: 0.08 | X63: 0.08 | Y63: =IF($B65,0,Y64-IF(ISNUMBER(X64),X64,0)) -> 0 | Z63: 0.08 | AA63: =IF($B65,0,AA64-IF(ISNUMBER(Z64),Z64,0)) -> 0 | AB63: 0.08 | AC63: =IF($B65,0,AC64-IF(ISNUMBER(AB64),AB64,0)) -> 0 | AD63: 0.08 | AE63: 0.08 | AF63: =IF($B65,0,AF64-IF(ISNUMBER(AE64),AE64,0)) -> 0 | AG63: 0.08 | AH63: =IF($B65,0,AH64-IF(ISNUMBER(AG64),AG64,0)) -> 0 | AI63: 0.08 | AJ63: 0.08 | AK63: 0.08 | AL63: =IF($B65,0,AL64-IF(ISNUMBER(AK64),AK64,0)) -> 0 | AM63: =IF($B65,0,AM64-IF(ISNUMBER(AL64),AL64,0)) -> 0
O64: Acumulado (%) | P64: =MIN(IF($B65,P63+IF(ISNUMBER(O64),O64,0),P65/$N63),1) -> 0 | Q64: =MIN(IF($B65,Q63+IF(ISNUMBER(P64),P64,0),Q65/$N63),1) -> 0 | R64: =MIN(IF($B65,R63+IF(ISNUMBER(Q64),Q64,0),R65/$N63),1) -> 0 | S64: =MIN(IF($B65,S63+IF(ISNUMBER(R64),R64,0),S65/$N63),1) -> 0 | T64: =MIN(IF($B65,T63+IF(ISNUMBER(S64),S64,0),T65/$N63),1) -> 0.12 | U64: =MIN(IF($B65,U63+IF(ISNUMBER(T64),T64,0),U65/$N63),1) -> 0.2 | V64: =MIN(IF($B65,V63+IF(ISNUMBER(U64),U64,0),V65/$N63),1) -> 0.2 | W64: =MIN(IF($B65,W63+IF(ISNUMBER(V64),V64,0),W65/$N63),1) -> 0.28 | X64: 0.36 | Y64: =MIN(IF($B65,Y63+IF(ISNUMBER(X64),X64,0),Y65/$N63),1) -> 0.36 | Z64: =MIN(IF($B65,Z63+IF(ISNUMBER(Y64),Y64,0),Z65/$N63),1) -> 0.44 | AA64: =MIN(IF($B65,AA63+IF(ISNUMBER(Z64),Z64,0),AA65/$N63),1) -> 0.44 | AB64: =MIN(IF($B65,AB63+IF(ISNUMBER(AA64),AA64,0),AB65/$N63),1) -> 0.52 | AC64: =MIN(IF($B65,AC63+IF(ISNUMBER(AB64),AB64,0),AC65/$N63),1) -> 0.52 | AD64: =MIN(IF($B65,AD63+IF(ISNUMBER(AC64),AC64,0),AD65/$N63),1) -> 0.6 | AE64: =MIN(IF($B65,AE63+IF(ISNUMBER(AD64),AD64,0),AE65/$N63),1) -> 0.68 | AF64: =MIN(IF($B65,AF63+IF(ISNUMBER(AE64),AE64,0),AF65/$N63),1) -> 0.68 | AG64: =MIN(IF($B65,AG63+IF(ISNUMBER(AF64),AF64,0),AG65/$N63),1) -> 0.76 | AH64: =MIN(IF($B65,AH63+IF(ISNUMBER(AG64),AG64,0),AH65/$N63),1) -> 0.76 | AI64: =MIN(IF($B65,AI63+IF(ISNUMBER(AH64),AH64,0),AI65/$N63),1) -> 0.84 | AJ64: =MIN(IF($B65,AJ63+IF(ISNUMBER(AI64),AI64,0),AJ65/$N63),1) -> 0.92 | AK64: =MIN(IF($B65,AK63+IF(ISNUMBER(AJ64),AJ64,0),AK65/$N63),1) -> 1 | AL64: =MIN(IF($B65,AL63+IF(ISNUMBER(AK64),AK64,0),AL65/$N63),1) -> 1 | AM64: =MIN(IF($B65,AM63+IF(ISNUMBER(AL64),AL64,0),AM65/$N63),1) -> 1
A65: =OFFSET(A65,-CFF.NumLinha,0)+1 -> 16 | B65: =$C65>=OFFSET($C65,CFF.NumLinha,0) -> TRUE | C65: =INDEX(PO!A$11:A$91,MATCH($A65,PO!$W$11:$W$91,0)) -> 3 | D65: =IF(ISERROR(J65),I65,SMALL(I65:J65,1))-1 -> 2 | E65: =IF($C65=1,OFFSET(E65,-CFF.NumLinha,0)+1,OFFSET(E65,-CFF.NumLinha,0)) -> 3 | F65: =IF($C65=1,0,IF($C65=2,OFFSET(F65,-CFF.NumLinha,0)+1,OFFSET(F65,-CFF.NumLinha,0))) -> 3 | G65: =IF(AND($C65<=2,$C65<>0),0,IF($C65=3,OFFSET(G65,-CFF.NumLinha,0)+1,OFFSET(G65,-CFF.NumLinha,0))) -> 2 | H65: =IF(AND($C65<=3,$C65<>0),0,IF($C65=4,OFFSET(H65,-CFF.NumLinha,0)+1,OFFSET(H65,-CFF.NumLinha,0))) -> 0 | I65: =MATCH(0,OFFSET($D65,1,$C65,ROW($A$87)-ROW($A65)),0) -> 3 | J65: =MATCH(OFFSET($D65,0,$C65)+1,OFFSET($D65,1,$C65,ROW($A$87)-ROW($A65)),0) ->  | K65: =ROUND(INDEX(PO!U$11:U$91,MATCH($A65,PO!$W$11:$W$91,0)),2)+10^-12 -> 91697.27 | O65: Acumulado (R$) | P65: =IF($B65,ROUND(P64*$N63,2),ROUND(SUMIF(OFFSET($B65,1,0,$D65),TRUE,OFFSET(P65,1,0,$D65))/SUMIF(OFFSET($B65,1,0,$D65),TRUE,OFFSET($K65,1,0,$D65))*$N63,2)) -> 0 | Q65: 0 | R65: 0 | S65: 0 | T65: 11003.67 | U65: 18339.45 | V65: 18339.45 | W65: 25675.24 | X65: 33011.02 | Y65: 33011.02 | Z65: 40346.8 | AA65: 40346.8 | AB65: 47682.58 | AC65: 47682.58 | AD65: 55018.36 | AE65: 62354.14 | AF65: =IF($B65,ROUND(AF64*$N63,2),ROUND(SUMIF(OFFSET($B65,1,0,$D65),TRUE,OFFSET(AF65,1,0,$D65))/SUMIF(OFFSET($B65,1,0,$D65),TRUE,OFFSET($K65,1,0,$D65))*$N63,2)) -> 62354.14 | AG65: =IF($B65,ROUND(AG64*$N63,2),ROUND(SUMIF(OFFSET($B65,1,0,$D65),TRUE,OFFSET(AG65,1,0,$D65))/SUMIF(OFFSET($B65,1,0,$D65),TRUE,OFFSET($K65,1,0,$D65))*$N63,2)) -> 69689.93 | AH65: =IF($B65,ROUND(AH64*$N63,2),ROUND(SUMIF(OFFSET($B65,1,0,$D65),TRUE,OFFSET(AH65,1,0,$D65))/SUMIF(OFFSET($B65,1,0,$D65),TRUE,OFFSET($K65,1,0,$D65))*$N63,2)) -> 69689.93 | AI65: =IF($B65,ROUND(AI64*$N63,2),ROUND(SUMIF(OFFSET($B65,1,0,$D65),TRUE,OFFSET(AI65,1,0,$D65))/SUMIF(OFFSET($B65,1,0,$D65),TRUE,OFFSET($K65,1,0,$D65))*$N63,2)) -> 77025.71 | AJ65: =IF($B65,ROUND(AJ64*$N63,2),ROUND(SUMIF(OFFSET($B65,1,0,$D65),TRUE,OFFSET(AJ65,1,0,$D65))/SUMIF(OFFSET($B65,1,0,$D65),TRUE,OFFSET($K65,1,0,$D65))*$N63,2)) -> 84361.49 | AK65: =IF($B65,ROUND(AK64*$N63,2),ROUND(SUMIF(OFFSET($B65,1,0,$D65),TRUE,OFFSET(AK65,1,0,$D65))/SUMIF(OFFSET($B65,1,0,$D65),TRUE,OFFSET($K65,1,0,$D65))*$N63,2)) -> 91697.27 | AL65: =IF($B65,ROUND(AL64*$N63,2),ROUND(SUMIF(OFFSET($B65,1,0,$D65),TRUE,OFFSET(AL65,1,0,$D65))/SUMIF(OFFSET($B65,1,0,$D65),TRUE,OFFSET($K65,1,0,$D65))*$N63,2)) -> 91697.27 | AM65: =IF($B65,ROUND(AM64*$N63,2),ROUND(SUMIF(OFFSET($B65,1,0,$D65),TRUE,OFFSET(AM65,1,0,$D65))/SUMIF(OFFSET($B65,1,0,$D65),TRUE,OFFSET($K65,1,0,$D65))*$N63,2)) -> 91697.27
L66: =INDEX(PO!K$11:K$91,MATCH($A68,PO!$W$11:$W$91,0)) -> 3.4. | M66: =INDEX(PO!O$11:O$91,MATCH($A68,PO!$W$11:$W$91,0)) -> Capacitação de multiplicadores em educação sanitária e ambiental | N66: =IF(ROUND(K68,2)=0,K68,ROUND(K68,2)) -> 23540.9 | O66: Parcela (%) | P66: =IF($B68,0,P67-IF(ISNUMBER(O67),O67,0)) -> 0 | Q66: =IF($B68,0,Q67-IF(ISNUMBER(P67),P67,0)) -> 0 | R66: =IF($B68,0,R67-IF(ISNUMBER(Q67),Q67,0)) -> 0 | S66: =IF($B68,0,S67-IF(ISNUMBER(R67),R67,0)) -> 0 | T66: =IF($B68,0,T67-IF(ISNUMBER(S67),S67,0)) -> 0 | U66: =IF($B68,0,U67-IF(ISNUMBER(T67),T67,0)) -> 0 | V66: 0.25 | W66: =IF($B68,0,W67-IF(ISNUMBER(V67),V67,0)) -> 0 | X66: 0 | Y66: =IF($B68,0,Y67-IF(ISNUMBER(X67),X67,0)) -> 0 | Z66: =IF($B68,0,Z67-IF(ISNUMBER(Y67),Y67,0)) -> 0 | AA66: 0.25 | AB66: =IF($B68,0,AB67-IF(ISNUMBER(AA67),AA67,0)) -> 0 | AC66: 0.25 | AD66: =IF($B68,0,AD67-IF(ISNUMBER(AC67),AC67,0)) -> 0 | AE66: =IF($B68,0,AE67-IF(ISNUMBER(AD67),AD67,0)) -> 0 | AF66: =IF($B68,0,AF67-IF(ISNUMBER(AE67),AE67,0)) -> 0 | AG66: =IF($B68,0,AG67-IF(ISNUMBER(AF67),AF67,0)) -> 0 | AH66: =IF($B68,0,AH67-IF(ISNUMBER(AG67),AG67,0)) -> 0 | AI66: 0.25 | AJ66: =IF($B68,0,AJ67-IF(ISNUMBER(AI67),AI67,0)) -> 0 | AK66: =IF($B68,0,AK67-IF(ISNUMBER(AJ67),AJ67,0)) -> 0 | AL66: =IF($B68,0,AL67-IF(ISNUMBER(AK67),AK67,0)) -> 0 | AM66: =IF($B68,0,AM67-IF(ISNUMBER(AL67),AL67,0)) -> 0
O67: Acumulado (%) | P67: =MIN(IF($B68,P66+IF(ISNUMBER(O67),O67,0),P68/$N66),1) -> 0 | Q67: =MIN(IF($B68,Q66+IF(ISNUMBER(P67),P67,0),Q68/$N66),1) -> 0 | R67: =MIN(IF($B68,R66+IF(ISNUMBER(Q67),Q67,0),R68/$N66),1) -> 0 | S67: =MIN(IF($B68,S66+IF(ISNUMBER(R67),R67,0),S68/$N66),1) -> 0 | T67: =MIN(IF($B68,T66+IF(ISNUMBER(S67),S67,0),T68/$N66),1) -> 0 | U67: =MIN(IF($B68,U66+IF(ISNUMBER(T67),T67,0),U68/$N66),1) -> 0 | V67: =MIN(IF($B68,V66+IF(ISNUMBER(U67),U67,0),V68/$N66),1) -> 0.25 | W67: =MIN(IF($B68,W66+IF(ISNUMBER(V67),V67,0),W68/$N66),1) -> 0.25 | X67: 0.25 | Y67: =MIN(IF($B68,Y66+IF(ISNUMBER(X67),X67,0),Y68/$N66),1) -> 0.25 | Z67: =MIN(IF($B68,Z66+IF(ISNUMBER(Y67),Y67,0),Z68/$N66),1) -> 0.25 | AA67: =MIN(IF($B68,AA66+IF(ISNUMBER(Z67),Z67,0),AA68/$N66),1) -> 0.5 | AB67: =MIN(IF($B68,AB66+IF(ISNUMBER(AA67),AA67,0),AB68/$N66),1) -> 0.5 | AC67: =MIN(IF($B68,AC66+IF(ISNUMBER(AB67),AB67,0),AC68/$N66),1) -> 0.75 | AD67: =MIN(IF($B68,AD66+IF(ISNUMBER(AC67),AC67,0),AD68/$N66),1) -> 0.75 | AE67: =MIN(IF($B68,AE66+IF(ISNUMBER(AD67),AD67,0),AE68/$N66),1) -> 0.75 | AF67: =MIN(IF($B68,AF66+IF(ISNUMBER(AE67),AE67,0),AF68/$N66),1) -> 0.75 | AG67: =MIN(IF($B68,AG66+IF(ISNUMBER(AF67),AF67,0),AG68/$N66),1) -> 0.75 | AH67: =MIN(IF($B68,AH66+IF(ISNUMBER(AG67),AG67,0),AH68/$N66),1) -> 0.75 | AI67: =MIN(IF($B68,AI66+IF(ISNUMBER(AH67),AH67,0),AI68/$N66),1) -> 1 | AJ67: =MIN(IF($B68,AJ66+IF(ISNUMBER(AI67),AI67,0),AJ68/$N66),1) -> 1 | AK67: =MIN(IF($B68,AK66+IF(ISNUMBER(AJ67),AJ67,0),AK68/$N66),1) -> 1 | AL67: =MIN(IF($B68,AL66+IF(ISNUMBER(AK67),AK67,0),AL68/$N66),1) -> 1 | AM67: =MIN(IF($B68,AM66+IF(ISNUMBER(AL67),AL67,0),AM68/$N66),1) -> 1
A68: =OFFSET(A68,-CFF.NumLinha,0)+1 -> 17 | B68: =$C68>=OFFSET($C68,CFF.NumLinha,0) -> TRUE | C68: =INDEX(PO!A$11:A$91,MATCH($A68,PO!$W$11:$W$91,0)) -> 2 | D68: =IF(ISERROR(J68),I68,SMALL(I68:J68,1))-1 -> 2 | E68: =IF($C68=1,OFFSET(E68,-CFF.NumLinha,0)+1,OFFSET(E68,-CFF.NumLinha,0)) -> 3 | F68: =IF($C68=1,0,IF($C68=2,OFFSET(F68,-CFF.NumLinha,0)+1,OFFSET(F68,-CFF.NumLinha,0))) -> 4 | G68: =IF(AND($C68<=2,$C68<>0),0,IF($C68=3,OFFSET(G68,-CFF.NumLinha,0)+1,OFFSET(G68,-CFF.NumLinha,0))) -> 0 | H68: =IF(AND($C68<=3,$C68<>0),0,IF($C68=4,OFFSET(H68,-CFF.NumLinha,0)+1,OFFSET(H68,-CFF.NumLinha,0))) -> 0 | I68: =MATCH(0,OFFSET($D68,1,$C68,ROW($A$87)-ROW($A68)),0) -> 6 | J68: =MATCH(OFFSET($D68,0,$C68)+1,OFFSET($D68,1,$C68,ROW($A$87)-ROW($A68)),0) -> 3 | K68: =ROUND(INDEX(PO!U$11:U$91,MATCH($A68,PO!$W$11:$W$91,0)),2)+10^-12 -> 23540.9 | O68: Acumulado (R$) | P68: =IF($B68,ROUND(P67*$N66,2),ROUND(SUMIF(OFFSET($B68,1,0,$D68),TRUE,OFFSET(P68,1,0,$D68))/SUMIF(OFFSET($B68,1,0,$D68),TRUE,OFFSET($K68,1,0,$D68))*$N66,2)) -> 0 | Q68: 0 | R68: 0 | S68: 0 | T68: 0 | U68: 0 | V68: 5885.23 | W68: 5885.23 | X68: 5885.23 | Y68: 5885.23 | Z68: 5885.23 | AA68: 11770.45 | AB68: 11770.45 | AC68: 17655.68 | AD68: 17655.68 | AE68: 17655.68 | AF68: =IF($B68,ROUND(AF67*$N66,2),ROUND(SUMIF(OFFSET($B68,1,0,$D68),TRUE,OFFSET(AF68,1,0,$D68))/SUMIF(OFFSET($B68,1,0,$D68),TRUE,OFFSET($K68,1,0,$D68))*$N66,2)) -> 17655.68 | AG68: =IF($B68,ROUND(AG67*$N66,2),ROUND(SUMIF(OFFSET($B68,1,0,$D68),TRUE,OFFSET(AG68,1,0,$D68))/SUMIF(OFFSET($B68,1,0,$D68),TRUE,OFFSET($K68,1,0,$D68))*$N66,2)) -> 17655.68 | AH68: =IF($B68,ROUND(AH67*$N66,2),ROUND(SUMIF(OFFSET($B68,1,0,$D68),TRUE,OFFSET(AH68,1,0,$D68))/SUMIF(OFFSET($B68,1,0,$D68),TRUE,OFFSET($K68,1,0,$D68))*$N66,2)) -> 17655.68 | AI68: =IF($B68,ROUND(AI67*$N66,2),ROUND(SUMIF(OFFSET($B68,1,0,$D68),TRUE,OFFSET(AI68,1,0,$D68))/SUMIF(OFFSET($B68,1,0,$D68),TRUE,OFFSET($K68,1,0,$D68))*$N66,2)) -> 23540.9 | AJ68: =IF($B68,ROUND(AJ67*$N66,2),ROUND(SUMIF(OFFSET($B68,1,0,$D68),TRUE,OFFSET(AJ68,1,0,$D68))/SUMIF(OFFSET($B68,1,0,$D68),TRUE,OFFSET($K68,1,0,$D68))*$N66,2)) -> 23540.9 | AK68: =IF($B68,ROUND(AK67*$N66,2),ROUND(SUMIF(OFFSET($B68,1,0,$D68),TRUE,OFFSET(AK68,1,0,$D68))/SUMIF(OFFSET($B68,1,0,$D68),TRUE,OFFSET($K68,1,0,$D68))*$N66,2)) -> 23540.9 | AL68: =IF($B68,ROUND(AL67*$N66,2),ROUND(SUMIF(OFFSET($B68,1,0,$D68),TRUE,OFFSET(AL68,1,0,$D68))/SUMIF(OFFSET($B68,1,0,$D68),TRUE,OFFSET($K68,1,0,$D68))*$N66,2)) -> 23540.9 | AM68: =IF($B68,ROUND(AM67*$N66,2),ROUND(SUMIF(OFFSET($B68,1,0,$D68),TRUE,OFFSET(AM68,1,0,$D68))/SUMIF(OFFSET($B68,1,0,$D68),TRUE,OFFSET($K68,1,0,$D68))*$N66,2)) -> 23540.9
L69: =INDEX(PO!K$11:K$91,MATCH($A71,PO!$W$11:$W$91,0)) -> 3.5. | M69: =INDEX(PO!O$11:O$91,MATCH($A71,PO!$W$11:$W$91,0)) -> Programa de webnários sobre o Projeto | N69: =IF(ROUND(K71,2)=0,K71,ROUND(K71,2)) -> 12338.24 | O69: Parcela (%) | P69: =IF($B71,0,P70-IF(ISNUMBER(O70),O70,0)) -> 0 | Q69: =IF($B71,0,Q70-IF(ISNUMBER(P70),P70,0)) -> 0 | R69: =IF($B71,0,R70-IF(ISNUMBER(Q70),Q70,0)) -> 0 | S69: =IF($B71,0,S70-IF(ISNUMBER(R70),R70,0)) -> 0 | T69: =IF($B71,0,T70-IF(ISNUMBER(S70),S70,0)) -> 0 | U69: =IF($B71,0,U70-IF(ISNUMBER(T70),T70,0)) -> 0 | V69: 0.25 | W69: =IF($B71,0,W70-IF(ISNUMBER(V70),V70,0)) -> 0 | X69: 0 | Y69: =IF($B71,0,Y70-IF(ISNUMBER(X70),X70,0)) -> 0 | Z69: =IF($B71,0,Z70-IF(ISNUMBER(Y70),Y70,0)) -> 0 | AA69: 0.25 | AB69: =IF($B71,0,AB70-IF(ISNUMBER(AA70),AA70,0)) -> 0 | AC69: =IF($B71,0,AC70-IF(ISNUMBER(AB70),AB70,0)) -> 0 | AD69: 0.25 | AE69: =IF($B71,0,AE70-IF(ISNUMBER(AD70),AD70,0)) -> 0 | AF69: =IF($B71,0,AF70-IF(ISNUMBER(AE70),AE70,0)) -> 0 | AG69: =IF($B71,0,AG70-IF(ISNUMBER(AF70),AF70,0)) -> 0 | AH69: =IF($B71,0,AH70-IF(ISNUMBER(AG70),AG70,0)) -> 0 | AI69: =IF($B71,0,AI70-IF(ISNUMBER(AH70),AH70,0)) -> 0 | AJ69: 0.25 | AK69: =IF($B71,0,AK70-IF(ISNUMBER(AJ70),AJ70,0)) -> 0 | AL69: =IF($B71,0,AL70-IF(ISNUMBER(AK70),AK70,0)) -> 0 | AM69: =IF($B71,0,AM70-IF(ISNUMBER(AL70),AL70,0)) -> 0
O70: Acumulado (%) | P70: =MIN(IF($B71,P69+IF(ISNUMBER(O70),O70,0),P71/$N69),1) -> 0 | Q70: =MIN(IF($B71,Q69+IF(ISNUMBER(P70),P70,0),Q71/$N69),1) -> 0 | R70: =MIN(IF($B71,R69+IF(ISNUMBER(Q70),Q70,0),R71/$N69),1) -> 0 | S70: =MIN(IF($B71,S69+IF(ISNUMBER(R70),R70,0),S71/$N69),1) -> 0 | T70: =MIN(IF($B71,T69+IF(ISNUMBER(S70),S70,0),T71/$N69),1) -> 0 | U70: =MIN(IF($B71,U69+IF(ISNUMBER(T70),T70,0),U71/$N69),1) -> 0 | V70: =MIN(IF($B71,V69+IF(ISNUMBER(U70),U70,0),V71/$N69),1) -> 0.25 | W70: =MIN(IF($B71,W69+IF(ISNUMBER(V70),V70,0),W71/$N69),1) -> 0.25 | X70: 0.25 | Y70: =MIN(IF($B71,Y69+IF(ISNUMBER(X70),X70,0),Y71/$N69),1) -> 0.25 | Z70: =MIN(IF($B71,Z69+IF(ISNUMBER(Y70),Y70,0),Z71/$N69),1) -> 0.25 | AA70: =MIN(IF($B71,AA69+IF(ISNUMBER(Z70),Z70,0),AA71/$N69),1) -> 0.5 | AB70: =MIN(IF($B71,AB69+IF(ISNUMBER(AA70),AA70,0),AB71/$N69),1) -> 0.5 | AC70: =MIN(IF($B71,AC69+IF(ISNUMBER(AB70),AB70,0),AC71/$N69),1) -> 0.5 | AD70: =MIN(IF($B71,AD69+IF(ISNUMBER(AC70),AC70,0),AD71/$N69),1) -> 0.75 | AE70: =MIN(IF($B71,AE69+IF(ISNUMBER(AD70),AD70,0),AE71/$N69),1) -> 0.75 | AF70: =MIN(IF($B71,AF69+IF(ISNUMBER(AE70),AE70,0),AF71/$N69),1) -> 0.75 | AG70: =MIN(IF($B71,AG69+IF(ISNUMBER(AF70),AF70,0),AG71/$N69),1) -> 0.75 | AH70: =MIN(IF($B71,AH69+IF(ISNUMBER(AG70),AG70,0),AH71/$N69),1) -> 0.75 | AI70: =MIN(IF($B71,AI69+IF(ISNUMBER(AH70),AH70,0),AI71/$N69),1) -> 0.75 | AJ70: =MIN(IF($B71,AJ69+IF(ISNUMBER(AI70),AI70,0),AJ71/$N69),1) -> 1 | AK70: =MIN(IF($B71,AK69+IF(ISNUMBER(AJ70),AJ70,0),AK71/$N69),1) -> 1 | AL70: =MIN(IF($B71,AL69+IF(ISNUMBER(AK70),AK70,0),AL71/$N69),1) -> 1 | AM70: =MIN(IF($B71,AM69+IF(ISNUMBER(AL70),AL70,0),AM71/$N69),1) -> 1
A71: =OFFSET(A71,-CFF.NumLinha,0)+1 -> 18 | B71: =$C71>=OFFSET($C71,CFF.NumLinha,0) -> TRUE | C71: =INDEX(PO!A$11:A$91,MATCH($A71,PO!$W$11:$W$91,0)) -> 2 | D71: =IF(ISERROR(J71),I71,SMALL(I71:J71,1))-1 -> 2 | E71: =IF($C71=1,OFFSET(E71,-CFF.NumLinha,0)+1,OFFSET(E71,-CFF.NumLinha,0)) -> 3 | F71: =IF($C71=1,0,IF($C71=2,OFFSET(F71,-CFF.NumLinha,0)+1,OFFSET(F71,-CFF.NumLinha,0))) -> 5 | G71: =IF(AND($C71<=2,$C71<>0),0,IF($C71=3,OFFSET(G71,-CFF.NumLinha,0)+1,OFFSET(G71,-CFF.NumLinha,0))) -> 0 | H71: =IF(AND($C71<=3,$C71<>0),0,IF($C71=4,OFFSET(H71,-CFF.NumLinha,0)+1,OFFSET(H71,-CFF.NumLinha,0))) -> 0 | I71: =MATCH(0,OFFSET($D71,1,$C71,ROW($A$87)-ROW($A71)),0) -> 3 | J71: =MATCH(OFFSET($D71,0,$C71)+1,OFFSET($D71,1,$C71,ROW($A$87)-ROW($A71)),0) ->  | K71: =ROUND(INDEX(PO!U$11:U$91,MATCH($A71,PO!$W$11:$W$91,0)),2)+10^-12 -> 12338.24 | O71: Acumulado (R$) | P71: =IF($B71,ROUND(P70*$N69,2),ROUND(SUMIF(OFFSET($B71,1,0,$D71),TRUE,OFFSET(P71,1,0,$D71))/SUMIF(OFFSET($B71,1,0,$D71),TRUE,OFFSET($K71,1,0,$D71))*$N69,2)) -> 0 | Q71: 0 | R71: 0 | S71: 0 | T71: 0 | U71: 0 | V71: 3084.56 | W71: 3084.56 | X71: 3084.56 | Y71: 3084.56 | Z71: 3084.56 | AA71: 6169.12 | AB71: 6169.12 | AC71: 6169.12 | AD71: 9253.68 | AE71: 9253.68 | AF71: =IF($B71,ROUND(AF70*$N69,2),ROUND(SUMIF(OFFSET($B71,1,0,$D71),TRUE,OFFSET(AF71,1,0,$D71))/SUMIF(OFFSET($B71,1,0,$D71),TRUE,OFFSET($K71,1,0,$D71))*$N69,2)) -> 9253.68 | AG71: =IF($B71,ROUND(AG70*$N69,2),ROUND(SUMIF(OFFSET($B71,1,0,$D71),TRUE,OFFSET(AG71,1,0,$D71))/SUMIF(OFFSET($B71,1,0,$D71),TRUE,OFFSET($K71,1,0,$D71))*$N69,2)) -> 9253.68 | AH71: =IF($B71,ROUND(AH70*$N69,2),ROUND(SUMIF(OFFSET($B71,1,0,$D71),TRUE,OFFSET(AH71,1,0,$D71))/SUMIF(OFFSET($B71,1,0,$D71),TRUE,OFFSET($K71,1,0,$D71))*$N69,2)) -> 9253.68 | AI71: =IF($B71,ROUND(AI70*$N69,2),ROUND(SUMIF(OFFSET($B71,1,0,$D71),TRUE,OFFSET(AI71,1,0,$D71))/SUMIF(OFFSET($B71,1,0,$D71),TRUE,OFFSET($K71,1,0,$D71))*$N69,2)) -> 9253.68 | AJ71: =IF($B71,ROUND(AJ70*$N69,2),ROUND(SUMIF(OFFSET($B71,1,0,$D71),TRUE,OFFSET(AJ71,1,0,$D71))/SUMIF(OFFSET($B71,1,0,$D71),TRUE,OFFSET($K71,1,0,$D71))*$N69,2)) -> 12338.24 | AK71: =IF($B71,ROUND(AK70*$N69,2),ROUND(SUMIF(OFFSET($B71,1,0,$D71),TRUE,OFFSET(AK71,1,0,$D71))/SUMIF(OFFSET($B71,1,0,$D71),TRUE,OFFSET($K71,1,0,$D71))*$N69,2)) -> 12338.24 | AL71: =IF($B71,ROUND(AL70*$N69,2),ROUND(SUMIF(OFFSET($B71,1,0,$D71),TRUE,OFFSET(AL71,1,0,$D71))/SUMIF(OFFSET($B71,1,0,$D71),TRUE,OFFSET($K71,1,0,$D71))*$N69,2)) -> 12338.24 | AM71: =IF($B71,ROUND(AM70*$N69,2),ROUND(SUMIF(OFFSET($B71,1,0,$D71),TRUE,OFFSET(AM71,1,0,$D71))/SUMIF(OFFSET($B71,1,0,$D71),TRUE,OFFSET($K71,1,0,$D71))*$N69,2)) -> 12338.24
L72: =INDEX(PO!K$11:K$91,MATCH($A74,PO!$W$11:$W$91,0)) -> 4. | M72: =INDEX(PO!O$11:O$91,MATCH($A74,PO!$W$11:$W$91,0)) -> Geração de trabalho e renda | N72: =IF(ROUND(K74,2)=0,K74,ROUND(K74,2)) -> 25370.16 | O72: Parcela (%) | P72: =IF($B74,0,P73-IF(ISNUMBER(O73),O73,0)) -> 0 | Q72: =IF($B74,0,Q73-IF(ISNUMBER(P73),P73,0)) -> 0 | R72: =IF($B74,0,R73-IF(ISNUMBER(Q73),Q73,0)) -> 0 | S72: =IF($B74,0,S73-IF(ISNUMBER(R73),R73,0)) -> 0 | T72: =IF($B74,0,T73-IF(ISNUMBER(S73),S73,0)) -> 0 | U72: =IF($B74,0,U73-IF(ISNUMBER(T73),T73,0)) -> 0.25 | V72: =IF($B74,0,V73-IF(ISNUMBER(U73),U73,0)) -> 0.25 | W72: =IF($B74,0,W73-IF(ISNUMBER(V73),V73,0)) -> 0 | X72: 0 | Y72: =IF($B74,0,Y73-IF(ISNUMBER(X73),X73,0)) -> 0 | Z72: =IF($B74,0,Z73-IF(ISNUMBER(Y73),Y73,0)) -> 0 | AA72: =IF($B74,0,AA73-IF(ISNUMBER(Z73),Z73,0)) -> 0 | AB72: =IF($B74,0,AB73-IF(ISNUMBER(AA73),AA73,0)) -> 0 | AC72: =IF($B74,0,AC73-IF(ISNUMBER(AB73),AB73,0)) -> 0 | AD72: =IF($B74,0,AD73-IF(ISNUMBER(AC73),AC73,0)) -> 0 | AE72: =IF($B74,0,AE73-IF(ISNUMBER(AD73),AD73,0)) -> 0 | AF72: =IF($B74,0,AF73-IF(ISNUMBER(AE73),AE73,0)) -> 0.25 | AG72: =IF($B74,0,AG73-IF(ISNUMBER(AF73),AF73,0)) -> 0.25 | AH72: =IF($B74,0,AH73-IF(ISNUMBER(AG73),AG73,0)) -> 0 | AI72: =IF($B74,0,AI73-IF(ISNUMBER(AH73),AH73,0)) -> 0 | AJ72: =IF($B74,0,AJ73-IF(ISNUMBER(AI73),AI73,0)) -> 0 | AK72: =IF($B74,0,AK73-IF(ISNUMBER(AJ73),AJ73,0)) -> 0 | AL72: =IF($B74,0,AL73-IF(ISNUMBER(AK73),AK73,0)) -> 0 | AM72: =IF($B74,0,AM73-IF(ISNUMBER(AL73),AL73,0)) -> 0
O73: Acumulado (%) | P73: =MIN(IF($B74,P72+IF(ISNUMBER(O73),O73,0),P74/$N72),1) -> 0 | Q73: =MIN(IF($B74,Q72+IF(ISNUMBER(P73),P73,0),Q74/$N72),1) -> 0 | R73: =MIN(IF($B74,R72+IF(ISNUMBER(Q73),Q73,0),R74/$N72),1) -> 0 | S73: =MIN(IF($B74,S72+IF(ISNUMBER(R73),R73,0),S74/$N72),1) -> 0 | T73: =MIN(IF($B74,T72+IF(ISNUMBER(S73),S73,0),T74/$N72),1) -> 0 | U73: =MIN(IF($B74,U72+IF(ISNUMBER(T73),T73,0),U74/$N72),1) -> 0.25 | V73: =MIN(IF($B74,V72+IF(ISNUMBER(U73),U73,0),V74/$N72),1) -> 0.5 | W73: =MIN(IF($B74,W72+IF(ISNUMBER(V73),V73,0),W74/$N72),1) -> 0.5 | X73: 0.5 | Y73: =MIN(IF($B74,Y72+IF(ISNUMBER(X73),X73,0),Y74/$N72),1) -> 0.5 | Z73: =MIN(IF($B74,Z72+IF(ISNUMBER(Y73),Y73,0),Z74/$N72),1) -> 0.5 | AA73: =MIN(IF($B74,AA72+IF(ISNUMBER(Z73),Z73,0),AA74/$N72),1) -> 0.5 | AB73: =MIN(IF($B74,AB72+IF(ISNUMBER(AA73),AA73,0),AB74/$N72),1) -> 0.5 | AC73: =MIN(IF($B74,AC72+IF(ISNUMBER(AB73),AB73,0),AC74/$N72),1) -> 0.5 | AD73: =MIN(IF($B74,AD72+IF(ISNUMBER(AC73),AC73,0),AD74/$N72),1) -> 0.5 | AE73: =MIN(IF($B74,AE72+IF(ISNUMBER(AD73),AD73,0),AE74/$N72),1) -> 0.5 | AF73: =MIN(IF($B74,AF72+IF(ISNUMBER(AE73),AE73,0),AF74/$N72),1) -> 0.75 | AG73: =MIN(IF($B74,AG72+IF(ISNUMBER(AF73),AF73,0),AG74/$N72),1) -> 1 | AH73: =MIN(IF($B74,AH72+IF(ISNUMBER(AG73),AG73,0),AH74/$N72),1) -> 1 | AI73: =MIN(IF($B74,AI72+IF(ISNUMBER(AH73),AH73,0),AI74/$N72),1) -> 1 | AJ73: =MIN(IF($B74,AJ72+IF(ISNUMBER(AI73),AI73,0),AJ74/$N72),1) -> 1 | AK73: =MIN(IF($B74,AK72+IF(ISNUMBER(AJ73),AJ73,0),AK74/$N72),1) -> 1 | AL73: =MIN(IF($B74,AL72+IF(ISNUMBER(AK73),AK73,0),AL74/$N72),1) -> 1 | AM73: =MIN(IF($B74,AM72+IF(ISNUMBER(AL73),AL73,0),AM74/$N72),1) -> 1
A74: =OFFSET(A74,-CFF.NumLinha,0)+1 -> 19 | B74: =$C74>=OFFSET($C74,CFF.NumLinha,0) -> FALSE | C74: =INDEX(PO!A$11:A$91,MATCH($A74,PO!$W$11:$W$91,0)) -> 1 | D74: =IF(ISERROR(J74),I74,SMALL(I74:J74,1))-1 -> 5 | E74: =IF($C74=1,OFFSET(E74,-CFF.NumLinha,0)+1,OFFSET(E74,-CFF.NumLinha,0)) -> 4 | F74: =IF($C74=1,0,IF($C74=2,OFFSET(F74,-CFF.NumLinha,0)+1,OFFSET(F74,-CFF.NumLinha,0))) -> 0 | G74: =IF(AND($C74<=2,$C74<>0),0,IF($C74=3,OFFSET(G74,-CFF.NumLinha,0)+1,OFFSET(G74,-CFF.NumLinha,0))) -> 0 | H74: =IF(AND($C74<=3,$C74<>0),0,IF($C74=4,OFFSET(H74,-CFF.NumLinha,0)+1,OFFSET(H74,-CFF.NumLinha,0))) -> 0 | I74: =MATCH(0,OFFSET($D74,1,$C74,ROW($A$87)-ROW($A74)),0) -> 13 | J74: =MATCH(OFFSET($D74,0,$C74)+1,OFFSET($D74,1,$C74,ROW($A$87)-ROW($A74)),0) -> 6 | K74: =ROUND(INDEX(PO!U$11:U$91,MATCH($A74,PO!$W$11:$W$91,0)),2)+10^-12 -> 25370.16 | O74: Acumulado (R$) | P74: =IF($B74,ROUND(P73*$N72,2),ROUND(SUMIF(OFFSET($B74,1,0,$D74),TRUE,OFFSET(P74,1,0,$D74))/SUMIF(OFFSET($B74,1,0,$D74),TRUE,OFFSET($K74,1,0,$D74))*$N72,2)) -> 0 | Q74: 0 | R74: 0 | S74: 0 | T74: 0 | U74: 6342.54 | V74: 12685.08 | W74: 12685.08 | X74: 12685.08 | Y74: 12685.08 | Z74: 12685.08 | AA74: 12685.08 | AB74: 12685.08 | AC74: 12685.08 | AD74: 12685.08 | AE74: 12685.08 | AF74: =IF($B74,ROUND(AF73*$N72,2),ROUND(SUMIF(OFFSET($B74,1,0,$D74),TRUE,OFFSET(AF74,1,0,$D74))/SUMIF(OFFSET($B74,1,0,$D74),TRUE,OFFSET($K74,1,0,$D74))*$N72,2)) -> 19027.62 | AG74: =IF($B74,ROUND(AG73*$N72,2),ROUND(SUMIF(OFFSET($B74,1,0,$D74),TRUE,OFFSET(AG74,1,0,$D74))/SUMIF(OFFSET($B74,1,0,$D74),TRUE,OFFSET($K74,1,0,$D74))*$N72,2)) -> 25370.16 | AH74: =IF($B74,ROUND(AH73*$N72,2),ROUND(SUMIF(OFFSET($B74,1,0,$D74),TRUE,OFFSET(AH74,1,0,$D74))/SUMIF(OFFSET($B74,1,0,$D74),TRUE,OFFSET($K74,1,0,$D74))*$N72,2)) -> 25370.16 | AI74: =IF($B74,ROUND(AI73*$N72,2),ROUND(SUMIF(OFFSET($B74,1,0,$D74),TRUE,OFFSET(AI74,1,0,$D74))/SUMIF(OFFSET($B74,1,0,$D74),TRUE,OFFSET($K74,1,0,$D74))*$N72,2)) -> 25370.16 | AJ74: =IF($B74,ROUND(AJ73*$N72,2),ROUND(SUMIF(OFFSET($B74,1,0,$D74),TRUE,OFFSET(AJ74,1,0,$D74))/SUMIF(OFFSET($B74,1,0,$D74),TRUE,OFFSET($K74,1,0,$D74))*$N72,2)) -> 25370.16 | AK74: =IF($B74,ROUND(AK73*$N72,2),ROUND(SUMIF(OFFSET($B74,1,0,$D74),TRUE,OFFSET(AK74,1,0,$D74))/SUMIF(OFFSET($B74,1,0,$D74),TRUE,OFFSET($K74,1,0,$D74))*$N72,2)) -> 25370.16 | AL74: =IF($B74,ROUND(AL73*$N72,2),ROUND(SUMIF(OFFSET($B74,1,0,$D74),TRUE,OFFSET(AL74,1,0,$D74))/SUMIF(OFFSET($B74,1,0,$D74),TRUE,OFFSET($K74,1,0,$D74))*$N72,2)) -> 25370.16 | AM74: =IF($B74,ROUND(AM73*$N72,2),ROUND(SUMIF(OFFSET($B74,1,0,$D74),TRUE,OFFSET(AM74,1,0,$D74))/SUMIF(OFFSET($B74,1,0,$D74),TRUE,OFFSET($K74,1,0,$D74))*$N72,2)) -> 25370.16
L75: =INDEX(PO!K$11:K$91,MATCH($A77,PO!$W$11:$W$91,0)) -> 4.1. | M75: =INDEX(PO!O$11:O$91,MATCH($A77,PO!$W$11:$W$91,0)) -> Oficinas de capacitação produtiva e geração de renda | N75: =IF(ROUND(K77,2)=0,K77,ROUND(K77,2)) -> 25370.16 | O75: Parcela (%) | P75: =IF($B77,0,P76-IF(ISNUMBER(O76),O76,0)) -> 0 | Q75: =IF($B77,0,Q76-IF(ISNUMBER(P76),P76,0)) -> 0 | R75: =IF($B77,0,R76-IF(ISNUMBER(Q76),Q76,0)) -> 0 | S75: =IF($B77,0,S76-IF(ISNUMBER(R76),R76,0)) -> 0 | T75: =IF($B77,0,T76-IF(ISNUMBER(S76),S76,0)) -> 0 | U75: 0.25 | V75: 0.25 | W75: =IF($B77,0,W76-IF(ISNUMBER(V76),V76,0)) -> 0 | X75: 0 | Y75: =IF($B77,0,Y76-IF(ISNUMBER(X76),X76,0)) -> 0 | Z75: =IF($B77,0,Z76-IF(ISNUMBER(Y76),Y76,0)) -> 0 | AA75: =IF($B77,0,AA76-IF(ISNUMBER(Z76),Z76,0)) -> 0 | AB75: =IF($B77,0,AB76-IF(ISNUMBER(AA76),AA76,0)) -> 0 | AC75: =IF($B77,0,AC76-IF(ISNUMBER(AB76),AB76,0)) -> 0 | AD75: =IF($B77,0,AD76-IF(ISNUMBER(AC76),AC76,0)) -> 0 | AE75: =IF($B77,0,AE76-IF(ISNUMBER(AD76),AD76,0)) -> 0 | AF75: 0.25 | AG75: 0.25 | AH75: =IF($B77,0,AH76-IF(ISNUMBER(AG76),AG76,0)) -> 0 | AI75: =IF($B77,0,AI76-IF(ISNUMBER(AH76),AH76,0)) -> 0 | AJ75: =IF($B77,0,AJ76-IF(ISNUMBER(AI76),AI76,0)) -> 0 | AK75: =IF($B77,0,AK76-IF(ISNUMBER(AJ76),AJ76,0)) -> 0 | AL75: =IF($B77,0,AL76-IF(ISNUMBER(AK76),AK76,0)) -> 0 | AM75: =IF($B77,0,AM76-IF(ISNUMBER(AL76),AL76,0)) -> 0
O76: Acumulado (%) | P76: =MIN(IF($B77,P75+IF(ISNUMBER(O76),O76,0),P77/$N75),1) -> 0 | Q76: =MIN(IF($B77,Q75+IF(ISNUMBER(P76),P76,0),Q77/$N75),1) -> 0 | R76: =MIN(IF($B77,R75+IF(ISNUMBER(Q76),Q76,0),R77/$N75),1) -> 0 | S76: =MIN(IF($B77,S75+IF(ISNUMBER(R76),R76,0),S77/$N75),1) -> 0 | T76: =MIN(IF($B77,T75+IF(ISNUMBER(S76),S76,0),T77/$N75),1) -> 0 | U76: =MIN(IF($B77,U75+IF(ISNUMBER(T76),T76,0),U77/$N75),1) -> 0.25 | V76: =MIN(IF($B77,V75+IF(ISNUMBER(U76),U76,0),V77/$N75),1) -> 0.5 | W76: =MIN(IF($B77,W75+IF(ISNUMBER(V76),V76,0),W77/$N75),1) -> 0.5 | X76: 0.5 | Y76: =MIN(IF($B77,Y75+IF(ISNUMBER(X76),X76,0),Y77/$N75),1) -> 0.5 | Z76: =MIN(IF($B77,Z75+IF(ISNUMBER(Y76),Y76,0),Z77/$N75),1) -> 0.5 | AA76: =MIN(IF($B77,AA75+IF(ISNUMBER(Z76),Z76,0),AA77/$N75),1) -> 0.5 | AB76: =MIN(IF($B77,AB75+IF(ISNUMBER(AA76),AA76,0),AB77/$N75),1) -> 0.5 | AC76: =MIN(IF($B77,AC75+IF(ISNUMBER(AB76),AB76,0),AC77/$N75),1) -> 0.5 | AD76: =MIN(IF($B77,AD75+IF(ISNUMBER(AC76),AC76,0),AD77/$N75),1) -> 0.5 | AE76: =MIN(IF($B77,AE75+IF(ISNUMBER(AD76),AD76,0),AE77/$N75),1) -> 0.5 | AF76: =MIN(IF($B77,AF75+IF(ISNUMBER(AE76),AE76,0),AF77/$N75),1) -> 0.75 | AG76: =MIN(IF($B77,AG75+IF(ISNUMBER(AF76),AF76,0),AG77/$N75),1) -> 1 | AH76: =MIN(IF($B77,AH75+IF(ISNUMBER(AG76),AG76,0),AH77/$N75),1) -> 1 | AI76: =MIN(IF($B77,AI75+IF(ISNUMBER(AH76),AH76,0),AI77/$N75),1) -> 1 | AJ76: =MIN(IF($B77,AJ75+IF(ISNUMBER(AI76),AI76,0),AJ77/$N75),1) -> 1 | AK76: =MIN(IF($B77,AK75+IF(ISNUMBER(AJ76),AJ76,0),AK77/$N75),1) -> 1 | AL76: =MIN(IF($B77,AL75+IF(ISNUMBER(AK76),AK76,0),AL77/$N75),1) -> 1 | AM76: =MIN(IF($B77,AM75+IF(ISNUMBER(AL76),AL76,0),AM77/$N75),1) -> 1
A77: =OFFSET(A77,-CFF.NumLinha,0)+1 -> 20 | B77: =$C77>=OFFSET($C77,CFF.NumLinha,0) -> TRUE | C77: =INDEX(PO!A$11:A$91,MATCH($A77,PO!$W$11:$W$91,0)) -> 2 | D77: =IF(ISERROR(J77),I77,SMALL(I77:J77,1))-1 -> 2 | E77: =IF($C77=1,OFFSET(E77,-CFF.NumLinha,0)+1,OFFSET(E77,-CFF.NumLinha,0)) -> 4 | F77: =IF($C77=1,0,IF($C77=2,OFFSET(F77,-CFF.NumLinha,0)+1,OFFSET(F77,-CFF.NumLinha,0))) -> 1 | G77: =IF(AND($C77<=2,$C77<>0),0,IF($C77=3,OFFSET(G77,-CFF.NumLinha,0)+1,OFFSET(G77,-CFF.NumLinha,0))) -> 0 | H77: =IF(AND($C77<=3,$C77<>0),0,IF($C77=4,OFFSET(H77,-CFF.NumLinha,0)+1,OFFSET(H77,-CFF.NumLinha,0))) -> 0 | I77: =MATCH(0,OFFSET($D77,1,$C77,ROW($A$87)-ROW($A77)),0) -> 3 | J77: =MATCH(OFFSET($D77,0,$C77)+1,OFFSET($D77,1,$C77,ROW($A$87)-ROW($A77)),0) -> 9 | K77: =ROUND(INDEX(PO!U$11:U$91,MATCH($A77,PO!$W$11:$W$91,0)),2)+10^-12 -> 25370.16 | O77: Acumulado (R$) | P77: =IF($B77,ROUND(P76*$N75,2),ROUND(SUMIF(OFFSET($B77,1,0,$D77),TRUE,OFFSET(P77,1,0,$D77))/SUMIF(OFFSET($B77,1,0,$D77),TRUE,OFFSET($K77,1,0,$D77))*$N75,2)) -> 0 | Q77: 0 | R77: 0 | S77: 0 | T77: 0 | U77: 6342.54 | V77: 12685.08 | W77: 12685.08 | X77: 12685.08 | Y77: 12685.08 | Z77: 12685.08 | AA77: 12685.08 | AB77: 12685.08 | AC77: 12685.08 | AD77: 12685.08 | AE77: 12685.08 | AF77: =IF($B77,ROUND(AF76*$N75,2),ROUND(SUMIF(OFFSET($B77,1,0,$D77),TRUE,OFFSET(AF77,1,0,$D77))/SUMIF(OFFSET($B77,1,0,$D77),TRUE,OFFSET($K77,1,0,$D77))*$N75,2)) -> 19027.62 | AG77: =IF($B77,ROUND(AG76*$N75,2),ROUND(SUMIF(OFFSET($B77,1,0,$D77),TRUE,OFFSET(AG77,1,0,$D77))/SUMIF(OFFSET($B77,1,0,$D77),TRUE,OFFSET($K77,1,0,$D77))*$N75,2)) -> 25370.16 | AH77: =IF($B77,ROUND(AH76*$N75,2),ROUND(SUMIF(OFFSET($B77,1,0,$D77),TRUE,OFFSET(AH77,1,0,$D77))/SUMIF(OFFSET($B77,1,0,$D77),TRUE,OFFSET($K77,1,0,$D77))*$N75,2)) -> 25370.16 | AI77: =IF($B77,ROUND(AI76*$N75,2),ROUND(SUMIF(OFFSET($B77,1,0,$D77),TRUE,OFFSET(AI77,1,0,$D77))/SUMIF(OFFSET($B77,1,0,$D77),TRUE,OFFSET($K77,1,0,$D77))*$N75,2)) -> 25370.16 | AJ77: =IF($B77,ROUND(AJ76*$N75,2),ROUND(SUMIF(OFFSET($B77,1,0,$D77),TRUE,OFFSET(AJ77,1,0,$D77))/SUMIF(OFFSET($B77,1,0,$D77),TRUE,OFFSET($K77,1,0,$D77))*$N75,2)) -> 25370.16 | AK77: =IF($B77,ROUND(AK76*$N75,2),ROUND(SUMIF(OFFSET($B77,1,0,$D77),TRUE,OFFSET(AK77,1,0,$D77))/SUMIF(OFFSET($B77,1,0,$D77),TRUE,OFFSET($K77,1,0,$D77))*$N75,2)) -> 25370.16 | AL77: =IF($B77,ROUND(AL76*$N75,2),ROUND(SUMIF(OFFSET($B77,1,0,$D77),TRUE,OFFSET(AL77,1,0,$D77))/SUMIF(OFFSET($B77,1,0,$D77),TRUE,OFFSET($K77,1,0,$D77))*$N75,2)) -> 25370.16 | AM77: =IF($B77,ROUND(AM76*$N75,2),ROUND(SUMIF(OFFSET($B77,1,0,$D77),TRUE,OFFSET(AM77,1,0,$D77))/SUMIF(OFFSET($B77,1,0,$D77),TRUE,OFFSET($K77,1,0,$D77))*$N75,2)) -> 25370.16
L78: =INDEX(PO!K$11:K$91,MATCH($A80,PO!$W$11:$W$91,0)) -> 5. | M78: =INDEX(PO!O$11:O$91,MATCH($A80,PO!$W$11:$W$91,0)) -> Monitoramento e relatoria | N78: =IF(ROUND(K80,2)=0,K80,ROUND(K80,2)) -> 46228.5 | O78: Parcela (%) | P78: =IF($B80,0,P79-IF(ISNUMBER(O79),O79,0)) -> 0 | Q78: =IF($B80,0,Q79-IF(ISNUMBER(P79),P79,0)) -> 0.03409779681 | R78: =IF($B80,0,R79-IF(ISNUMBER(Q79),Q79,0)) -> 0.0324611441 | S78: =IF($B80,0,S79-IF(ISNUMBER(R79),R79,0)) -> 0.0324611441 | T78: =IF($B80,0,T79-IF(ISNUMBER(S79),S79,0)) -> 0.03246092778 | U78: =IF($B80,0,U79-IF(ISNUMBER(T79),T79,0)) -> 0.0324611441 | V78: =IF($B80,0,V79-IF(ISNUMBER(U79),U79,0)) -> 0.0324611441 | W78: =IF($B80,0,W79-IF(ISNUMBER(V79),V79,0)) -> 0.0324611441 | X78: 0.0324611441 | Y78: =IF($B80,0,Y79-IF(ISNUMBER(X79),X79,0)) -> 0.03246092778 | Z78: =IF($B80,0,Z79-IF(ISNUMBER(Y79),Y79,0)) -> 0.0324611441 | AA78: =IF($B80,0,AA79-IF(ISNUMBER(Z79),Z79,0)) -> 0.0324611441 | AB78: =IF($B80,0,AB79-IF(ISNUMBER(AA79),AA79,0)) -> 0.0324611441 | AC78: =IF($B80,0,AC79-IF(ISNUMBER(AB79),AB79,0)) -> 0.0324611441 | AD78: =IF($B80,0,AD79-IF(ISNUMBER(AC79),AC79,0)) -> 0.0324611441 | AE78: =IF($B80,0,AE79-IF(ISNUMBER(AD79),AD79,0)) -> 0.03246092778 | AF78: =IF($B80,0,AF79-IF(ISNUMBER(AE79),AE79,0)) -> 0.0324611441 | AG78: =IF($B80,0,AG79-IF(ISNUMBER(AF79),AF79,0)) -> 0.0324611441 | AH78: =IF($B80,0,AH79-IF(ISNUMBER(AG79),AG79,0)) -> 0.0324611441 | AI78: =IF($B80,0,AI79-IF(ISNUMBER(AH79),AH79,0)) -> 0.0324611441 | AJ78: =IF($B80,0,AJ79-IF(ISNUMBER(AI79),AI79,0)) -> 0.03246092778 | AK78: =IF($B80,0,AK79-IF(ISNUMBER(AJ79),AJ79,0)) -> 0.03109726684 | AL78: =IF($B80,0,AL79-IF(ISNUMBER(AK79),AK79,0)) -> 0.1590220319 | AM78: =IF($B80,0,AM79-IF(ISNUMBER(AL79),AL79,0)) -> 0.1590220319
O79: Acumulado (%) | P79: =MIN(IF($B80,P78+IF(ISNUMBER(O79),O79,0),P80/$N78),1) -> 0 | Q79: =MIN(IF($B80,Q78+IF(ISNUMBER(P79),P79,0),Q80/$N78),1) -> 0.03409779681 | R79: =MIN(IF($B80,R78+IF(ISNUMBER(Q79),Q79,0),R80/$N78),1) -> 0.06655894091 | S79: =MIN(IF($B80,S78+IF(ISNUMBER(R79),R79,0),S80/$N78),1) -> 0.09902008501 | T79: =MIN(IF($B80,T78+IF(ISNUMBER(S79),S79,0),T80/$N78),1) -> 0.1314810128 | U79: =MIN(IF($B80,U78+IF(ISNUMBER(T79),T79,0),U80/$N78),1) -> 0.1639421569 | V79: =MIN(IF($B80,V78+IF(ISNUMBER(U79),U79,0),V80/$N78),1) -> 0.196403301 | W79: =MIN(IF($B80,W78+IF(ISNUMBER(V79),V79,0),W80/$N78),1) -> 0.2288644451 | X79: 0.2613255892 | Y79: =MIN(IF($B80,Y78+IF(ISNUMBER(X79),X79,0),Y80/$N78),1) -> 0.293786517 | Z79: =MIN(IF($B80,Z78+IF(ISNUMBER(Y79),Y79,0),Z80/$N78),1) -> 0.3262476611 | AA79: =MIN(IF($B80,AA78+IF(ISNUMBER(Z79),Z79,0),AA80/$N78),1) -> 0.3587088052 | AB79: =MIN(IF($B80,AB78+IF(ISNUMBER(AA79),AA79,0),AB80/$N78),1) -> 0.3911699493 | AC79: =MIN(IF($B80,AC78+IF(ISNUMBER(AB79),AB79,0),AC80/$N78),1) -> 0.4236310934 | AD79: =MIN(IF($B80,AD78+IF(ISNUMBER(AC79),AC79,0),AD80/$N78),1) -> 0.4560922375 | AE79: =MIN(IF($B80,AE78+IF(ISNUMBER(AD79),AD79,0),AE80/$N78),1) -> 0.4885531653 | AF79: =MIN(IF($B80,AF78+IF(ISNUMBER(AE79),AE79,0),AF80/$N78),1) -> 0.5210143094 | AG79: =MIN(IF($B80,AG78+IF(ISNUMBER(AF79),AF79,0),AG80/$N78),1) -> 0.5534754535 | AH79: =MIN(IF($B80,AH78+IF(ISNUMBER(AG79),AG79,0),AH80/$N78),1) -> 0.5859365976 | AI79: =MIN(IF($B80,AI78+IF(ISNUMBER(AH79),AH79,0),AI80/$N78),1) -> 0.6183977417 | AJ79: =MIN(IF($B80,AJ78+IF(ISNUMBER(AI79),AI79,0),AJ80/$N78),1) -> 0.6508586694 | AK79: =MIN(IF($B80,AK78+IF(ISNUMBER(AJ79),AJ79,0),AK80/$N78),1) -> 0.6819559363 | AL79: =MIN(IF($B80,AL78+IF(ISNUMBER(AK79),AK79,0),AL80/$N78),1) -> 0.8409779681 | AM79: =MIN(IF($B80,AM78+IF(ISNUMBER(AL79),AL79,0),AM80/$N78),1) -> 1
A80: =OFFSET(A80,-CFF.NumLinha,0)+1 -> 21 | B80: =$C80>=OFFSET($C80,CFF.NumLinha,0) -> FALSE | C80: =INDEX(PO!A$11:A$91,MATCH($A80,PO!$W$11:$W$91,0)) -> 1 | D80: =IF(ISERROR(J80),I80,SMALL(I80:J80,1))-1 -> 6 | E80: =IF($C80=1,OFFSET(E80,-CFF.NumLinha,0)+1,OFFSET(E80,-CFF.NumLinha,0)) -> 5 | F80: =IF($C80=1,0,IF($C80=2,OFFSET(F80,-CFF.NumLinha,0)+1,OFFSET(F80,-CFF.NumLinha,0))) -> 0 | G80: =IF(AND($C80<=2,$C80<>0),0,IF($C80=3,OFFSET(G80,-CFF.NumLinha,0)+1,OFFSET(G80,-CFF.NumLinha,0))) -> 0 | H80: =IF(AND($C80<=3,$C80<>0),0,IF($C80=4,OFFSET(H80,-CFF.NumLinha,0)+1,OFFSET(H80,-CFF.NumLinha,0))) -> 0 | I80: =MATCH(0,OFFSET($D80,1,$C80,ROW($A$87)-ROW($A80)),0) -> 7 | J80: =MATCH(OFFSET($D80,0,$C80)+1,OFFSET($D80,1,$C80,ROW($A$87)-ROW($A80)),0) ->  | K80: =ROUND(INDEX(PO!U$11:U$91,MATCH($A80,PO!$W$11:$W$91,0)),2)+10^-12 -> 46228.5 | O80: Acumulado (R$) | P80: =IF($B80,ROUND(P79*$N78,2),ROUND(SUMIF(OFFSET($B80,1,0,$D80),TRUE,OFFSET(P80,1,0,$D80))/SUMIF(OFFSET($B80,1,0,$D80),TRUE,OFFSET($K80,1,0,$D80))*$N78,2)) -> 0 | Q80: 1576.29 | R80: 3076.92 | S80: 4577.55 | T80: 6078.17 | U80: 7578.8 | V80: 9079.43 | W80: 10580.06 | X80: 12080.69 | Y80: 13581.31 | Z80: 15081.94 | AA80: 16582.57 | AB80: 18083.2 | AC80: 19583.83 | AD80: 21084.46 | AE80: 22585.08 | AF80: =IF($B80,ROUND(AF79*$N78,2),ROUND(SUMIF(OFFSET($B80,1,0,$D80),TRUE,OFFSET(AF80,1,0,$D80))/SUMIF(OFFSET($B80,1,0,$D80),TRUE,OFFSET($K80,1,0,$D80))*$N78,2)) -> 24085.71 | AG80: =IF($B80,ROUND(AG79*$N78,2),ROUND(SUMIF(OFFSET($B80,1,0,$D80),TRUE,OFFSET(AG80,1,0,$D80))/SUMIF(OFFSET($B80,1,0,$D80),TRUE,OFFSET($K80,1,0,$D80))*$N78,2)) -> 25586.34 | AH80: =IF($B80,ROUND(AH79*$N78,2),ROUND(SUMIF(OFFSET($B80,1,0,$D80),TRUE,OFFSET(AH80,1,0,$D80))/SUMIF(OFFSET($B80,1,0,$D80),TRUE,OFFSET($K80,1,0,$D80))*$N78,2)) -> 27086.97 | AI80: =IF($B80,ROUND(AI79*$N78,2),ROUND(SUMIF(OFFSET($B80,1,0,$D80),TRUE,OFFSET(AI80,1,0,$D80))/SUMIF(OFFSET($B80,1,0,$D80),TRUE,OFFSET($K80,1,0,$D80))*$N78,2)) -> 28587.6 | AJ80: =IF($B80,ROUND(AJ79*$N78,2),ROUND(SUMIF(OFFSET($B80,1,0,$D80),TRUE,OFFSET(AJ80,1,0,$D80))/SUMIF(OFFSET($B80,1,0,$D80),TRUE,OFFSET($K80,1,0,$D80))*$N78,2)) -> 30088.22 | AK80: =IF($B80,ROUND(AK79*$N78,2),ROUND(SUMIF(OFFSET($B80,1,0,$D80),TRUE,OFFSET(AK80,1,0,$D80))/SUMIF(OFFSET($B80,1,0,$D80),TRUE,OFFSET($K80,1,0,$D80))*$N78,2)) -> 31525.8 | AL80: =IF($B80,ROUND(AL79*$N78,2),ROUND(SUMIF(OFFSET($B80,1,0,$D80),TRUE,OFFSET(AL80,1,0,$D80))/SUMIF(OFFSET($B80,1,0,$D80),TRUE,OFFSET($K80,1,0,$D80))*$N78,2)) -> 38877.15 | AM80: =IF($B80,ROUND(AM79*$N78,2),ROUND(SUMIF(OFFSET($B80,1,0,$D80),TRUE,OFFSET(AM80,1,0,$D80))/SUMIF(OFFSET($B80,1,0,$D80),TRUE,OFFSET($K80,1,0,$D80))*$N78,2)) -> 46228.5
L81: =INDEX(PO!K$11:K$91,MATCH($A83,PO!$W$11:$W$91,0)) -> 5.1. | M81: =INDEX(PO!O$11:O$91,MATCH($A83,PO!$W$11:$W$91,0)) -> Elaboração de relatórios mensais das atividades | N81: =IF(ROUND(K83,2)=0,K83,ROUND(K83,2)) -> 31525.8 | O81: Parcela (%) | P81: =IF($B83,0,P82-IF(ISNUMBER(O82),O82,0)) -> 0 | Q81: 0.05 | R81: 0.0476 | S81: 0.0476 | T81: 0.0476 | U81: 0.0476 | V81: 0.0476 | W81: 0.0476 | X81: 0.0476 | Y81: 0.0476 | Z81: 0.0476 | AA81: 0.0476 | AB81: 0.0476 | AC81: 0.0476 | AD81: 0.0476 | AE81: 0.0476 | AF81: 0.0476 | AG81: 0.0476 | AH81: 0.0476 | AI81: 0.0476 | AJ81: 0.0476 | AK81: 0.048 | AL81: =IF($B83,0,AL82-IF(ISNUMBER(AK82),AK82,0)) -> 0 | AM81: =IF($B83,0,AM82-IF(ISNUMBER(AL82),AL82,0)) -> 0
O82: Acumulado (%) | P82: =MIN(IF($B83,P81+IF(ISNUMBER(O82),O82,0),P83/$N81),1) -> 0 | Q82: =MIN(IF($B83,Q81+IF(ISNUMBER(P82),P82,0),Q83/$N81),1) -> 0.05 | R82: =MIN(IF($B83,R81+IF(ISNUMBER(Q82),Q82,0),R83/$N81),1) -> 0.0976 | S82: =MIN(IF($B83,S81+IF(ISNUMBER(R82),R82,0),S83/$N81),1) -> 0.1452 | T82: =MIN(IF($B83,T81+IF(ISNUMBER(S82),S82,0),T83/$N81),1) -> 0.1928 | U82: =MIN(IF($B83,U81+IF(ISNUMBER(T82),T82,0),U83/$N81),1) -> 0.2404 | V82: =MIN(IF($B83,V81+IF(ISNUMBER(U82),U82,0),V83/$N81),1) -> 0.288 | W82: =MIN(IF($B83,W81+IF(ISNUMBER(V82),V82,0),W83/$N81),1) -> 0.3356 | X82: 0.3832 | Y82: =MIN(IF($B83,Y81+IF(ISNUMBER(X82),X82,0),Y83/$N81),1) -> 0.4308 | Z82: =MIN(IF($B83,Z81+IF(ISNUMBER(Y82),Y82,0),Z83/$N81),1) -> 0.4784 | AA82: =MIN(IF($B83,AA81+IF(ISNUMBER(Z82),Z82,0),AA83/$N81),1) -> 0.526 | AB82: =MIN(IF($B83,AB81+IF(ISNUMBER(AA82),AA82,0),AB83/$N81),1) -> 0.5736 | AC82: =MIN(IF($B83,AC81+IF(ISNUMBER(AB82),AB82,0),AC83/$N81),1) -> 0.6212 | AD82: =MIN(IF($B83,AD81+IF(ISNUMBER(AC82),AC82,0),AD83/$N81),1) -> 0.6688 | AE82: =MIN(IF($B83,AE81+IF(ISNUMBER(AD82),AD82,0),AE83/$N81),1) -> 0.7164 | AF82: =MIN(IF($B83,AF81+IF(ISNUMBER(AE82),AE82,0),AF83/$N81),1) -> 0.764 | AG82: =MIN(IF($B83,AG81+IF(ISNUMBER(AF82),AF82,0),AG83/$N81),1) -> 0.8116 | AH82: =MIN(IF($B83,AH81+IF(ISNUMBER(AG82),AG82,0),AH83/$N81),1) -> 0.8592 | AI82: =MIN(IF($B83,AI81+IF(ISNUMBER(AH82),AH82,0),AI83/$N81),1) -> 0.9068 | AJ82: =MIN(IF($B83,AJ81+IF(ISNUMBER(AI82),AI82,0),AJ83/$N81),1) -> 0.9544 | AK82: =MIN(IF($B83,AK81+IF(ISNUMBER(AJ82),AJ82,0),AK83/$N81),1) -> 1 | AL82: =MIN(IF($B83,AL81+IF(ISNUMBER(AK82),AK82,0),AL83/$N81),1) -> 1 | AM82: =MIN(IF($B83,AM81+IF(ISNUMBER(AL82),AL82,0),AM83/$N81),1) -> 1
A83: =OFFSET(A83,-CFF.NumLinha,0)+1 -> 22 | B83: =$C83>=OFFSET($C83,CFF.NumLinha,0) -> TRUE | C83: =INDEX(PO!A$11:A$91,MATCH($A83,PO!$W$11:$W$91,0)) -> 2 | D83: =IF(ISERROR(J83),I83,SMALL(I83:J83,1))-1 -> 2 | E83: =IF($C83=1,OFFSET(E83,-CFF.NumLinha,0)+1,OFFSET(E83,-CFF.NumLinha,0)) -> 5 | F83: =IF($C83=1,0,IF($C83=2,OFFSET(F83,-CFF.NumLinha,0)+1,OFFSET(F83,-CFF.NumLinha,0))) -> 1 | G83: =IF(AND($C83<=2,$C83<>0),0,IF($C83=3,OFFSET(G83,-CFF.NumLinha,0)+1,OFFSET(G83,-CFF.NumLinha,0))) -> 0 | H83: =IF(AND($C83<=3,$C83<>0),0,IF($C83=4,OFFSET(H83,-CFF.NumLinha,0)+1,OFFSET(H83,-CFF.NumLinha,0))) -> 0 | I83: =MATCH(0,OFFSET($D83,1,$C83,ROW($A$87)-ROW($A83)),0) -> 4 | J83: =MATCH(OFFSET($D83,0,$C83)+1,OFFSET($D83,1,$C83,ROW($A$87)-ROW($A83)),0) -> 3 | K83: =ROUND(INDEX(PO!U$11:U$91,MATCH($A83,PO!$W$11:$W$91,0)),2)+10^-12 -> 31525.8 | O83: Acumulado (R$) | P83: =IF($B83,ROUND(P82*$N81,2),ROUND(SUMIF(OFFSET($B83,1,0,$D83),TRUE,OFFSET(P83,1,0,$D83))/SUMIF(OFFSET($B83,1,0,$D83),TRUE,OFFSET($K83,1,0,$D83))*$N81,2)) -> 0 | Q83: 1576.29 | R83: 3076.92 | S83: 4577.55 | T83: 6078.17 | U83: 7578.8 | V83: 9079.43 | W83: 10580.06 | X83: 12080.69 | Y83: 13581.31 | Z83: 15081.94 | AA83: 16582.57 | AB83: 18083.2 | AC83: 19583.83 | AD83: 21084.46 | AE83: 22585.08 | AF83: =IF($B83,ROUND(AF82*$N81,2),ROUND(SUMIF(OFFSET($B83,1,0,$D83),TRUE,OFFSET(AF83,1,0,$D83))/SUMIF(OFFSET($B83,1,0,$D83),TRUE,OFFSET($K83,1,0,$D83))*$N81,2)) -> 24085.71 | AG83: =IF($B83,ROUND(AG82*$N81,2),ROUND(SUMIF(OFFSET($B83,1,0,$D83),TRUE,OFFSET(AG83,1,0,$D83))/SUMIF(OFFSET($B83,1,0,$D83),TRUE,OFFSET($K83,1,0,$D83))*$N81,2)) -> 25586.34 | AH83: =IF($B83,ROUND(AH82*$N81,2),ROUND(SUMIF(OFFSET($B83,1,0,$D83),TRUE,OFFSET(AH83,1,0,$D83))/SUMIF(OFFSET($B83,1,0,$D83),TRUE,OFFSET($K83,1,0,$D83))*$N81,2)) -> 27086.97 | AI83: =IF($B83,ROUND(AI82*$N81,2),ROUND(SUMIF(OFFSET($B83,1,0,$D83),TRUE,OFFSET(AI83,1,0,$D83))/SUMIF(OFFSET($B83,1,0,$D83),TRUE,OFFSET($K83,1,0,$D83))*$N81,2)) -> 28587.6 | AJ83: =IF($B83,ROUND(AJ82*$N81,2),ROUND(SUMIF(OFFSET($B83,1,0,$D83),TRUE,OFFSET(AJ83,1,0,$D83))/SUMIF(OFFSET($B83,1,0,$D83),TRUE,OFFSET($K83,1,0,$D83))*$N81,2)) -> 30088.22 | AK83: =IF($B83,ROUND(AK82*$N81,2),ROUND(SUMIF(OFFSET($B83,1,0,$D83),TRUE,OFFSET(AK83,1,0,$D83))/SUMIF(OFFSET($B83,1,0,$D83),TRUE,OFFSET($K83,1,0,$D83))*$N81,2)) -> 31525.8 | AL83: =IF($B83,ROUND(AL82*$N81,2),ROUND(SUMIF(OFFSET($B83,1,0,$D83),TRUE,OFFSET(AL83,1,0,$D83))/SUMIF(OFFSET($B83,1,0,$D83),TRUE,OFFSET($K83,1,0,$D83))*$N81,2)) -> 31525.8 | AM83: =IF($B83,ROUND(AM82*$N81,2),ROUND(SUMIF(OFFSET($B83,1,0,$D83),TRUE,OFFSET(AM83,1,0,$D83))/SUMIF(OFFSET($B83,1,0,$D83),TRUE,OFFSET($K83,1,0,$D83))*$N81,2)) -> 31525.8
L84: =INDEX(PO!K$11:K$91,MATCH($A86,PO!$W$11:$W$91,0)) -> 5.2. | M84: =INDEX(PO!O$11:O$91,MATCH($A86,PO!$W$11:$W$91,0)) -> Relatório final e síntese do TTS | N84: =IF(ROUND(K86,2)=0,K86,ROUND(K86,2)) -> 14702.7 | O84: Parcela (%) | P84: =IF($B86,0,P85-IF(ISNUMBER(O85),O85,0)) -> 0 | Q84: =IF($B86,0,Q85-IF(ISNUMBER(P85),P85,0)) -> 0 | R84: =IF($B86,0,R85-IF(ISNUMBER(Q85),Q85,0)) -> 0 | S84: =IF($B86,0,S85-IF(ISNUMBER(R85),R85,0)) -> 0 | T84: =IF($B86,0,T85-IF(ISNUMBER(S85),S85,0)) -> 0 | U84: =IF($B86,0,U85-IF(ISNUMBER(T85),T85,0)) -> 0 | V84: =IF($B86,0,V85-IF(ISNUMBER(U85),U85,0)) -> 0 | W84: =IF($B86,0,W85-IF(ISNUMBER(V85),V85,0)) -> 0 | X84: 0 | Y84: =IF($B86,0,Y85-IF(ISNUMBER(X85),X85,0)) -> 0 | Z84: =IF($B86,0,Z85-IF(ISNUMBER(Y85),Y85,0)) -> 0 | AA84: =IF($B86,0,AA85-IF(ISNUMBER(Z85),Z85,0)) -> 0 | AB84: =IF($B86,0,AB85-IF(ISNUMBER(AA85),AA85,0)) -> 0 | AC84: =IF($B86,0,AC85-IF(ISNUMBER(AB85),AB85,0)) -> 0 | AD84: =IF($B86,0,AD85-IF(ISNUMBER(AC85),AC85,0)) -> 0 | AE84: =IF($B86,0,AE85-IF(ISNUMBER(AD85),AD85,0)) -> 0 | AF84: =IF($B86,0,AF85-IF(ISNUMBER(AE85),AE85,0)) -> 0 | AG84: =IF($B86,0,AG85-IF(ISNUMBER(AF85),AF85,0)) -> 0 | AH84: =IF($B86,0,AH85-IF(ISNUMBER(AG85),AG85,0)) -> 0 | AI84: =IF($B86,0,AI85-IF(ISNUMBER(AH85),AH85,0)) -> 0 | AJ84: =IF($B86,0,AJ85-IF(ISNUMBER(AI85),AI85,0)) -> 0 | AK84: =IF($B86,0,AK85-IF(ISNUMBER(AJ85),AJ85,0)) -> 0 | AL84: 0.5 | AM84: 0.5
O85: Acumulado (%) | P85: =MIN(IF($B86,P84+IF(ISNUMBER(O85),O85,0),P86/$N84),1) -> 0 | Q85: =MIN(IF($B86,Q84+IF(ISNUMBER(P85),P85,0),Q86/$N84),1) -> 0 | R85: =MIN(IF($B86,R84+IF(ISNUMBER(Q85),Q85,0),R86/$N84),1) -> 0 | S85: =MIN(IF($B86,S84+IF(ISNUMBER(R85),R85,0),S86/$N84),1) -> 0 | T85: =MIN(IF($B86,T84+IF(ISNUMBER(S85),S85,0),T86/$N84),1) -> 0 | U85: =MIN(IF($B86,U84+IF(ISNUMBER(T85),T85,0),U86/$N84),1) -> 0 | V85: =MIN(IF($B86,V84+IF(ISNUMBER(U85),U85,0),V86/$N84),1) -> 0 | W85: =MIN(IF($B86,W84+IF(ISNUMBER(V85),V85,0),W86/$N84),1) -> 0 | X85: 0 | Y85: =MIN(IF($B86,Y84+IF(ISNUMBER(X85),X85,0),Y86/$N84),1) -> 0 | Z85: =MIN(IF($B86,Z84+IF(ISNUMBER(Y85),Y85,0),Z86/$N84),1) -> 0 | AA85: =MIN(IF($B86,AA84+IF(ISNUMBER(Z85),Z85,0),AA86/$N84),1) -> 0 | AB85: =MIN(IF($B86,AB84+IF(ISNUMBER(AA85),AA85,0),AB86/$N84),1) -> 0 | AC85: =MIN(IF($B86,AC84+IF(ISNUMBER(AB85),AB85,0),AC86/$N84),1) -> 0 | AD85: =MIN(IF($B86,AD84+IF(ISNUMBER(AC85),AC85,0),AD86/$N84),1) -> 0 | AE85: =MIN(IF($B86,AE84+IF(ISNUMBER(AD85),AD85,0),AE86/$N84),1) -> 0 | AF85: =MIN(IF($B86,AF84+IF(ISNUMBER(AE85),AE85,0),AF86/$N84),1) -> 0 | AG85: =MIN(IF($B86,AG84+IF(ISNUMBER(AF85),AF85,0),AG86/$N84),1) -> 0 | AH85: =MIN(IF($B86,AH84+IF(ISNUMBER(AG85),AG85,0),AH86/$N84),1) -> 0 | AI85: =MIN(IF($B86,AI84+IF(ISNUMBER(AH85),AH85,0),AI86/$N84),1) -> 0 | AJ85: =MIN(IF($B86,AJ84+IF(ISNUMBER(AI85),AI85,0),AJ86/$N84),1) -> 0 | AK85: =MIN(IF($B86,AK84+IF(ISNUMBER(AJ85),AJ85,0),AK86/$N84),1) -> 0 | AL85: =MIN(IF($B86,AL84+IF(ISNUMBER(AK85),AK85,0),AL86/$N84),1) -> 0.5 | AM85: =MIN(IF($B86,AM84+IF(ISNUMBER(AL85),AL85,0),AM86/$N84),1) -> 1
A86: =OFFSET(A86,-CFF.NumLinha,0)+1 -> 23 | B86: =$C86>=OFFSET($C86,CFF.NumLinha,0) -> TRUE | C86: =INDEX(PO!A$11:A$91,MATCH($A86,PO!$W$11:$W$91,0)) -> 2 | D86: =IF(ISERROR(J86),I86,SMALL(I86:J86,1))-1 -> 0 | E86: =IF($C86=1,OFFSET(E86,-CFF.NumLinha,0)+1,OFFSET(E86,-CFF.NumLinha,0)) -> 5 | F86: =IF($C86=1,0,IF($C86=2,OFFSET(F86,-CFF.NumLinha,0)+1,OFFSET(F86,-CFF.NumLinha,0))) -> 2 | G86: =IF(AND($C86<=2,$C86<>0),0,IF($C86=3,OFFSET(G86,-CFF.NumLinha,0)+1,OFFSET(G86,-CFF.NumLinha,0))) -> 0 | H86: =IF(AND($C86<=3,$C86<>0),0,IF($C86=4,OFFSET(H86,-CFF.NumLinha,0)+1,OFFSET(H86,-CFF.NumLinha,0))) -> 0 | I86: =MATCH(0,OFFSET($D86,1,$C86,ROW($A$87)-ROW($A86)),0) -> 1 | J86: =MATCH(OFFSET($D86,0,$C86)+1,OFFSET($D86,1,$C86,ROW($A$87)-ROW($A86)),0) ->  | K86: =ROUND(INDEX(PO!U$11:U$91,MATCH($A86,PO!$W$11:$W$91,0)),2)+10^-12 -> 14702.7 | O86: Acumulado (R$) | P86: =IF($B86,ROUND(P85*$N84,2),ROUND(SUMIF(OFFSET($B86,1,0,$D86),TRUE,OFFSET(P86,1,0,$D86))/SUMIF(OFFSET($B86,1,0,$D86),TRUE,OFFSET($K86,1,0,$D86))*$N84,2)) -> 0 | Q86: 0 | R86: 0 | S86: 0 | T86: 0 | U86: 0 | V86: 0 | W86: 0 | X86: 0 | Y86: 0 | Z86: 0 | AA86: 0 | AB86: 0 | AC86: 0 | AD86: 0 | AE86: 0 | AF86: =IF($B86,ROUND(AF85*$N84,2),ROUND(SUMIF(OFFSET($B86,1,0,$D86),TRUE,OFFSET(AF86,1,0,$D86))/SUMIF(OFFSET($B86,1,0,$D86),TRUE,OFFSET($K86,1,0,$D86))*$N84,2)) -> 0 | AG86: =IF($B86,ROUND(AG85*$N84,2),ROUND(SUMIF(OFFSET($B86,1,0,$D86),TRUE,OFFSET(AG86,1,0,$D86))/SUMIF(OFFSET($B86,1,0,$D86),TRUE,OFFSET($K86,1,0,$D86))*$N84,2)) -> 0 | AH86: =IF($B86,ROUND(AH85*$N84,2),ROUND(SUMIF(OFFSET($B86,1,0,$D86),TRUE,OFFSET(AH86,1,0,$D86))/SUMIF(OFFSET($B86,1,0,$D86),TRUE,OFFSET($K86,1,0,$D86))*$N84,2)) -> 0 | AI86: =IF($B86,ROUND(AI85*$N84,2),ROUND(SUMIF(OFFSET($B86,1,0,$D86),TRUE,OFFSET(AI86,1,0,$D86))/SUMIF(OFFSET($B86,1,0,$D86),TRUE,OFFSET($K86,1,0,$D86))*$N84,2)) -> 0 | AJ86: =IF($B86,ROUND(AJ85*$N84,2),ROUND(SUMIF(OFFSET($B86,1,0,$D86),TRUE,OFFSET(AJ86,1,0,$D86))/SUMIF(OFFSET($B86,1,0,$D86),TRUE,OFFSET($K86,1,0,$D86))*$N84,2)) -> 0 | AK86: =IF($B86,ROUND(AK85*$N84,2),ROUND(SUMIF(OFFSET($B86,1,0,$D86),TRUE,OFFSET(AK86,1,0,$D86))/SUMIF(OFFSET($B86,1,0,$D86),TRUE,OFFSET($K86,1,0,$D86))*$N84,2)) -> 0 | AL86: =IF($B86,ROUND(AL85*$N84,2),ROUND(SUMIF(OFFSET($B86,1,0,$D86),TRUE,OFFSET(AL86,1,0,$D86))/SUMIF(OFFSET($B86,1,0,$D86),TRUE,OFFSET($K86,1,0,$D86))*$N84,2)) -> 7351.35 | AM86: =IF($B86,ROUND(AM85*$N84,2),ROUND(SUMIF(OFFSET($B86,1,0,$D86),TRUE,OFFSET(AM86,1,0,$D86))/SUMIF(OFFSET($B86,1,0,$D86),TRUE,OFFSET($K86,1,0,$D86))*$N84,2)) -> 14702.7
C87: -1 | E87: 0 | F87: 0 | G87: 0 | H87: 0
L89: =Import.Município -> Novo Hamburgo
L90: Local
L92: =PO!K101 -> 2022-05-03
L93: Data

Sheet ABC (hidden)
A1: Orçamento | E1: ANEXO - ANÁLISE PLANILHA ORÇAMENTÁRIA | Y1: Grau de Sigilo
A2: Curva ABC | E2: CURVA ABC | Y2: #CONFIDENCIAL 05
A3: 1
A4: Todos
A5: Significativos
A6: 1
A7: 1 | L7: Total: | M7: =SUMIF(OFFSET($S$10,1,0,$A$7),TRUE,OFFSET($M$10,1,0,$A$7)) -> 0 | N7: =M7 -> 0 | Q7: Análise: | R7: 0.8
A8: 0 | B8: =MATCH(B10,OFFSET(Import.PO,-3,0,1),0) -> 1 | C8: 2 | D8: 3 | E8: 4 | F8: 5 | G8: 6 | H8: 7 | J8: 8 | K8: 17 | L8: 10 | M8: 11 | Q8: =SMALL(OFFSET($R$10,1,0,$A$7),1+COUNTIF(OFFSET($R$10,1,0,$A$7),"<"&PARETO)) -> 
A9: =ROW(A9)-ROW($A$10) -> -1 | B9: =IF($A9<=$A$8,INDEX(Import.PO,$A9,B$8),0) ->  | I9: =IF($P9=ROW($P9)-ROW($P$10),SUMIF(OFFSET($P$10,1,0,$A$7),$P9,OFFSET($H$10,1,0,$A$7)),OFFSET($I$10,$P9,0)) ->  | J9: =IF($A9<=$A$8,INDEX(Import.PO,$A9,J$8),0) ->  | K9: =IF($A9<=$A$8,INDEX(Import.PO,$A9,K$8),0) ->  | L9: =IF($A9<=$A$8,INDEX(Import.PO,$A9,L$8),0) ->  | M9: =IF($A9<=$A$8,INDEX(Import.PO,$A9,M$8),0) ->  | N9: =IF($P9=ROW($P9)-ROW($P$10),SUMIF(OFFSET($P$10,1,0,$A$7),$P9,OFFSET($M$10,1,0,$A$7)),OFFSET($N$10,$P9,0)) ->  | O9: =IF($S9,D9&"-"&E9,"") ->  | P9: =IF($S9,MATCH(O9,OFFSET($O$10,1,0,$A$7),0),"") ->  | Q9: =IF($P9=ROW($P9)-ROW($P$10),$N9/$M$7,IF(ISNUMBER($P9),TEXT(OFFSET($Q$10,$P9,0)," 0,00% "),0)) ->  | R9: =SUMIF(OFFSET($Q$10,1,0,$A$7),">="&$N9/$M$7,OFFSET($Q$10,1,0,$A$7)) -> 0 | S9: =E9<>0 ->  | T9: =IF($P9=ROW($P9)-ROW($P$10),R9<=$Q$8,IF(ISNUMBER($P9),OFFSET($T$10,VALUE($P9),0),FALSE)) -> 
A10: Linha Orç | B10: Item | C10: Fonte | D10: Tipo | E10: Código | F10: Descrição | G10: Unidade | H10: Quantidade | I10: Qtde Agrupada | J10: Custo Unitário (R$) | K10: Valor DI | L10: Preço Unitário (R$) | M10: Preço Total (R$) | N10: Preço Total (R$) | O10: Fonte | P10: Primeira linha | Q10: Peso Agrupado | R10: Peso Acum. | S10: Item | T10: Significativo | U10: Análise
A11: 1 | B11: =IF($A11<=$A$8,INDEX(Import.PO,$A11,B$8),0) -> 0 | C11: 0 | D11: 0 | E11: 0 | F11: 0 | G11: 0 | H11: 0 | I11: =IF($P11=ROW($P11)-ROW($P$10),SUMIF(OFFSET($P$10,1,0,$A$7),$P11,OFFSET($H$10,1,0,$A$7)),OFFSET($I$10,$P11,0)) ->  | J11: =IF($A11<=$A$8,INDEX(Import.PO,$A11,J$8),0) -> 0 | K11: =IF($A11<=$A$8,INDEX(Import.PO,$A11,K$8),0) -> 0 | L11: =IF($A11<=$A$8,INDEX(Import.PO,$A11,L$8),0) -> 0 | M11: =IF($A11<=$A$8,INDEX(Import.PO,$A11,M$8),0) -> 0 | N11: =IF($P11=ROW($P11)-ROW($P$10),SUMIF(OFFSET($P$10,1,0,$A$7),$P11,OFFSET($M$10,1,0,$A$7)),OFFSET($N$10,$P11,0)) ->  | O11: =IF($S11,D11&"-"&E11,"") ->  | P11: =IF($S11,MATCH(O11,OFFSET($O$10,1,0,$A$7),0),"") ->  | Q11: =IF($P11=ROW($P11)-ROW($P$10),$N11/$M$7,IF(ISNUMBER($P11),TEXT(OFFSET($Q$10,$P11,0)," 0,00% "),0)) -> 0 | R11: =SUMIF(OFFSET($Q$10,1,0,$A$7),">="&$N11/$M$7,OFFSET($Q$10,1,0,$A$7)) -> 0 | S11: =E11<>0 -> FALSE | T11: =IF($P11=ROW($P11)-ROW($P$10),R11<=$Q$8,IF(ISNUMBER($P11),OFFSET($T$10,VALUE($P11),0),FALSE)) -> FALSE
B13: Observações:
B19: Local e Data | Q19: Assistente de Projetos Sociais - Técnico Social / Caixa
Q20: Nome:
Q21: =IF(Q19="Assistente de Projetos Sociais - Técnico Social / Caixa","Matrícula:","Empresa:") -> Matrícula:
